{"text_format":"1","workbook":"xlsx","n_sheets":9,"sheets":["VJF-DISCLAIMER","Handleiding","Gegevens sportclub","Categorieën","Ledenadministratie","Promotie-PR-Communicatie","Competitie","Sportieve voorbereiding","Lijsten"],"not_rendered":{"charts":0,"images":6,"macros":1,"external_links":1,"defined_names":21,"comments":0,"pivot_tables":0},"unopened":[],"bounds":{"document_bytes":16777216,"sheet_cells":100000,"rows_first":2000,"rows_last":500,"rows_between":2000,"halvings":0,"cell_chars":16384,"cell_head_chars":4096},"cells_cut":0,"cells_raw":0,"read":"whole","date_system":"1904"}

{"sheet":"VJF-DISCLAIMER","index":0,"n_rows":4,"n_cols":1,"rows_kept":4,"cut":false,"hidden":false,"merged":[]}
["Door het gebruik van deze exceltool verklaart de gebruiker zich akkoord met volgende disclaimer:"]
[]
[]
["De Vlaamse Judofederatie vzw maakte dit model van register op zodat haar aangesloten leden-clubs alle verwerkingsactiviteiten en aanverwante verplichte vermeldingen m.b.t. de persoonsgegevens van hun leden kunnen opnemen, zoals voorgeschreven  in artikel 30 van de Algemene Verordening Gegevensbescherming (AVG of GDPR).\n\nHet model bevat een eerste basisinvulling, om de aangesloten leden-clubs op weg te zetten.DE Vlaamse Judofederatie vzw kan echter geen garanties bieden naar de volledigheid of de juistheid van de inhoud van dit register toe, daar die afhankelijk is van elke specifieke situatie. De club die dit model gebruikt is verantwoordelijk voor de verdere uitwerking, aanvulling en aanpassing ervan op maat van de club.\n\nDe Vlaamse Judofederatie vzw  is niet aansprakelijk in geval van beroep of schade als gevolg van het gebruik van dit register.\n\nVragen of hulp nodig? Contacteer ons gerust op vlaamse.judofederatie@skynet.be of 052/44.90.16."]

{"sheet":"Handleiding","index":1,"n_rows":69,"n_cols":4,"rows_kept":69,"cut":false,"hidden":false,"merged":[[55,2,55,3],[64,1,64,3],[66,1,66,3],[68,1,68,3],[33,1,33,3],[41,1,41,3],[43,1,43,3],[45,2,45,3],[46,2,46,3],[54,2,54,3],[27,1,27,3],[14,1,14,3],[15,1,15,3],[16,1,16,3],[17,1,17,3],[18,1,18,3],[20,1,20,3],[21,1,21,3],[22,1,22,3],[23,1,23,3],[24,1,24,3],[25,1,25,3],[12,1,12,3],[1,1,1,3],[5,1,5,3],[7,1,7,3],[9,1,9,3],[11,1,11,3]]}
[]
[null,{"$f":"\"REGISTER GEGEVENSVERWERKING\"&\" \"&UPPER(Naam_sportclub)","v":"REGISTER GEGEVENSVERWERKING JUDOCLUB HAJIKOS"}]
[]
[]
[]
[null,"HANDLEIDING"]
[]
[null,"Dit document \"Tool 3 Register van gegevensverwerking\" hoort bij de vierde stap in het stappenplan \"GDPR op maat van je sportclub\". Lees zeker  het document \"Handleiding GDPR op maat van je sportclub\" op de website van het Dynamo Project voor meer informatie over de andere stappen."]
[]
[null,"Belangrijk: je mag in dit Excel-bestand geen gebruik maken van de functie  \"knippen\". \nCellen \"kopieren\" en \"plakken als waarde\" mag wel binnen eenzelfde kolom. "]
[]
[null,"Je gaat als volgt met dit bestand aan de slag."]
[null,"Als je de melding \"macro's zijn uitgeschakeld\" ziet, klik dan altijd eerst op \"inhoud inschakelen\" alvorens verder te gaan"]
[]
[]
[null,"Tabblad: \"Handleiding\""]
[null,"Lees zeker eerst dit tabblad en gebruik de andere tabbladen in de juiste volgorde zoals hieronder omschreven. Verwijder dit tabblad zeker niet."]
[null,"Tabblad: \"Gegevens sportclub\""]
[null,"Vervolledig het tabblad \"Gegevens sportclub\". In dit tabblad noteer je enkele basisgegevens over je sportclub. Je kan deze informatie overnemen uit \"Tool 1: Opmaak inventaris\". Verwijder dit tabblad zeker niet."]
[]
[null,"Tabblad: \"Categorieën\""]
[null,"Vervolledig vervolgens het tabblad \"Categorieën\". "]
[null,"In dit tabblad zie je 6 soorten categorieën staan, met per categorie een lijst standaard opties. Pas deze opties aan naargelang de specifieke situatie van je sportclub.  Je kan de opties overnemen uit \"Tool 1: Opmaak inventaris\" en \"Tool 2: Toetsing GDPR\". Verwijder dit tabblad zeker niet."]
[]
[null,"Tabbladen \"Verwerkingsactiviteit\""]
[null,"Dit bestand bevat verschillende tabbladen \"Verwerkingsactiviteit\". In elk tabblad kan je gegevens over een andere soort verwerkingsactiviteit invullen. De gegevens die je in een tabblad \"Verwerkingsactiviteit\" invult, worden automatisch gehaald uit het tabblad \"Categorieën\"."]
[]
[null,"Kies eerst bovenaan een tabblad welk soort verwerkingsactiviteit je zal invullen. Plaats je cursor in de grijze cel naast \"verwerkingsactiviteit\", klik op het neerwaarts pijltje en kies een optie."]
[null,"Voorbeeld:"]
[]
[]
[]
[]
[null,"Vul vervolgens voor die verwerkingsactiviteit in de groene kolommen volgende informatie in. De groene kolommen zijn verplichte kolommen in het register, en kan je dan ook niet verwijderen:"]
[null,null,"Verwerkingsdoeleinden:","plaats je cursor in een cel, klik op het neerwaarts pijltje en kies een optie"]
[null,null,"Betrokkenen:","plaats je cursor in een cel, klik op het neerwaarts pijltje en kies een optie"]
[null,null,"Type gegevens:","plaats je cursor in een cel, klik op het neerwaarts pijltje en kies een optie"]
[null,null,"Ontvangers:","plaats je cursor in een cel, klik op het neerwaarts pijltje en kies een optie"]
[null,null,"Bewaringstermijn:","vul in hoe lang je de gegevens bewaart"]
[null,null,"Rechtsgrond:","plaats je cursor in een cel, klik op het neerwaarts pijltje en kies een optie"]
[null,null,"Beveiligingsmaatregelen:","plaats je cursor in een cel, klik op het neerwaarts pijltje en kies een optie"]
[null,"Vul zoveel rijen in tot wanneer je voor die verwerkingsactiviteit alle gegevens hebt ingevuld. Indien gewenst kan je de naam van een ingevuld tabblad nog aanpassen (bijvoorbeeld naar de naam van de verwerkingsactiviteit)."]
[]
[null,"Je kan naast de verplichte gegevens ook nog extra informatie in het register opnemen. Daarvoor dienen de oranje kolommen. Je kan een oranje kolom wel verwijderen of toevoegen."]
[]
[null,null,"Oranje kolom verwijderen."]
[null,null,"Je kan een oranje kolommen verwijderen indien je ze niet gebruikt. Plaats hiervoor je cursor ergens in de oranje kolom die je wil verwijderen en houd vervolgens volgende toetsencombinatie ingedrukt: ctrl + shift + V"]
[]
[]
[]
[]
[]
[]
[]
[null,null,"Oranje kolom toevoegen."]
[null,null,"Je kan extra oranje kolommen toevoegen indien gewenst. Plaats hiervoor je cursor ergens in de laatste oranje kolom en houd vervolgens volgende toetsencombinatie ingedrukt: ctrl + shift + T"]
[]
[]
[]
[]
[]
[]
[]
[]
[null,"Herhaal deze werkwijze in de andere tabbladen \"verwerkingsactiviteit\", tot wanneer je alle verwerkingsactiviteiten binnen je club hebt ingevuld. "]
[]
[null,"Dit document voorziet 5 tabbladen \"verwerkingsactiviteiten\". Mogelijks heb je niet alle tabbladen nodig, in dat geval kan je de overige tabbladen verwijderen. Heb je meer dan 5 tabbladen nodig? Kopieer dan een tabblad zo vaak als nodig."]
[]
[null,"Veel succes!"]

{"sheet":"Gegevens sportclub","index":2,"n_rows":28,"n_cols":3,"rows_kept":28,"cut":false,"hidden":false,"merged":[[5,1,5,2],[1,1,1,2]]}
[]
[null,{"$f":"\"REGISTER GEGEVENSVERWERKING\"&\" \"&UPPER(Naam_sportclub)","v":"REGISTER GEGEVENSVERWERKING JUDOCLUB HAJIKOS"}]
[]
[]
[]
[null,"GEGEVENS SPORTCLUB"]
[]
[null,"Naam sportclub:","Judoclub HaJikos"]
[null,"Adres sportclub (zetel, niet sporthal): ","Loepstraat 45 1234 Kluisven"]
[null,"Rechtsvorm sportclub: ","vzw"]
[null,"Website sportclub:","www.hajikos.be"]
[null,"De sportclub is lid van de federatie: ","Vlaamse Judofederatie vzw"]
[]
[null,"Contactpersoon sportclub"]
[null,"Naam:","Hans Kluisters"]
[null,"Telefoonnummer: ","XX/xx.yy.zz"]
[null,"E-mailadres: ","info@provider.be"]
[]
[null,"Verantwoordelijke voor de gegevensverwerking in sportclub"]
[null,"Naam:","Patrik.Donkes"]
[null,"Telefoonnummer: ","AA/bb.cc.dd"]
[null,"E-mailadres: ","patrik.Donkes@provider.be"]
[null,"Sinds:","2018-05-01"]
[]
[null,"Verantwoordelijke voor de gegevensverwerking bij de federatie (optioneel)"]
[null,"Naam:"]
[null,"Telefoonnummer: "]
[null,"E-mailadres: "]

{"sheet":"Categorieën","index":3,"n_rows":196,"n_cols":2,"rows_kept":196,"cut":false,"hidden":false,"merged":[]}
[]
[null,{"$f":"\"REGISTER GEGEVENSVERWERKING\"&\" \"&UPPER(Naam_sportclub)","v":"REGISTER GEGEVENSVERWERKING JUDOCLUB HAJIKOS"}]
[]
[null,{"$f":"IF(ISBLANK(#REF!)=TRUE,\" \",#REF!)","v":{"$error":"#REF!"}}]
[]
[null,"CATEGORIEËN"]
[]
[null,"Welke categorieën van persoonsgegevens houdt je sportclub bij?"]
[null,"persoonlijke gegevens: uniek ID lid (7 cijfers)"]
[null,"persoonlijke gegevens: clubnaam/clubnummer"]
[null,"persoonlijke gegevens: intern lidnummer"]
[null,"persoonlijke gegevens: naam + voornaam"]
[null,"persoonlijke gegevens: naam + voornaam + clubnummer + clubnaam + judograad + uniek ID-nummer + geslacht + nationaliteit"]
[null,"persoonlijke gegevens: naam + voornaam + clubnummer + clubnaam + uniek ID-nummer + nationaliteit"]
[null,"persoonlijke gegevens: straat + nummer + postcode + gemeente + land + mailadres + telefoon + GSM + fax"]
[null,"persoonlijke gegevens: mailadres"]
[null,"persoonlijke gegevens: telefoon-GSM-fax"]
[null,"persoonlijke gegevens: geboortedatum"]
[null,"persoonlijke gegevens: geslacht"]
[null,"persoonlijke gegevens: historiek lidmaatschap (begindatum, hernieuwingen, einddatum lidmaatschap)"]
[null,"persoonlijke gegevens: nationaliteit"]
[null,"persoonlijke gegevens: judograad"]
[null,"persoonlijke gegevens: historiek judograden"]
[null,"persoonlijke gegevens: Functie binnen club : Bestuurslid, Hoofdtrainer, Lesgever, Secretaris, Penningmeester, Voorzitter"]
[null,"persoonlijke gegevens: Statuut sporter"]
[null,"persoonlijke gegevens: Functie binnen club : Bestuurslid, Hoofdtrainer, Lesgever, Secretaris, Penningmeester, Voorzitter"]
[null,"persoonlijke gegevens: grootte, gewicht, onderscheidende fysieke kenmerken"]
[null,"persoonlijke gegevens: vrijetijdsactiviteiten en interesses (hobby's, sporten)"]
[null,"persoonlijke gegevens : datum van ongeval en omstandigheden"]
[null,"gevoelige gegevens: gegevens betreffende lichamelijke of psychische gezondheid (medische fiches): medisch dossier, medisch verslag, diagnose-informatie, behandeling, handicap, andere bijzondere vereisten i.v.m. gezondheid "]
[null,"gevoelige gegevens: dieten, allergieën"]
[null,"gevoelige gegevens: gezondheidsattesten van dokter"]
[null,"gevoelige gegevens: overheidsvoordelen"]
[null,"gevoelige gegevens: al dan niet G-judoka"]
[null,"sportieve gegevens: verslagen en resultaten van wedstrijden"]
[null,"sportieve gegevens: aanwezigheden op clubtrainingen (datums)"]
[null,"sportieve gegevens: gevolgde opleidingen, resultaten opleidingen, attesten van deelname aan opleidingen/bijscholingen"]
[null,"sportieve gegevens: proclameren van eindresultaat examens judograden"]
[null,"sportieve gegevens: verslagen van examens judograden"]
[null,"gegevens van derden: naam, telefoonnummer, e-mailadres van de ouders"]
[null,"beeldmateriaal: (digitale) foto's, filmpjes"]
[null,"persoonlijke gegevens : taal"]
[null,"persoonlijke gegevens : beroep"]
[null,"persoonlijke gegevens : rekeningnummer"]
[]
[]
[]
[]
[]
[null,"Van wie houdt je sportclub persoonsgegevens bij?"]
[null,"clubleden"]
[null,"deelnemers (initiatieleden)"]
[null,"clubleden en deelnemers (initiatieleden)"]
[null,"ex-clubleden"]
[null,"leden van de Vlaamse Judofederatie"]
[null,"ex-leden van de Vlaamse Judofederatie"]
[null,"bestuursleden"]
[null,"trainers"]
[null,"vrijwilligers en sympathisanten"]
[null,"sponsors"]
[null,"contacten bij andere clubs"]
[null,"contacten bij de federatie"]
[null,"contacten bij de (lokale) overheden"]
[null,"clubleden, deelnemers (initiatieleden) , vrijwilligers, sympathisanten"]
[null,"wettelijke vertegenwoordiger bij minderjarigen"]
[null,"clubleden, deelnemers (initiatieleden) , vrijwilligers, sympathisanten, wettelijke vertegenwoordigers bij minderjarigen"]
[]
[]
[]
[]
[]
[]
[]
[]
[]
[]
[]
[]
[]
[]
[]
[null,"Welke verwerkingsactiviteiten voert je sportclub uit?"]
[null,"Promotie, PR en communicatie"]
[null,"Deelnemen aan competities en tornooien"]
[null,"Sportieve voorbereiding : trainingen,stages"]
[null,"Ledenadministratie"]
[]
[]
[]
[]
[]
[]
[]
[]
[]
[]
[]
[]
[]
[]
[]
[]
[]
[]
[]
[]
[]
[]
[]
[]
[]
[]
[]
[null,"Aan welke organisaties geeft je sportclub persoonsgegevens door?"]
[null,"gemeente of stad van de club"]
[null,"partnerorganisatie (vb. Gents Judoplatform)"]
[null,"sponsor "]
[null,"verzekeraar"]
[null,"Vlaamse overheid (Sport Vlaanderen)"]
[null,"leden"]
[null,"trainers (extern)"]
[null,"Vlaamse Judofederatie vzw"]
[null,"niemand (gegevens worden niet doorgegeven)"]
[null,"publiek (publicatie op internet/facebook)"]
[null,"publiek (publicatie in infoboekje/clubblad)"]
[null,"wedstrijdorganisator (extern)"]
[null,"evenementenorganisator (extern)"]
[]
[]
[]
[]
[]
[]
[]
[]
[]
[]
[]
[]
[]
[]
[]
[]
[]
[]
[null,"Waarom houdt je sportclub persoonsgegevens bij?"]
[null,"verwerking gegevens clubleden i.f.v. doorgave ongevalsaangifte aan verzekeringsmaatschappij"]
[null,"verwerking gegevens i.f.v. lidmaatschap vb. betaling,verzekering controleren)"]
[null,"clubleden indelen in leeftijdsgroepen"]
[null,"aanvraag subsidie en cluberkenning bij Stad, Gemeente of Overheid"]
[null,"versturen van mailings als informatieverstrekker"]
[null,"leveren van wettelijke voordelen aan kansarme leden "]
[null,"bijhouden clubarchief om clubgeschiedenis te bewaren"]
[]
[null,"onderhouden en aanvullen clubwebsite als communicatiemiddel"]
[null,"onderhouden en aanvullen social media (vb Facebook) als communicatiemiddel"]
[null,"Nieuwsbrief opstellen en distribueren als communicatiemiddel"]
[null,"initiaties organiseren"]
[null,"videostreaming tijdens organiseren van een judowedstrijd"]
[null,"organiseren van jaarlijks eetfestijn (inschrijvingen, betalingen)"]
[null,"organiseren van jaarlijkse uitstappen (vb: pretparken, kajakken)"]
[]
[null,"organiseren van een judowedstrijd : inschrijvingslijsten en resultaten bijhouden"]
[null,"inschrijven en deelnemen aan wedstrijden"]
[]
[null,"afnemen examens judograden : bijhouden resultaten ifv vorming judoka's"]
[null,"bijhouden aanwezigheden op trainingen"]
[null,"organiseren van extra-sportgerelateerde activiteiten (judokampen/stages: informeren, controle betalingen)"]
[null,"administratie van leden, vrijwilligers en sympathisanten bij clubactiviteiten"]
[null,"inschrijven stages bij externe organisator"]
[]
[]
[]
[]
[]
[]
[]
[]
[]
[]
[]
[]
[null,"Welke beveiligingsmaatregelen treft je sportclub mbt persoonsgegevens?"]
[null,"standaardmaatregelen"]
[null,"organisatorische maatregel: enkel de secretaris kan aan de gegevens"]
[null,"organisatorische maatregel: enkel bestuurleden met autorisatie kunnen aan de gegevens"]
[null,"organisatorische maatregel: materiaal enkel op eigen site"]
[null,"organisatorische maatregel: medische fiches worden bijgehouden in gesloten koffer"]
[null,"technische maatregel: enkel wie ingelogd is op de website kan de gegevens opvragen of ingeven"]
[null,"technische maatregel: enkel wie ingelogd is op de website en geboortedatum ingeeft kan de gegevens opvragen of ingeven"]
[null,"technische maatregel: encryptie"]
[null,"technische maatregel: firewall"]
[null,"technische maatregelen: privacyinstellingen"]
[null,"organisatorische maatregel: materiaal enkel op door secretaris toegankelijke laptop"]
[null,"organisatorische maatregel: geen uitwisseling van data via memstick of disk"]
[null,"technische maatregel: 1 back-up op 1 externe harddisk"]

{"sheet":"Ledenadministratie","index":4,"n_rows":29,"n_cols":17,"rows_kept":29,"cut":false,"hidden":false,"merged":[[1,1,1,7],[5,3,5,4]]}
[]
[null,{"$f":"\"REGISTER GEGEVENSVERWERKING\"&\" \"&UPPER(Naam_sportclub)","v":"REGISTER GEGEVENSVERWERKING JUDOCLUB HAJIKOS"}]
[]
[]
[]
[null,null,"Verwerkingsactiviteit:","Ledenadministratie"]
[]
[null,"Verwerkingsdoeleinden","Betrokkenen","Type gegevens","Ontvangers","Bewaringstermijn","Rechtsgrond","Beveiligingsmaatregelen ","Andere Beveiligingsmaatregelen","ICT-systeem",null,null,null,"Beveiligingsmaatregelen",null,null,"nieuwe kolom"]
[null,"Waarom worden de gegevens verwerkt?","Van wie zijn de gegevens?","Welk type gegevens zijn het?","Aan wie zullen de gegevens worden verstrekt?","Hoelang worden de gegevens bewaard?","Wat is de wettelijke grondslag voor de verwerking?","Welke maatregelen worden genomen om de gegevens te beveiligen? ","Welke maatregelen worden genomen om de gegevens te beveiligen ?","Waar bevinden zich de persoonsgegevens ?",null,null,null,null,null,null,"nieuwe vrij in te vullen kolom"]
[null,"verwerking gegevens i.f.v. lidmaatschap vb. betaling,verzekering controleren)","clubleden en deelnemers (initiatieleden)","persoonlijke gegevens: naam + voornaam + clubnummer + clubnaam + judograad + uniek ID-nummer + geslacht + nationaliteit","Vlaamse Judofederatie vzw","20 jaar na stopzetting lidmaatschap","contractuele grond","technische maatregel: enkel wie ingelogd is op de website kan de gegevens opvragen of ingeven","organisatorische maatregel: enkel de secretaris kan aan de gegevens","Ledendatabase VJF"]
[null,"verwerking gegevens i.f.v. lidmaatschap vb. betaling,verzekering controleren)","clubleden en deelnemers (initiatieleden)","persoonlijke gegevens: nationaliteit","Vlaamse Judofederatie vzw","20 jaar na stopzetting lidmaatschap","contractuele grond","technische maatregel: enkel wie ingelogd is op de website kan de gegevens opvragen of ingeven","organisatorische maatregel: enkel de secretaris kan aan de gegevens","Ledendatabase VJF"]
[null,"verwerking gegevens i.f.v. lidmaatschap vb. betaling,verzekering controleren)","clubleden en deelnemers (initiatieleden)","gevoelige gegevens: al dan niet G-judoka","Vlaamse Judofederatie vzw","20 jaar na stopzetting lidmaatschap","contractuele grond","technische maatregel: enkel wie ingelogd is op de website kan de gegevens opvragen of ingeven","organisatorische maatregel: enkel de secretaris kan aan de gegevens","Ledendatabase VJF"]
[null,"verwerking gegevens i.f.v. lidmaatschap vb. betaling,verzekering controleren)","clubleden","persoonlijke gegevens: historiek lidmaatschap (begindatum, hernieuwingen, einddatum lidmaatschap)","Vlaamse Judofederatie vzw","20 jaar na stopzetting lidmaatschap","contractuele grond","technische maatregel: enkel wie ingelogd is op de website kan de gegevens opvragen of ingeven","organisatorische maatregel: enkel de secretaris kan aan de gegevens","Ledendatabase VJF"]
[null,"verwerking gegevens i.f.v. lidmaatschap vb. betaling,verzekering controleren)","clubleden","persoonlijke gegevens: geboortedatum","Vlaamse Judofederatie vzw","20 jaar na stopzetting lidmaatschap","contractuele grond","technische maatregel: enkel wie ingelogd is op de website kan de gegevens opvragen of ingeven","organisatorische maatregel: enkel de secretaris kan aan de gegevens","Ledendatabase VJF"]
[null,"verwerking gegevens i.f.v. lidmaatschap vb. betaling,verzekering controleren)","ex-leden van de Vlaamse Judofederatie","persoonlijke gegevens: geboortedatum","niemand (gegevens worden niet doorgegeven)","20 jaar na stopzetting lidmaatschap","gerechtvaardigd belang ","technische maatregel: enkel wie ingelogd is op de website en geboortedatum ingeeft kan de gegevens opvragen of ingeven","organisatorische maatregel: enkel de secretaris kan aan de gegevens","Ledendatabase VJF"]
[null,"verwerking gegevens clubleden i.f.v. doorgave ongevalsaangifte aan verzekeringsmaatschappij","clubleden, deelnemers (initiatieleden) , vrijwilligers, sympathisanten, wettelijke vertegenwoordigers bij minderjarigen","persoonlijke gegevens: naam + voornaam + clubnummer + clubnaam + uniek ID-nummer + nationaliteit","verzekeraar","6 maanden na ongeval","contractuele grond","organisatorische maatregel: enkel de secretaris kan aan de gegevens",null,"Extranet Ethias"]
[null,"verwerking gegevens clubleden i.f.v. doorgave ongevalsaangifte aan verzekeringsmaatschappij","clubleden, deelnemers (initiatieleden) , vrijwilligers, sympathisanten, wettelijke vertegenwoordigers bij minderjarigen","persoonlijke gegevens : taal","verzekeraar","6 maanden na ongeval","contractuele grond","organisatorische maatregel: enkel de secretaris kan aan de gegevens",null,"Extranet Ethias"]
[null,"verwerking gegevens clubleden i.f.v. doorgave ongevalsaangifte aan verzekeringsmaatschappij","clubleden, deelnemers (initiatieleden) , vrijwilligers, sympathisanten, wettelijke vertegenwoordigers bij minderjarigen","persoonlijke gegevens : rekeningnummer","verzekeraar","6 maanden na ongeval","contractuele grond","organisatorische maatregel: enkel de secretaris kan aan de gegevens",null,"Extranet Ethias"]
[null,"verwerking gegevens clubleden i.f.v. doorgave ongevalsaangifte aan verzekeringsmaatschappij","clubleden, deelnemers (initiatieleden) , vrijwilligers, sympathisanten, wettelijke vertegenwoordigers bij minderjarigen","persoonlijke gegevens : beroep","verzekeraar","6 maanden na ongeval","contractuele grond","organisatorische maatregel: enkel de secretaris kan aan de gegevens",null,"Extranet Ethias"]
[null,"versturen van mailings als informatieverstrekker","clubleden","persoonlijke gegevens: mailadres","niemand (gegevens worden niet doorgegeven)","6 maanden na stopzetting lidmaatschap","contractuele grond","standaardmaatregelen",null,"interne clubmailinglist (excel)"]
[null,"aanvraag subsidie en cluberkenning bij Stad, Gemeente of Overheid","clubleden","persoonlijke gegevens: naam + voornaam + clubnummer + clubnaam + judograad + uniek ID-nummer + geslacht + nationaliteit","gemeente of stad van de club","tot afsluiting subsidieprocedure","contractuele grond","standaardmaatregelen",null,"interne clublist (excel)"]
[null,"aanvraag subsidie en cluberkenning bij Stad, Gemeente of Overheid","clubleden","persoonlijke gegevens: straat + nummer + postcode + gemeente + land + mailadres + telefoon + GSM + fax","gemeente of stad van de club","tot afsluiting subsidieprocedure","contractuele grond","standaardmaatregelen",null,"interne clublist (excel)"]
[null,"aanvraag subsidie en cluberkenning bij Stad, Gemeente of Overheid","clubleden","sportieve gegevens: gevolgde opleidingen, resultaten opleidingen, attesten van deelname aan opleidingen/bijscholingen","gemeente of stad van de club","tot afsluiting subsidieprocedure","contractuele grond","standaardmaatregelen",null,"interne clublist (excel)"]
[null,"leveren van wettelijke voordelen aan kansarme leden ","clubleden","persoonlijke gegevens: clubnaam/clubnummer","gemeente of stad van de club","tot einde aanvraagprocedure","contractuele grond","standaardmaatregelen"]
[null,"leveren van wettelijke voordelen aan kansarme leden ","clubleden","persoonlijke gegevens: naam + voornaam","gemeente of stad van de club","tot einde aanvraagprocedure","contractuele grond","standaardmaatregelen"]
[null,"leveren van wettelijke voordelen aan kansarme leden ","clubleden","gevoelige gegevens: overheidsvoordelen","gemeente of stad van de club","tot einde aanvraagprocedure","toestemming","standaardmaatregelen"]
[null,"bijhouden clubarchief om clubgeschiedenis te bewaren","clubleden","beeldmateriaal: (digitale) foto's, filmpjes","publiek (publicatie op internet/facebook)","zolang de club (vzw) bestaat","algemeen belang","standaardmaatregelen"]
[null,"bijhouden clubarchief om clubgeschiedenis te bewaren","clubleden","competitiegegevens : wedstrijdgegevens en -resultaten","niemand (gegevens worden niet doorgegeven)","zolang de club (vzw) bestaat","gerechtvaardigd belang ","standaardmaatregelen"]
[null,"bijhouden clubarchief om clubgeschiedenis te bewaren","clubleden","persoonlijke gegevens: Functie binnen club : Bestuurslid, Hoofdtrainer, Lesgever, Secretaris, Penningmeester, Voorzitter","niemand (gegevens worden niet doorgegeven)","zolang de club (vzw) bestaat","gerechtvaardigd belang ","standaardmaatregelen"]

{"sheet":"Promotie-PR-Communicatie","index":5,"n_rows":44,"n_cols":13,"rows_kept":44,"cut":false,"hidden":false,"merged":[[1,1,1,7],[5,3,5,4]]}
[]
[null,{"$f":"\"REGISTER GEGEVENSVERWERKING\"&\" \"&UPPER(Naam_sportclub)","v":"REGISTER GEGEVENSVERWERKING JUDOCLUB HAJIKOS"}]
[]
[]
[]
[null,null,"Verwerkingsactiviteit:","Promotie, PR en communicatie"]
[]
[null,"Verwerkingsdoeleinden","Betrokkenen","Type gegevens","Ontvangers","Bewaringstermijn","Rechtsgrond","Beveiligingsmaatregelen ","ICT-systeem","nieuwe kolom",null,null,"nieuwe kolom"]
[null,"Waarom worden de gegevens verwerkt?","Van wie zijn de gegevens?","Welk type gegevens zijn het?","Aan wie zullen de gegevens worden verstrekt?","Hoelang worden de gegevens bewaard?","Wat is de wettelijke grondslag voor de verwerking?","Welke maatregelen worden genomen om de gegevens te beveiligen? ","Waar bevinden zich de persoonsgegevens ?","nieuwe vrij in te vullen kolom",null,null,"nieuwe vrij in te vullen kolom"]
[null,"onderhouden en aanvullen clubwebsite als communicatiemiddel","clubleden","beeldmateriaal: (digitale) foto's, filmpjes","publiek (publicatie op internet/facebook)","1 jaar","contractuele grond","standaardmaatregelen"]
[null,"onderhouden en aanvullen clubwebsite als communicatiemiddel","clubleden","competitiegegevens : wedstrijdgegevens en -resultaten","publiek (publicatie op internet/facebook)","1 jaar","gerechtvaardigd belang ","standaardmaatregelen"]
[null,"onderhouden en aanvullen clubwebsite als communicatiemiddel","clubleden","sportieve gegevens: proclameren van eindresultaat examens judograden","publiek (publicatie op internet/facebook)","1 jaar","gerechtvaardigd belang ","standaardmaatregelen"]
[null,"onderhouden en aanvullen clubwebsite als communicatiemiddel","sponsors","beeldmateriaal: (digitale) foto's, filmpjes","publiek (publicatie op internet/facebook)","zolang het sponsorcontract loopt","toestemming","standaardmaatregelen"]
[null,"onderhouden en aanvullen clubwebsite als communicatiemiddel","bestuursleden","persoonlijke gegevens: naam + voornaam","publiek (publicatie op internet/facebook)","zolang het bestuurslid een mandaat heeft","gerechtvaardigd belang ","standaardmaatregelen"]
[null,"onderhouden en aanvullen clubwebsite als communicatiemiddel","bestuursleden","persoonlijke gegevens: GSM-nummer","publiek (publicatie op internet/facebook)","zolang het bestuurslid een mandaat heeft","toestemming","standaardmaatregelen"]
[null,"onderhouden en aanvullen clubwebsite als communicatiemiddel","bestuursleden","persoonlijke gegevens: mailadres","publiek (publicatie op internet/facebook)","zolang het bestuurslid een mandaat heeft","toestemming","standaardmaatregelen"]
[null,"onderhouden en aanvullen clubwebsite als communicatiemiddel","bestuursleden","persoonlijke gegevens: Functie binnen club : Bestuurslid, Hoofdtrainer, Lesgever, Secretaris, Penningmeester, Voorzitter","publiek (publicatie op internet/facebook)","zolang het bestuurslid een mandaat heeft","gerechtvaardigd belang ","standaardmaatregelen"]
[null,"onderhouden en aanvullen clubwebsite als communicatiemiddel","trainers","persoonlijke gegevens: naam + voornaam","publiek (publicatie op internet/facebook)","zolang de trainer een mandaat heeft","toestemming","standaardmaatregelen"]
[null,"onderhouden en aanvullen clubwebsite als communicatiemiddel","trainers","persoonlijke gegevens: Functie binnen club : Bestuurslid, Hoofdtrainer, Lesgever, Secretaris, Penningmeester, Voorzitter","publiek (publicatie op internet/facebook)","zolang de trainer een mandaat heeft","toestemming","standaardmaatregelen"]
[null,"onderhouden en aanvullen social media (vb Facebook) als communicatiemiddel","clubleden","beeldmateriaal: (digitale) foto's, filmpjes","publiek (publicatie op internet/facebook)","1 jaar","contractuele grond","standaardmaatregelen"]
[null,"onderhouden en aanvullen social media (vb Facebook) als communicatiemiddel","clubleden","competitiegegevens : wedstrijdgegevens en -resultaten","publiek (publicatie op internet/facebook)","1 jaar","gerechtvaardigd belang ","standaardmaatregelen"]
[null,"onderhouden en aanvullen social media (vb Facebook) als communicatiemiddel","clubleden","sportieve gegevens: proclameren van eindresultaat examens judograden","publiek (publicatie op internet/facebook)","1 jaar","gerechtvaardigd belang ","standaardmaatregelen"]
[null,"onderhouden en aanvullen social media (vb Facebook) als communicatiemiddel","sponsors","beeldmateriaal: (digitale) foto's, filmpjes","publiek (publicatie op internet/facebook)","zolang het sponsorcontract loopt","toestemming","standaardmaatregelen"]
[null,"initiaties organiseren","deelnemers (initiatieleden)","persoonlijke gegevens: naam + voornaam","Vlaamse Judofederatie vzw","20 jaar na  initiatieperiode","contractuele grond","standaardmaatregelen"]
[null,"initiaties organiseren","deelnemers (initiatieleden)","persoonlijke gegevens: straat + nummer + postcode + gemeente + land + mailadres + telefoon + GSM + fax","Vlaamse Judofederatie vzw","20 jaar na  initiatieperiode","contractuele grond","standaardmaatregelen"]
[null,"initiaties organiseren","deelnemers (initiatieleden)","persoonlijke gegevens: geboortedatum","Vlaamse Judofederatie vzw","20 jaar na  initiatieperiode","contractuele grond","standaardmaatregelen"]
[null,"initiaties organiseren","deelnemers (initiatieleden)","persoonlijke gegevens: geslacht","Vlaamse Judofederatie vzw","20 jaar na  initiatieperiode","contractuele grond","standaardmaatregelen"]
[null,"initiaties organiseren","deelnemers (initiatieleden)","persoonlijke gegevens: nationaliteit","Vlaamse Judofederatie vzw","20 jaar na  initiatieperiode","contractuele grond","standaardmaatregelen"]
[null,"initiaties organiseren","deelnemers (initiatieleden)","gevoelige gegevens: gezondheidsattesten van dokter","Vlaamse Judofederatie vzw","duur van de initiatieperiode","contractuele grond","standaardmaatregelen"]
[null,"organiseren van jaarlijks eetfestijn (inschrijvingen, betalingen)","clubleden","persoonlijke gegevens: straat + nummer + postcode + gemeente + land + mailadres + telefoon + GSM + fax","niemand (gegevens worden niet doorgegeven)","1 jaar na de organisatie","contractuele grond","standaardmaatregelen"]
[null,"organiseren van jaarlijks eetfestijn (inschrijvingen, betalingen)","contacten bij andere clubs","persoonlijke gegevens: straat + nummer + postcode + gemeente + land + mailadres + telefoon + GSM + fax","niemand (gegevens worden niet doorgegeven)","1 jaar na de organisatie","contractuele grond","standaardmaatregelen"]
[null,"organiseren van jaarlijks eetfestijn (inschrijvingen, betalingen)","ex-leden","persoonlijke gegevens: straat + nummer + postcode + gemeente + land + mailadres + telefoon + GSM + fax","niemand (gegevens worden niet doorgegeven)","1 jaar na de organisatie","contractuele grond","standaardmaatregelen"]
[null,"organiseren van jaarlijks eetfestijn (inschrijvingen, betalingen)","contacten bij de federatie","persoonlijke gegevens: straat + nummer + postcode + gemeente + land + mailadres + telefoon + GSM + fax","niemand (gegevens worden niet doorgegeven)","1 jaar na de organisatie","contractuele grond","standaardmaatregelen"]
[null,"organiseren van jaarlijks eetfestijn (inschrijvingen, betalingen)","deelnemers (initiatieleden)","persoonlijke gegevens: straat + nummer + postcode + gemeente + land + mailadres + telefoon + GSM + fax","niemand (gegevens worden niet doorgegeven)","1 jaar na de organisatie","contractuele grond","standaardmaatregelen"]
[null,"organiseren van jaarlijks eetfestijn (inschrijvingen, betalingen)","vrijwilligers en sympathisanten","persoonlijke gegevens: straat + nummer + postcode + gemeente + land + mailadres + telefoon + GSM + fax","niemand (gegevens worden niet doorgegeven)","1 jaar na de organisatie","contractuele grond","standaardmaatregelen"]
[null,"Nieuwsbrief opstellen en distribueren als communicatiemiddel","clubleden","persoonlijke gegevens: naam + voornaam","niemand (gegevens worden niet doorgegeven)","tot iemand zich uitschrijft voor de nieuwsbrief","contractuele grond","standaardmaatregelen"]
[null,"Nieuwsbrief opstellen en distribueren als communicatiemiddel","clubleden","persoonlijke gegevens: mailadres","niemand (gegevens worden niet doorgegeven)","tot iemand zich uitschrijft voor de nieuwsbrief","contractuele grond","standaardmaatregelen"]
[null,"Nieuwsbrief opstellen en distribueren als communicatiemiddel","contacten bij andere clubs","persoonlijke gegevens: naam + voornaam","niemand (gegevens worden niet doorgegeven)","tot iemand zich uitschrijft voor de nieuwsbrief","contractuele grond","standaardmaatregelen"]
[null,"Nieuwsbrief opstellen en distribueren als communicatiemiddel","contacten bij andere clubs","persoonlijke gegevens: mailadres","niemand (gegevens worden niet doorgegeven)","tot iemand zich uitschrijft voor de nieuwsbrief","gerechtvaardigd belang ","standaardmaatregelen"]
[null,"Nieuwsbrief opstellen en distribueren als communicatiemiddel","vrijwilligers en sympathisanten","persoonlijke gegevens: naam + voornaam","niemand (gegevens worden niet doorgegeven)","tot iemand zich uitschrijft voor de nieuwsbrief","toestemming","standaardmaatregelen"]
[null,"Nieuwsbrief opstellen en distribueren als communicatiemiddel","vrijwilligers en sympathisanten","persoonlijke gegevens: mailadres","niemand (gegevens worden niet doorgegeven)","tot iemand zich uitschrijft voor de nieuwsbrief","toestemming","standaardmaatregelen"]
[null,"organiseren van jaarlijkse uitstappen (vb: pretparken, kajakken)","clubleden","persoonlijke gegevens: straat + nummer + postcode + gemeente + land + mailadres + telefoon + GSM + fax","niemand (gegevens worden niet doorgegeven)","1 jaar na de organisatie","contractuele grond","standaardmaatregelen"]
[null,"organiseren van jaarlijkse uitstappen (vb: pretparken, kajakken)","deelnemers (initiatieleden)","persoonlijke gegevens: straat + nummer + postcode + gemeente + land + mailadres + telefoon + GSM + fax","niemand (gegevens worden niet doorgegeven)","1 jaar na de organisatie","contractuele grond","standaardmaatregelen"]
[null,"organiseren van jaarlijkse uitstappen (vb: pretparken, kajakken)","vrijwilligers en sympathisanten","persoonlijke gegevens: straat + nummer + postcode + gemeente + land + mailadres + telefoon + GSM + fax","niemand (gegevens worden niet doorgegeven)","1 jaar na de organisatie","contractuele grond","standaardmaatregelen"]

{"sheet":"Competitie","index":6,"n_rows":16,"n_cols":13,"rows_kept":16,"cut":false,"hidden":false,"merged":[[1,1,1,7],[5,3,5,4]]}
[]
[null,{"$f":"\"REGISTER GEGEVENSVERWERKING\"&\" \"&UPPER(Naam_sportclub)","v":"REGISTER GEGEVENSVERWERKING JUDOCLUB HAJIKOS"}]
[]
[]
[]
[null,null,"Verwerkingsactiviteit:","Deelnemen aan competities en tornooien"]
[]
[null,"Verwerkingsdoeleinden","Betrokkenen","Type gegevens","Ontvangers","Bewaringstermijn","Rechtsgrond","Beveiligingsmaatregelen ","ICT-systeem","nieuwe kolom",null,null,"nieuwe kolom"]
[null,"Waarom worden de gegevens verwerkt?","Van wie zijn de gegevens?","Welk type gegevens zijn het?","Aan wie zullen de gegevens worden verstrekt?","Hoelang worden de gegevens bewaard?","Wat is de wettelijke grondslag voor de verwerking?","Welke maatregelen worden genomen om de gegevens te beveiligen? ","Waar bevinden zich de persoonsgegevens ?","nieuwe vrij in te vullen kolom",null,null,"nieuwe vrij in te vullen kolom"]
[null,"organiseren van een judowedstrijd : inschrijvingslijsten en resultaten bijhouden","leden van de Vlaamse Judofederatie","persoonlijke gegevens: naam + voornaam + clubnummer + clubnaam + judograad + uniek ID-nummer + geslacht + nationaliteit","niemand (gegevens worden niet doorgegeven)","3 jaar na de wedstrijd","contractuele grond","technische maatregel: enkel wie ingelogd is op de website kan de gegevens opvragen of ingeven","online inschrijvingssysteem"]
[null,"organiseren van een judowedstrijd : inschrijvingslijsten en resultaten bijhouden","leden van de Vlaamse Judofederatie","persoonlijke gegevens: geboortedatum","niemand (gegevens worden niet doorgegeven)","3 jaar na de wedstrijd","contractuele grond","technische maatregel: enkel wie ingelogd is op de website kan de gegevens opvragen of ingeven","online inschrijvingssysteem"]
[null,"organiseren van een judowedstrijd : inschrijvingslijsten en resultaten bijhouden","leden van de Vlaamse Judofederatie","persoonlijke gegevens: grootte, gewicht, onderscheidende fysieke kenmerken","niemand (gegevens worden niet doorgegeven)","3 jaar na de wedstrijd","contractuele grond","technische maatregel: enkel wie ingelogd is op de website kan de gegevens opvragen of ingeven","online inschrijvingssysteem"]
[null,"inschrijven en deelnemen aan externe wedstrijden","clubleden","persoonlijke gegevens: naam + voornaam + clubnummer + clubnaam + judograad + uniek ID-nummer + geslacht + nationaliteit","wedstrijdorganisator (extern)","3 jaar na de wedstrijd","contractuele grond","standaardmaatregelen","online inschrijvingssysteem"]
[null,"inschrijven en deelnemen aan externe wedstrijden","clubleden","persoonlijke gegevens: geboortedatum","wedstrijdorganisator (extern)","3 jaar na de wedstrijd","contractuele grond","standaardmaatregelen","online inschrijvingssysteem"]
[null,"inschrijven en deelnemen aan externe wedstrijden","clubleden","persoonlijke gegevens: grootte, gewicht, onderscheidende fysieke kenmerken","wedstrijdorganisator (extern)","3 jaar na de wedstrijd","contractuele grond","standaardmaatregelen","online inschrijvingssysteem"]
[null,"inschrijven en deelnemen aan wedstrijden","clubleden","sportieve gegevens: verslagen en resultaten van wedstrijden","niemand (gegevens worden niet doorgegeven)","3 jaar na de wedstrijd","contractuele grond","standaardmaatregelen","online inschrijvingssysteem"]

{"sheet":"Sportieve voorbereiding","index":7,"n_rows":35,"n_cols":13,"rows_kept":35,"cut":false,"hidden":false,"merged":[[1,1,1,7],[5,3,5,4]]}
[]
[null,{"$f":"\"REGISTER GEGEVENSVERWERKING\"&\" \"&UPPER(Naam_sportclub)","v":"REGISTER GEGEVENSVERWERKING JUDOCLUB HAJIKOS"}]
[]
[]
[]
[null,null,"Verwerkingsactiviteit:","Sportieve voorbereiding : trainingen,stages"]
[]
[null,"Verwerkingsdoeleinden","Betrokkenen","Type gegevens","Ontvangers","Bewaringstermijn","Rechtsgrond","Beveiligingsmaatregelen ","ICT-systeem","nieuwe kolom",null,null,"nieuwe kolom"]
[null,"Waarom worden de gegevens verwerkt?","Van wie zijn de gegevens?","Welk type gegevens zijn het?","Aan wie zullen de gegevens worden verstrekt?","Hoelang worden de gegevens bewaard?","Wat is de wettelijke grondslag voor de verwerking?","Welke maatregelen worden genomen om de gegevens te beveiligen? ","Waar bevinden zich de persoonsgegevens ?","nieuwe vrij in te vullen kolom",null,null,"nieuwe vrij in te vullen kolom"]
[null,"bijhouden aanwezigheden op trainingen","clubleden","persoonlijke gegevens: naam + voornaam + clubnummer + clubnaam + judograad + uniek ID-nummer + geslacht + nationaliteit","niemand (gegevens worden niet doorgegeven)","10 jaar na stopzetting lidmaatschap","contractuele grond","standaardmaatregelen"]
[null,"bijhouden aanwezigheden op trainingen","clubleden","persoonlijke gegevens: intern lidnummer","niemand (gegevens worden niet doorgegeven)","10 jaar na stopzetting lidmaatschap","contractuele grond","standaardmaatregelen"]
[null,"bijhouden aanwezigheden op trainingen","clubleden","sportieve gegevens: aanwezigheden op clubtrainingen (datums)","niemand (gegevens worden niet doorgegeven)","10 jaar na stopzetting lidmaatschap","contractuele grond","standaardmaatregelen"]
[null,"afnemen examens judograden : bijhouden resultaten ifv vorming judoka's","clubleden","persoonlijke gegevens: naam + voornaam + clubnummer + clubnaam + judograad + uniek ID-nummer + geslacht + nationaliteit","niemand (gegevens worden niet doorgegeven)","10 jaar na stopzetting lidmaatschap","contractuele grond","standaardmaatregelen"]
[null,"afnemen examens judograden : bijhouden resultaten ifv vorming judoka's","clubleden","persoonlijke gegevens: geboortedatum","niemand (gegevens worden niet doorgegeven)","10 jaar na stopzetting lidmaatschap","contractuele grond","standaardmaatregelen"]
[null,"afnemen examens judograden : bijhouden resultaten ifv vorming judoka's","clubleden","persoonlijke gegevens: historiek lidmaatschap (begindatum, hernieuwingen)","niemand (gegevens worden niet doorgegeven)","10 jaar na stopzetting lidmaatschap","contractuele grond","standaardmaatregelen"]
[null,"afnemen examens judograden : bijhouden resultaten ifv vorming judoka's","clubleden","sportieve gegevens: resultaten en verslagen van examens judograden","niemand (gegevens worden niet doorgegeven)","10 jaar na stopzetting lidmaatschap","contractuele grond","standaardmaatregelen"]
[null,"afnemen examens judograden : bijhouden resultaten ifv vorming judoka's","clubleden","persoonlijke gegevens: intern lidnummer","niemand (gegevens worden niet doorgegeven)","10 jaar na stopzetting lidmaatschap","contractuele grond","standaardmaatregelen"]
[null,"afnemen examens judograden : bijhouden resultaten ifv vorming judoka's","clubleden","persoonlijke gegevens: historiek judograden","Vlaamse Judofederatie vzw","20 jaar na stopzetting lidmaatschap","contractuele grond","technische maatregel: enkel wie ingelogd is op de website kan de gegevens opvragen of ingeven","organisatorische maatregel: enkel de secretaris kan aan de gegevens","Ledendatabase VJF"]
[null,"inschrijven stages bij externe organisator","clubleden","persoonlijke gegevens: nationaliteit","evenementenorganisator (extern)","tot 2 weken na de stage","contractuele grond","standaardmaatregelen"]
[null,"inschrijven stages bij externe organisator","clubleden","persoonlijke gegevens: geboortedatum","evenementenorganisator (extern)","tot 2 weken na de stage","contractuele grond","standaardmaatregelen"]
[null,"inschrijven stages bij externe organisator","clubleden","persoonlijke gegevens: grootte, gewicht, onderscheidende fysieke kenmerken","evenementenorganisator (extern)","tot 2 weken na de stage","contractuele grond","standaardmaatregelen"]
[null,"inschrijven stages bij externe organisator","clubleden","persoonlijke gegevens: straat + nummer + postcode + gemeente + land + mailadres + telefoon + GSM + fax","evenementenorganisator (extern)","tot 2 weken na de stage","contractuele grond","standaardmaatregelen"]
[null,"administratie van leden, vrijwilligers en sympathisanten bij clubactiviteiten","clubleden","persoonlijke gegevens: naam + voornaam + clubnummer + clubnaam + judograad + uniek ID-nummer + geslacht + nationaliteit","niemand (gegevens worden niet doorgegeven)","1 jaar na het evenement","contractuele grond","standaardmaatregelen"]
[null,"administratie van leden, vrijwilligers en sympathisanten bij clubactiviteiten","clubleden","persoonlijke gegevens: straat + nummer + postcode + gemeente + land + mailadres + telefoon + GSM + fax","niemand (gegevens worden niet doorgegeven)","1 jaar na het evenement","contractuele grond","standaardmaatregelen"]
[null,"administratie van leden, vrijwilligers en sympathisanten bij clubactiviteiten","vrijwilligers en sympathisanten","persoonlijke gegevens: straat + nummer + postcode + gemeente + land + mailadres + telefoon + GSM + fax","niemand (gegevens worden niet doorgegeven)","1 jaar na het evenement","contractuele grond","standaardmaatregelen"]
[null,"organiseren van extra-sportgerelateerde activiteiten (judokampen/stages: informeren, controle betalingen)","clubleden","persoonlijke gegevens: naam + voornaam + clubnummer + clubnaam + judograad + uniek ID-nummer + geslacht + nationaliteit","niemand (gegevens worden niet doorgegeven)","1 jaar na het evenement","contractuele grond","standaardmaatregelen"]
[null,"organiseren van extra-sportgerelateerde activiteiten (judokampen/stages: informeren, controle betalingen)","clubleden","persoonlijke gegevens: straat + nummer + postcode + gemeente + land + mailadres + telefoon + GSM + fax","niemand (gegevens worden niet doorgegeven)","1 jaar na het evenement","contractuele grond","standaardmaatregelen"]
[null,"organiseren van extra-sportgerelateerde activiteiten (judokampen/stages: informeren, controle betalingen)","clubleden","gevoelige gegevens: dieten, allergieën","niemand (gegevens worden niet doorgegeven)","1 dag na het evenement","contractuele grond","standaardmaatregelen"]
[null,"organiseren van extra-sportgerelateerde activiteiten (judokampen/stages: informeren, controle betalingen)","contacten bij andere clubs","persoonlijke gegevens: naam + voornaam + clubnummer + clubnaam + judograad + uniek ID-nummer + geslacht + nationaliteit","niemand (gegevens worden niet doorgegeven)","1 jaar na het evenement","contractuele grond","standaardmaatregelen"]
[null,"organiseren van extra-sportgerelateerde activiteiten (judokampen/stages: informeren, controle betalingen)","contacten bij andere clubs","persoonlijke gegevens: straat + nummer + postcode + gemeente + land + mailadres + telefoon + GSM + fax","niemand (gegevens worden niet doorgegeven)","1 jaar na het evenement","contractuele grond","standaardmaatregelen"]
[null,"organiseren van extra-sportgerelateerde activiteiten (judokampen/stages: informeren, controle betalingen)","contacten bij andere clubs","gevoelige gegevens: dieten, allergieën","niemand (gegevens worden niet doorgegeven)","1 dag na het evenement","contractuele grond","standaardmaatregelen"]
[null,"organiseren van extra-sportgerelateerde activiteiten (judokampen/stages: informeren, controle betalingen)","deelnemers (initiatieleden)","persoonlijke gegevens: naam + voornaam","niemand (gegevens worden niet doorgegeven)","1 jaar na het evenement","contractuele grond","standaardmaatregelen"]
[null,"organiseren van extra-sportgerelateerde activiteiten (judokampen/stages: informeren, controle betalingen)","deelnemers (initiatieleden)","persoonlijke gegevens: straat + nummer + postcode + gemeente + land + mailadres + telefoon + GSM + fax","niemand (gegevens worden niet doorgegeven)","1 jaar na het evenement","contractuele grond","standaardmaatregelen"]
[null,"organiseren van extra-sportgerelateerde activiteiten (judokampen/stages: informeren, controle betalingen)","deelnemers (initiatieleden)","gevoelige gegevens: gegevens betreffende lichamelijke of psychische gezondheid (medische fiches): medisch dossier, medisch verslag, diagnose-informatie, behandeling, dieet, allergieën,handicap, andere bijzondere vereisten i.v.m. gezondheid ","niemand (gegevens worden niet doorgegeven)","1 dag na het evenement","contractuele grond","standaardmaatregelen"]
[null,"organiseren van extra-sportgerelateerde activiteiten (judokampen/stages: informeren, controle betalingen)","deelnemers (initiatieleden)","gegevens van derden: naam, telefoonnummer, e-mailadres van de ouders","niemand (gegevens worden niet doorgegeven)","1 maand na het evenement","contractuele grond","standaardmaatregelen"]

{"sheet":"Lijsten","index":8,"n_rows":41,"n_cols":46,"rows_kept":41,"cut":false,"hidden":true,"merged":[[0,40,0,45],[0,12,0,17],[0,19,0,24],[0,5,0,10],[0,26,0,31],[0,33,0,38]]}
[null,"rechtsvorm",null,"wettelijke grond ",null,"Persoonsgegevens",null,null,null,null,null,null,"Betrokkenen",null,null,null,null,null,null,"Verwerkingsactiviteiten",null,null,null,null,null,null,"Derden",null,null,null,null,null,null,"Doeleinden",null,null,null,null,null,null,"Beveiligingsmaatregelen"]
[null,"feitelijke vereniging",null,"algemeen belang",null,1,{"$f":"IF(ISBLANK(Categorieën!B9)=TRUE,\" \",Categorieën!B9)","v":"persoonlijke gegevens: uniek ID lid (7 cijfers)"},{"$f":"SUM(IF(ISBLANK(Categorieën!B9)=TRUE,100,IF(Categorieën!B9>Categorieën!$B$9:$B$48,1,0)))+ROW()/100","v":33.020000000000003},{"$f":"SMALL($H$2:$H$41,ROW()-1)","v":4.34},{"$f":"SUM(IF(I2=$H$2:$H$41,$F$2:$F$41,0))","v":33},{"$f":"IF(ISBLANK(VLOOKUP($J2,$F$2:$G$41,2))=TRUE,\"\",VLOOKUP($J2,$F$2:$G$41,2))","v":"beeldmateriaal: (digitale) foto's, filmpjes"},null,1,{"$f":"IF(ISBLANK(Categorieën!B51)=TRUE,\" \",Categorieën!B51)","v":"clubleden"},{"$f":"SUM(IF(ISBLANK(Categorieën!B51)=TRUE,100,IF(Categorieën!B51>Categorieën!$B$51:$B$80,1,0)))+ROW()/100","v":15.02},{"$f":"SMALL($O$2:$O$31,ROW()-1)","v":14.08},{"$f":"SUM(IF(P2=$O$2:$O$31,$M$2:$M$31,0))","v":7},{"$f":"IF(ISBLANK(VLOOKUP($Q2,$M$2:$N$31,2))=TRUE,\"\",VLOOKUP($Q2,$M$2:$N$31,2))","v":"bestuursleden"},null,1,{"$f":"IF(ISBLANK(Categorieën!B83)=TRUE,\" \",Categorieën!B83)","v":"Promotie, PR en communicatie"},{"$f":"SUM(IF(ISBLANK(Categorieën!B83)=TRUE,100,IF(Categorieën!B83>Categorieën!$B$83:$B$112,1,0)))+ROW()/100","v":28.02},{"$f":"SMALL($V$2:$V$31,ROW()-1)","v":26.03},{"$f":"SUM(IF(W2=$V$2:$V$31,$T$2:$T$31,0))","v":2},{"$f":"IF(ISBLANK(VLOOKUP($X2,$T$2:$U$31,2))=TRUE,\"\",VLOOKUP($X2,$T$2:$U$31,2))","v":"Deelnemen aan competities en tornooien"},null,1,{"$f":"IF(ISBLANK(Categorieën!B115)=TRUE,\" \",Categorieën!B115)","v":"gemeente of stad van de club"},{"$f":"SUM(IF(ISBLANK(Categorieën!B115)=TRUE,100,IF(Categorieën!B115>Categorieën!$B$115:$B$144,1,0)))+ROW()/100","v":18.02},{"$f":"SMALL($AC$2:$AC$31,ROW()-1)","v":17.14},{"$f":"SUM(IF(AD2=$AC$2:$AC$31,$AA$2:$AA$31,0))","v":13},{"$f":"IF(ISBLANK(VLOOKUP($AE2,$AA$2:$AB$31,2))=TRUE,\"\",VLOOKUP($AE2,$AA$2:$AB$31,2))","v":"evenementenorganisator (extern)"},null,1,{"$f":"IF(ISBLANK(Categorieën!B147)=TRUE,\" \",Categorieën!B147)","v":"verwerking gegevens clubleden i.f.v. doorgave ongevalsaangifte aan verzekeringsmaatschappij"},{"$f":"SUM(IF(ISBLANK(Categorieën!B147)=TRUE,100,IF(Categorieën!B147>Categorieën!$B$147:$B$181,1,0)))+ROW()/100","v":32.020000000000003},{"$f":"SMALL($AJ$2:$AJ$36,ROW()-1)","v":14.05},{"$f":"SUM(IF(AK2=$AJ$2:$AJ$36,$AH$2:$AH$36,0))","v":4},{"$f":"IF(ISBLANK(VLOOKUP($AL2,$AH$2:$AI$36,2))=TRUE,\"\",VLOOKUP($AL2,$AH$2:$AI$36,2))","v":"aanvraag subsidie en cluberkenning bij Stad, Gemeente of Overheid"},null,1,{"$f":"IF(ISBLANK(Categorieën!B184)=TRUE,\" \",Categorieën!B184)","v":"standaardmaatregelen"},{"$f":"SUM(IF(ISBLANK(Categorieën!B184)=TRUE,100,IF(Categorieën!B184>Categorieën!$B$184:$B$213,1,0)))+ROW()/100","v":23.02},{"$f":"SMALL($AQ$2:$AQ$31,ROW()-1)","v":17.04},{"$f":"SUM(IF(AR2=$AQ$2:$AQ$31,$AO$2:$AO$31,0))","v":3},{"$f":"IF(ISBLANK(VLOOKUP($AS2,$AO$2:$AP$31,2))=TRUE,\"\",VLOOKUP($AS2,$AO$2:$AP$31,2))","v":"organisatorische maatregel: enkel bestuurleden met autorisatie kunnen aan de gegevens"}]
[null,"vzw",null,"contractuele grond",null,2,{"$f":"IF(ISBLANK(Categorieën!B10)=TRUE,\" \",Categorieën!B10)","v":"persoonlijke gegevens: clubnaam/clubnummer"},{"$f":"SUM(IF(ISBLANK(Categorieën!B10)=TRUE,100,IF(Categorieën!B10>Categorieën!$B$9:$B$48,1,0)))+ROW()/100","v":15.03},{"$f":"SMALL($H$2:$H$41,ROW()-1)","v":5.33},{"$f":"SUM(IF(I3=$H$2:$H$41,$F$2:$F$41,0))","v":32},{"$f":"IF(ISBLANK(VLOOKUP($J3,$F$2:$G$41,2))=TRUE,\"\",VLOOKUP($J3,$F$2:$G$41,2))","v":"gegevens van derden: naam, telefoonnummer, e-mailadres van de ouders"},null,2,{"$f":"IF(ISBLANK(Categorieën!B52)=TRUE,\" \",Categorieën!B52)","v":"deelnemers (initiatieleden)"},{"$f":"SUM(IF(ISBLANK(Categorieën!B52)=TRUE,100,IF(Categorieën!B52>Categorieën!$B$51:$B$80,1,0)))+ROW()/100","v":22.03},{"$f":"SMALL($O$2:$O$31,ROW()-1)","v":15.02},{"$f":"SUM(IF(P3=$O$2:$O$31,$M$2:$M$31,0))","v":1},{"$f":"IF(ISBLANK(VLOOKUP($Q3,$M$2:$N$31,2))=TRUE,\"\",VLOOKUP($Q3,$M$2:$N$31,2))","v":"clubleden"},null,2,{"$f":"IF(ISBLANK(Categorieën!B84)=TRUE,\" \",Categorieën!B84)","v":"Deelnemen aan competities en tornooien"},{"$f":"SUM(IF(ISBLANK(Categorieën!B84)=TRUE,100,IF(Categorieën!B84>Categorieën!$B$83:$B$112,1,0)))+ROW()/100","v":26.03},{"$f":"SMALL($V$2:$V$31,ROW()-1)","v":27.05},{"$f":"SUM(IF(W3=$V$2:$V$31,$T$2:$T$31,0))","v":4},{"$f":"IF(ISBLANK(VLOOKUP($X3,$T$2:$U$31,2))=TRUE,\"\",VLOOKUP($X3,$T$2:$U$31,2))","v":"Ledenadministratie"},null,2,{"$f":"IF(ISBLANK(Categorieën!B116)=TRUE,\" \",Categorieën!B116)","v":"partnerorganisatie (vb. Gents Judoplatform)"},{"$f":"SUM(IF(ISBLANK(Categorieën!B116)=TRUE,100,IF(Categorieën!B116>Categorieën!$B$115:$B$144,1,0)))+ROW()/100","v":21.03},{"$f":"SMALL($AC$2:$AC$31,ROW()-1)","v":18.02},{"$f":"SUM(IF(AD3=$AC$2:$AC$31,$AA$2:$AA$31,0))","v":1},{"$f":"IF(ISBLANK(VLOOKUP($AE3,$AA$2:$AB$31,2))=TRUE,\"\",VLOOKUP($AE3,$AA$2:$AB$31,2))","v":"gemeente of stad van de club"},null,2,{"$f":"IF(ISBLANK(Categorieën!B148)=TRUE,\" \",Categorieën!B148)","v":"verwerking gegevens i.f.v. lidmaatschap vb. betaling,verzekering controleren)"},{"$f":"SUM(IF(ISBLANK(Categorieën!B148)=TRUE,100,IF(Categorieën!B148>Categorieën!$B$147:$B$181,1,0)))+ROW()/100","v":33.03},{"$f":"SMALL($AJ$2:$AJ$36,ROW()-1)","v":15.24},{"$f":"SUM(IF(AK3=$AJ$2:$AJ$36,$AH$2:$AH$36,0))","v":23},{"$f":"IF(ISBLANK(VLOOKUP($AL3,$AH$2:$AI$36,2))=TRUE,\"\",VLOOKUP($AL3,$AH$2:$AI$36,2))","v":"administratie van leden, vrijwilligers en sympathisanten bij clubactiviteiten"},null,2,{"$f":"IF(ISBLANK(Categorieën!B185)=TRUE,\" \",Categorieën!B185)","v":"organisatorische maatregel: enkel de secretaris kan aan de gegevens"},{"$f":"SUM(IF(ISBLANK(Categorieën!B185)=TRUE,100,IF(Categorieën!B185>Categorieën!$B$184:$B$213,1,0)))+ROW()/100","v":18.03},{"$f":"SMALL($AQ$2:$AQ$31,ROW()-1)","v":18.03},{"$f":"SUM(IF(AR3=$AQ$2:$AQ$31,$AO$2:$AO$31,0))","v":2},{"$f":"IF(ISBLANK(VLOOKUP($AS3,$AO$2:$AP$31,2))=TRUE,\"\",VLOOKUP($AS3,$AO$2:$AP$31,2))","v":"organisatorische maatregel: enkel de secretaris kan aan de gegevens"}]
[null,null,null,"gerechtvaardigd belang ",null,3,{"$f":"IF(ISBLANK(Categorieën!B11)=TRUE,\" \",Categorieën!B11)","v":"persoonlijke gegevens: intern lidnummer"},{"$f":"SUM(IF(ISBLANK(Categorieën!B11)=TRUE,100,IF(Categorieën!B11>Categorieën!$B$9:$B$48,1,0)))+ROW()/100","v":23.04},{"$f":"SMALL($H$2:$H$41,ROW()-1)","v":6.27},{"$f":"SUM(IF(I4=$H$2:$H$41,$F$2:$F$41,0))","v":26},{"$f":"IF(ISBLANK(VLOOKUP($J4,$F$2:$G$41,2))=TRUE,\"\",VLOOKUP($J4,$F$2:$G$41,2))","v":"gevoelige gegevens: al dan niet G-judoka"},null,3,{"$f":"IF(ISBLANK(Categorieën!B53)=TRUE,\" \",Categorieën!B53)","v":"clubleden en deelnemers (initiatieleden)"},{"$f":"SUM(IF(ISBLANK(Categorieën!B53)=TRUE,100,IF(Categorieën!B53>Categorieën!$B$51:$B$80,1,0)))+ROW()/100","v":16.04},{"$f":"SMALL($O$2:$O$31,ROW()-1)","v":16.04},{"$f":"SUM(IF(P4=$O$2:$O$31,$M$2:$M$31,0))","v":3},{"$f":"IF(ISBLANK(VLOOKUP($Q4,$M$2:$N$31,2))=TRUE,\"\",VLOOKUP($Q4,$M$2:$N$31,2))","v":"clubleden en deelnemers (initiatieleden)"},null,3,{"$f":"IF(ISBLANK(Categorieën!B85)=TRUE,\" \",Categorieën!B85)","v":"Sportieve voorbereiding : trainingen,stages"},{"$f":"SUM(IF(ISBLANK(Categorieën!B85)=TRUE,100,IF(Categorieën!B85>Categorieën!$B$83:$B$112,1,0)))+ROW()/100","v":29.04},{"$f":"SMALL($V$2:$V$31,ROW()-1)","v":28.02},{"$f":"SUM(IF(W4=$V$2:$V$31,$T$2:$T$31,0))","v":1},{"$f":"IF(ISBLANK(VLOOKUP($X4,$T$2:$U$31,2))=TRUE,\"\",VLOOKUP($X4,$T$2:$U$31,2))","v":"Promotie, PR en communicatie"},null,3,{"$f":"IF(ISBLANK(Categorieën!B117)=TRUE,\" \",Categorieën!B117)","v":"sponsor "},{"$f":"SUM(IF(ISBLANK(Categorieën!B117)=TRUE,100,IF(Categorieën!B117>Categorieën!$B$115:$B$144,1,0)))+ROW()/100","v":24.04},{"$f":"SMALL($AC$2:$AC$31,ROW()-1)","v":19.07},{"$f":"SUM(IF(AD4=$AC$2:$AC$31,$AA$2:$AA$31,0))","v":6},{"$f":"IF(ISBLANK(VLOOKUP($AE4,$AA$2:$AB$31,2))=TRUE,\"\",VLOOKUP($AE4,$AA$2:$AB$31,2))","v":"leden"},null,3,{"$f":"IF(ISBLANK(Categorieën!B149)=TRUE,\" \",Categorieën!B149)","v":"clubleden indelen in leeftijdsgroepen"},{"$f":"SUM(IF(ISBLANK(Categorieën!B149)=TRUE,100,IF(Categorieën!B149>Categorieën!$B$147:$B$181,1,0)))+ROW()/100","v":19.04},{"$f":"SMALL($AJ$2:$AJ$36,ROW()-1)","v":16.21},{"$f":"SUM(IF(AK4=$AJ$2:$AJ$36,$AH$2:$AH$36,0))","v":20},{"$f":"IF(ISBLANK(VLOOKUP($AL4,$AH$2:$AI$36,2))=TRUE,\"\",VLOOKUP($AL4,$AH$2:$AI$36,2))","v":"afnemen examens judograden : bijhouden resultaten ifv vorming judoka's"},null,3,{"$f":"IF(ISBLANK(Categorieën!B186)=TRUE,\" \",Categorieën!B186)","v":"organisatorische maatregel: enkel bestuurleden met autorisatie kunnen aan de gegevens"},{"$f":"SUM(IF(ISBLANK(Categorieën!B186)=TRUE,100,IF(Categorieën!B186>Categorieën!$B$184:$B$213,1,0)))+ROW()/100","v":17.04},{"$f":"SMALL($AQ$2:$AQ$31,ROW()-1)","v":19.13},{"$f":"SUM(IF(AR4=$AQ$2:$AQ$31,$AO$2:$AO$31,0))","v":12},{"$f":"IF(ISBLANK(VLOOKUP($AS4,$AO$2:$AP$31,2))=TRUE,\"\",VLOOKUP($AS4,$AO$2:$AP$31,2))","v":"organisatorische maatregel: geen uitwisseling van data via memstick of disk"}]
[null,null,null,"toestemming",null,4,{"$f":"IF(ISBLANK(Categorieën!B12)=TRUE,\" \",Categorieën!B12)","v":"persoonlijke gegevens: naam + voornaam"},{"$f":"SUM(IF(ISBLANK(Categorieën!B12)=TRUE,100,IF(Categorieën!B12>Categorieën!$B$9:$B$48,1,0)))+ROW()/100","v":26.05},{"$f":"SMALL($H$2:$H$41,ROW()-1)","v":7.24},{"$f":"SUM(IF(I5=$H$2:$H$41,$F$2:$F$41,0))","v":23},{"$f":"IF(ISBLANK(VLOOKUP($J5,$F$2:$G$41,2))=TRUE,\"\",VLOOKUP($J5,$F$2:$G$41,2))","v":"gevoelige gegevens: dieten, allergieën"},null,4,{"$f":"IF(ISBLANK(Categorieën!B54)=TRUE,\" \",Categorieën!B54)","v":"ex-clubleden"},{"$f":"SUM(IF(ISBLANK(Categorieën!B54)=TRUE,100,IF(Categorieën!B54>Categorieën!$B$51:$B$80,1,0)))+ROW()/100","v":23.05},{"$f":"SMALL($O$2:$O$31,ROW()-1)","v":17.149999999999999},{"$f":"SUM(IF(P5=$O$2:$O$31,$M$2:$M$31,0))","v":14},{"$f":"IF(ISBLANK(VLOOKUP($Q5,$M$2:$N$31,2))=TRUE,\"\",VLOOKUP($Q5,$M$2:$N$31,2))","v":"clubleden, deelnemers (initiatieleden) , vrijwilligers, sympathisanten"},null,4,{"$f":"IF(ISBLANK(Categorieën!B86)=TRUE,\" \",Categorieën!B86)","v":"Ledenadministratie"},{"$f":"SUM(IF(ISBLANK(Categorieën!B86)=TRUE,100,IF(Categorieën!B86>Categorieën!$B$83:$B$112,1,0)))+ROW()/100","v":27.05},{"$f":"SMALL($V$2:$V$31,ROW()-1)","v":29.04},{"$f":"SUM(IF(W5=$V$2:$V$31,$T$2:$T$31,0))","v":3},{"$f":"IF(ISBLANK(VLOOKUP($X5,$T$2:$U$31,2))=TRUE,\"\",VLOOKUP($X5,$T$2:$U$31,2))","v":"Sportieve voorbereiding : trainingen,stages"},null,4,{"$f":"IF(ISBLANK(Categorieën!B118)=TRUE,\" \",Categorieën!B118)","v":"verzekeraar"},{"$f":"SUM(IF(ISBLANK(Categorieën!B118)=TRUE,100,IF(Categorieën!B118>Categorieën!$B$115:$B$144,1,0)))+ROW()/100","v":26.05},{"$f":"SMALL($AC$2:$AC$31,ROW()-1)","v":20.100000000000001},{"$f":"SUM(IF(AD5=$AC$2:$AC$31,$AA$2:$AA$31,0))","v":9},{"$f":"IF(ISBLANK(VLOOKUP($AE5,$AA$2:$AB$31,2))=TRUE,\"\",VLOOKUP($AE5,$AA$2:$AB$31,2))","v":"niemand (gegevens worden niet doorgegeven)"},null,4,{"$f":"IF(ISBLANK(Categorieën!B150)=TRUE,\" \",Categorieën!B150)","v":"aanvraag subsidie en cluberkenning bij Stad, Gemeente of Overheid"},{"$f":"SUM(IF(ISBLANK(Categorieën!B150)=TRUE,100,IF(Categorieën!B150>Categorieën!$B$147:$B$181,1,0)))+ROW()/100","v":14.05},{"$f":"SMALL($AJ$2:$AJ$36,ROW()-1)","v":17.22},{"$f":"SUM(IF(AK5=$AJ$2:$AJ$36,$AH$2:$AH$36,0))","v":21},{"$f":"IF(ISBLANK(VLOOKUP($AL5,$AH$2:$AI$36,2))=TRUE,\"\",VLOOKUP($AL5,$AH$2:$AI$36,2))","v":"bijhouden aanwezigheden op trainingen"},null,4,{"$f":"IF(ISBLANK(Categorieën!B187)=TRUE,\" \",Categorieën!B187)","v":"organisatorische maatregel: materiaal enkel op eigen site"},{"$f":"SUM(IF(ISBLANK(Categorieën!B187)=TRUE,100,IF(Categorieën!B187>Categorieën!$B$184:$B$213,1,0)))+ROW()/100","v":21.05},{"$f":"SMALL($AQ$2:$AQ$31,ROW()-1)","v":20.12},{"$f":"SUM(IF(AR5=$AQ$2:$AQ$31,$AO$2:$AO$31,0))","v":11},{"$f":"IF(ISBLANK(VLOOKUP($AS5,$AO$2:$AP$31,2))=TRUE,\"\",VLOOKUP($AS5,$AO$2:$AP$31,2))","v":"organisatorische maatregel: materiaal enkel op door secretaris toegankelijke laptop"}]
[null,null,null,"vitaal belang",null,5,{"$f":"IF(ISBLANK(Categorieën!B13)=TRUE,\" \",Categorieën!B13)","v":"persoonlijke gegevens: naam + voornaam + clubnummer + clubnaam + judograad + uniek ID-nummer + geslacht + nationaliteit"},{"$f":"SUM(IF(ISBLANK(Categorieën!B13)=TRUE,100,IF(Categorieën!B13>Categorieën!$B$9:$B$48,1,0)))+ROW()/100","v":27.06},{"$f":"SMALL($H$2:$H$41,ROW()-1)","v":8.23},{"$f":"SUM(IF(I6=$H$2:$H$41,$F$2:$F$41,0))","v":22},{"$f":"IF(ISBLANK(VLOOKUP($J6,$F$2:$G$41,2))=TRUE,\"\",VLOOKUP($J6,$F$2:$G$41,2))","v":"gevoelige gegevens: gegevens betreffende lichamelijke of psychische gezondheid (medische fiches): medisch dossier, medisch verslag, diagnose-informatie, behandeling, handicap, andere bijzondere vereisten i.v.m. gezondheid "},null,5,{"$f":"IF(ISBLANK(Categorieën!B55)=TRUE,\" \",Categorieën!B55)","v":"leden van de Vlaamse Judofederatie"},{"$f":"SUM(IF(ISBLANK(Categorieën!B55)=TRUE,100,IF(Categorieën!B55>Categorieën!$B$51:$B$80,1,0)))+ROW()/100","v":25.06},{"$f":"SMALL($O$2:$O$31,ROW()-1)","v":18.170000000000002},{"$f":"SUM(IF(P6=$O$2:$O$31,$M$2:$M$31,0))","v":16},{"$f":"IF(ISBLANK(VLOOKUP($Q6,$M$2:$N$31,2))=TRUE,\"\",VLOOKUP($Q6,$M$2:$N$31,2))","v":"clubleden, deelnemers (initiatieleden) , vrijwilligers, sympathisanten, wettelijke vertegenwoordigers bij minderjarigen"},null,5,{"$f":"IF(ISBLANK(Categorieën!B87)=TRUE,\" \",Categorieën!B87)","v":" "},{"$f":"SUM(IF(ISBLANK(Categorieën!B87)=TRUE,100,IF(Categorieën!B87>Categorieën!$B$83:$B$112,1,0)))+ROW()/100","v":100.06},{"$f":"SMALL($V$2:$V$31,ROW()-1)","v":100.06},{"$f":"SUM(IF(W6=$V$2:$V$31,$T$2:$T$31,0))","v":5},{"$f":"IF(ISBLANK(VLOOKUP($X6,$T$2:$U$31,2))=TRUE,\"\",VLOOKUP($X6,$T$2:$U$31,2))","v":" "},null,5,{"$f":"IF(ISBLANK(Categorieën!B119)=TRUE,\" \",Categorieën!B119)","v":"Vlaamse overheid (Sport Vlaanderen)"},{"$f":"SUM(IF(ISBLANK(Categorieën!B119)=TRUE,100,IF(Categorieën!B119>Categorieën!$B$115:$B$144,1,0)))+ROW()/100","v":28.06},{"$f":"SMALL($AC$2:$AC$31,ROW()-1)","v":21.03},{"$f":"SUM(IF(AD6=$AC$2:$AC$31,$AA$2:$AA$31,0))","v":2},{"$f":"IF(ISBLANK(VLOOKUP($AE6,$AA$2:$AB$31,2))=TRUE,\"\",VLOOKUP($AE6,$AA$2:$AB$31,2))","v":"partnerorganisatie (vb. Gents Judoplatform)"},null,5,{"$f":"IF(ISBLANK(Categorieën!B151)=TRUE,\" \",Categorieën!B151)","v":"versturen van mailings als informatieverstrekker"},{"$f":"SUM(IF(ISBLANK(Categorieën!B151)=TRUE,100,IF(Categorieën!B151>Categorieën!$B$147:$B$181,1,0)))+ROW()/100","v":31.06},{"$f":"SMALL($AJ$2:$AJ$36,ROW()-1)","v":18.079999999999998},{"$f":"SUM(IF(AK6=$AJ$2:$AJ$36,$AH$2:$AH$36,0))","v":7},{"$f":"IF(ISBLANK(VLOOKUP($AL6,$AH$2:$AI$36,2))=TRUE,\"\",VLOOKUP($AL6,$AH$2:$AI$36,2))","v":"bijhouden clubarchief om clubgeschiedenis te bewaren"},null,5,{"$f":"IF(ISBLANK(Categorieën!B188)=TRUE,\" \",Categorieën!B188)","v":"organisatorische maatregel: medische fiches worden bijgehouden in gesloten koffer"},{"$f":"SUM(IF(ISBLANK(Categorieën!B188)=TRUE,100,IF(Categorieën!B188>Categorieën!$B$184:$B$213,1,0)))+ROW()/100","v":22.06},{"$f":"SMALL($AQ$2:$AQ$31,ROW()-1)","v":21.05},{"$f":"SUM(IF(AR6=$AQ$2:$AQ$31,$AO$2:$AO$31,0))","v":4},{"$f":"IF(ISBLANK(VLOOKUP($AS6,$AO$2:$AP$31,2))=TRUE,\"\",VLOOKUP($AS6,$AO$2:$AP$31,2))","v":"organisatorische maatregel: materiaal enkel op eigen site"}]
[null,null,null,"wettelijke verplichting",null,6,{"$f":"IF(ISBLANK(Categorieën!B14)=TRUE,\" \",Categorieën!B14)","v":"persoonlijke gegevens: naam + voornaam + clubnummer + clubnaam + uniek ID-nummer + nationaliteit"},{"$f":"SUM(IF(ISBLANK(Categorieën!B14)=TRUE,100,IF(Categorieën!B14>Categorieën!$B$9:$B$48,1,0)))+ROW()/100","v":28.07},{"$f":"SMALL($H$2:$H$41,ROW()-1)","v":9.25},{"$f":"SUM(IF(I7=$H$2:$H$41,$F$2:$F$41,0))","v":24},{"$f":"IF(ISBLANK(VLOOKUP($J7,$F$2:$G$41,2))=TRUE,\"\",VLOOKUP($J7,$F$2:$G$41,2))","v":"gevoelige gegevens: gezondheidsattesten van dokter"},null,6,{"$f":"IF(ISBLANK(Categorieën!B56)=TRUE,\" \",Categorieën!B56)","v":"ex-leden van de Vlaamse Judofederatie"},{"$f":"SUM(IF(ISBLANK(Categorieën!B56)=TRUE,100,IF(Categorieën!B56>Categorieën!$B$51:$B$80,1,0)))+ROW()/100","v":24.07},{"$f":"SMALL($O$2:$O$31,ROW()-1)","v":19.12},{"$f":"SUM(IF(P7=$O$2:$O$31,$M$2:$M$31,0))","v":11},{"$f":"IF(ISBLANK(VLOOKUP($Q7,$M$2:$N$31,2))=TRUE,\"\",VLOOKUP($Q7,$M$2:$N$31,2))","v":"contacten bij andere clubs"},null,6,{"$f":"IF(ISBLANK(Categorieën!B88)=TRUE,\" \",Categorieën!B88)","v":" "},{"$f":"SUM(IF(ISBLANK(Categorieën!B88)=TRUE,100,IF(Categorieën!B88>Categorieën!$B$83:$B$112,1,0)))+ROW()/100","v":100.07},{"$f":"SMALL($V$2:$V$31,ROW()-1)","v":100.07},{"$f":"SUM(IF(W7=$V$2:$V$31,$T$2:$T$31,0))","v":6},{"$f":"IF(ISBLANK(VLOOKUP($X7,$T$2:$U$31,2))=TRUE,\"\",VLOOKUP($X7,$T$2:$U$31,2))","v":" "},null,6,{"$f":"IF(ISBLANK(Categorieën!B120)=TRUE,\" \",Categorieën!B120)","v":"leden"},{"$f":"SUM(IF(ISBLANK(Categorieën!B120)=TRUE,100,IF(Categorieën!B120>Categorieën!$B$115:$B$144,1,0)))+ROW()/100","v":19.07},{"$f":"SMALL($AC$2:$AC$31,ROW()-1)","v":22.12},{"$f":"SUM(IF(AD7=$AC$2:$AC$31,$AA$2:$AA$31,0))","v":11},{"$f":"IF(ISBLANK(VLOOKUP($AE7,$AA$2:$AB$31,2))=TRUE,\"\",VLOOKUP($AE7,$AA$2:$AB$31,2))","v":"publiek (publicatie in infoboekje/clubblad)"},null,6,{"$f":"IF(ISBLANK(Categorieën!B152)=TRUE,\" \",Categorieën!B152)","v":"leveren van wettelijke voordelen aan kansarme leden "},{"$f":"SUM(IF(ISBLANK(Categorieën!B152)=TRUE,100,IF(Categorieën!B152>Categorieën!$B$147:$B$181,1,0)))+ROW()/100","v":23.07},{"$f":"SMALL($AJ$2:$AJ$36,ROW()-1)","v":19.04},{"$f":"SUM(IF(AK7=$AJ$2:$AJ$36,$AH$2:$AH$36,0))","v":3},{"$f":"IF(ISBLANK(VLOOKUP($AL7,$AH$2:$AI$36,2))=TRUE,\"\",VLOOKUP($AL7,$AH$2:$AI$36,2))","v":"clubleden indelen in leeftijdsgroepen"},null,6,{"$f":"IF(ISBLANK(Categorieën!B189)=TRUE,\" \",Categorieën!B189)","v":"technische maatregel: enkel wie ingelogd is op de website kan de gegevens opvragen of ingeven"},{"$f":"SUM(IF(ISBLANK(Categorieën!B189)=TRUE,100,IF(Categorieën!B189>Categorieën!$B$184:$B$213,1,0)))+ROW()/100","v":27.07},{"$f":"SMALL($AQ$2:$AQ$31,ROW()-1)","v":22.06},{"$f":"SUM(IF(AR7=$AQ$2:$AQ$31,$AO$2:$AO$31,0))","v":5},{"$f":"IF(ISBLANK(VLOOKUP($AS7,$AO$2:$AP$31,2))=TRUE,\"\",VLOOKUP($AS7,$AO$2:$AP$31,2))","v":"organisatorische maatregel: medische fiches worden bijgehouden in gesloten koffer"}]
[null,null,null,null,null,7,{"$f":"IF(ISBLANK(Categorieën!B15)=TRUE,\" \",Categorieën!B15)","v":"persoonlijke gegevens: straat + nummer + postcode + gemeente + land + mailadres + telefoon + GSM + fax"},{"$f":"SUM(IF(ISBLANK(Categorieën!B15)=TRUE,100,IF(Categorieën!B15>Categorieën!$B$9:$B$48,1,0)))+ROW()/100","v":31.08},{"$f":"SMALL($H$2:$H$41,ROW()-1)","v":10.26},{"$f":"SUM(IF(I8=$H$2:$H$41,$F$2:$F$41,0))","v":25},{"$f":"IF(ISBLANK(VLOOKUP($J8,$F$2:$G$41,2))=TRUE,\"\",VLOOKUP($J8,$F$2:$G$41,2))","v":"gevoelige gegevens: overheidsvoordelen"},null,7,{"$f":"IF(ISBLANK(Categorieën!B57)=TRUE,\" \",Categorieën!B57)","v":"bestuursleden"},{"$f":"SUM(IF(ISBLANK(Categorieën!B57)=TRUE,100,IF(Categorieën!B57>Categorieën!$B$51:$B$80,1,0)))+ROW()/100","v":14.08},{"$f":"SMALL($O$2:$O$31,ROW()-1)","v":20.14},{"$f":"SUM(IF(P8=$O$2:$O$31,$M$2:$M$31,0))","v":13},{"$f":"IF(ISBLANK(VLOOKUP($Q8,$M$2:$N$31,2))=TRUE,\"\",VLOOKUP($Q8,$M$2:$N$31,2))","v":"contacten bij de (lokale) overheden"},null,7,{"$f":"IF(ISBLANK(Categorieën!B89)=TRUE,\" \",Categorieën!B89)","v":" "},{"$f":"SUM(IF(ISBLANK(Categorieën!B89)=TRUE,100,IF(Categorieën!B89>Categorieën!$B$83:$B$112,1,0)))+ROW()/100","v":100.08},{"$f":"SMALL($V$2:$V$31,ROW()-1)","v":100.08},{"$f":"SUM(IF(W8=$V$2:$V$31,$T$2:$T$31,0))","v":7},{"$f":"IF(ISBLANK(VLOOKUP($X8,$T$2:$U$31,2))=TRUE,\"\",VLOOKUP($X8,$T$2:$U$31,2))","v":" "},null,7,{"$f":"IF(ISBLANK(Categorieën!B121)=TRUE,\" \",Categorieën!B121)","v":"trainers (extern)"},{"$f":"SUM(IF(ISBLANK(Categorieën!B121)=TRUE,100,IF(Categorieën!B121>Categorieën!$B$115:$B$144,1,0)))+ROW()/100","v":25.08},{"$f":"SMALL($AC$2:$AC$31,ROW()-1)","v":23.11},{"$f":"SUM(IF(AD8=$AC$2:$AC$31,$AA$2:$AA$31,0))","v":10},{"$f":"IF(ISBLANK(VLOOKUP($AE8,$AA$2:$AB$31,2))=TRUE,\"\",VLOOKUP($AE8,$AA$2:$AB$31,2))","v":"publiek (publicatie op internet/facebook)"},null,7,{"$f":"IF(ISBLANK(Categorieën!B153)=TRUE,\" \",Categorieën!B153)","v":"bijhouden clubarchief om clubgeschiedenis te bewaren"},{"$f":"SUM(IF(ISBLANK(Categorieën!B153)=TRUE,100,IF(Categorieën!B153>Categorieën!$B$147:$B$181,1,0)))+ROW()/100","v":18.079999999999998},{"$f":"SMALL($AJ$2:$AJ$36,ROW()-1)","v":20.13},{"$f":"SUM(IF(AK8=$AJ$2:$AJ$36,$AH$2:$AH$36,0))","v":12},{"$f":"IF(ISBLANK(VLOOKUP($AL8,$AH$2:$AI$36,2))=TRUE,\"\",VLOOKUP($AL8,$AH$2:$AI$36,2))","v":"initiaties organiseren"},null,7,{"$f":"IF(ISBLANK(Categorieën!B190)=TRUE,\" \",Categorieën!B190)","v":"technische maatregel: enkel wie ingelogd is op de website en geboortedatum ingeeft kan de gegevens opvragen of ingeven"},{"$f":"SUM(IF(ISBLANK(Categorieën!B190)=TRUE,100,IF(Categorieën!B190>Categorieën!$B$184:$B$213,1,0)))+ROW()/100","v":26.08},{"$f":"SMALL($AQ$2:$AQ$31,ROW()-1)","v":23.02},{"$f":"SUM(IF(AR8=$AQ$2:$AQ$31,$AO$2:$AO$31,0))","v":1},{"$f":"IF(ISBLANK(VLOOKUP($AS8,$AO$2:$AP$31,2))=TRUE,\"\",VLOOKUP($AS8,$AO$2:$AP$31,2))","v":"standaardmaatregelen"}]
[null,null,null,null,null,8,{"$f":"IF(ISBLANK(Categorieën!B16)=TRUE,\" \",Categorieën!B16)","v":"persoonlijke gegevens: mailadres"},{"$f":"SUM(IF(ISBLANK(Categorieën!B16)=TRUE,100,IF(Categorieën!B16>Categorieën!$B$9:$B$48,1,0)))+ROW()/100","v":25.09},{"$f":"SMALL($H$2:$H$41,ROW()-1)","v":11.36},{"$f":"SUM(IF(I9=$H$2:$H$41,$F$2:$F$41,0))","v":35},{"$f":"IF(ISBLANK(VLOOKUP($J9,$F$2:$G$41,2))=TRUE,\"\",VLOOKUP($J9,$F$2:$G$41,2))","v":"persoonlijke gegevens : beroep"},null,8,{"$f":"IF(ISBLANK(Categorieën!B58)=TRUE,\" \",Categorieën!B58)","v":"trainers"},{"$f":"SUM(IF(ISBLANK(Categorieën!B58)=TRUE,100,IF(Categorieën!B58>Categorieën!$B$51:$B$80,1,0)))+ROW()/100","v":27.09},{"$f":"SMALL($O$2:$O$31,ROW()-1)","v":21.13},{"$f":"SUM(IF(P9=$O$2:$O$31,$M$2:$M$31,0))","v":12},{"$f":"IF(ISBLANK(VLOOKUP($Q9,$M$2:$N$31,2))=TRUE,\"\",VLOOKUP($Q9,$M$2:$N$31,2))","v":"contacten bij de federatie"},null,8,{"$f":"IF(ISBLANK(Categorieën!B90)=TRUE,\" \",Categorieën!B90)","v":" "},{"$f":"SUM(IF(ISBLANK(Categorieën!B90)=TRUE,100,IF(Categorieën!B90>Categorieën!$B$83:$B$112,1,0)))+ROW()/100","v":100.09},{"$f":"SMALL($V$2:$V$31,ROW()-1)","v":100.09},{"$f":"SUM(IF(W9=$V$2:$V$31,$T$2:$T$31,0))","v":8},{"$f":"IF(ISBLANK(VLOOKUP($X9,$T$2:$U$31,2))=TRUE,\"\",VLOOKUP($X9,$T$2:$U$31,2))","v":" "},null,8,{"$f":"IF(ISBLANK(Categorieën!B122)=TRUE,\" \",Categorieën!B122)","v":"Vlaamse Judofederatie vzw"},{"$f":"SUM(IF(ISBLANK(Categorieën!B122)=TRUE,100,IF(Categorieën!B122>Categorieën!$B$115:$B$144,1,0)))+ROW()/100","v":27.09},{"$f":"SMALL($AC$2:$AC$31,ROW()-1)","v":24.04},{"$f":"SUM(IF(AD9=$AC$2:$AC$31,$AA$2:$AA$31,0))","v":3},{"$f":"IF(ISBLANK(VLOOKUP($AE9,$AA$2:$AB$31,2))=TRUE,\"\",VLOOKUP($AE9,$AA$2:$AB$31,2))","v":"sponsor "},null,8,{"$f":"IF(ISBLANK(Categorieën!B154)=TRUE,\" \",Categorieën!B154)","v":" "},{"$f":"SUM(IF(ISBLANK(Categorieën!B154)=TRUE,100,IF(Categorieën!B154>Categorieën!$B$147:$B$181,1,0)))+ROW()/100","v":100.09},{"$f":"SMALL($AJ$2:$AJ$36,ROW()-1)","v":21.19},{"$f":"SUM(IF(AK9=$AJ$2:$AJ$36,$AH$2:$AH$36,0))","v":18},{"$f":"IF(ISBLANK(VLOOKUP($AL9,$AH$2:$AI$36,2))=TRUE,\"\",VLOOKUP($AL9,$AH$2:$AI$36,2))","v":"inschrijven en deelnemen aan wedstrijden"},null,8,{"$f":"IF(ISBLANK(Categorieën!B191)=TRUE,\" \",Categorieën!B191)","v":"technische maatregel: encryptie"},{"$f":"SUM(IF(ISBLANK(Categorieën!B191)=TRUE,100,IF(Categorieën!B191>Categorieën!$B$184:$B$213,1,0)))+ROW()/100","v":25.09},{"$f":"SMALL($AQ$2:$AQ$31,ROW()-1)","v":24.14},{"$f":"SUM(IF(AR9=$AQ$2:$AQ$31,$AO$2:$AO$31,0))","v":13},{"$f":"IF(ISBLANK(VLOOKUP($AS9,$AO$2:$AP$31,2))=TRUE,\"\",VLOOKUP($AS9,$AO$2:$AP$31,2))","v":"technische maatregel: 1 back-up op 1 externe harddisk"}]
[null,null,null,null,null,9,{"$f":"IF(ISBLANK(Categorieën!B17)=TRUE,\" \",Categorieën!B17)","v":"persoonlijke gegevens: telefoon-GSM-fax"},{"$f":"SUM(IF(ISBLANK(Categorieën!B17)=TRUE,100,IF(Categorieën!B17>Categorieën!$B$9:$B$48,1,0)))+ROW()/100","v":32.1},{"$f":"SMALL($H$2:$H$41,ROW()-1)","v":12.22},{"$f":"SUM(IF(I10=$H$2:$H$41,$F$2:$F$41,0))","v":21},{"$f":"IF(ISBLANK(VLOOKUP($J10,$F$2:$G$41,2))=TRUE,\"\",VLOOKUP($J10,$F$2:$G$41,2))","v":"persoonlijke gegevens : datum van ongeval en omstandigheden"},null,9,{"$f":"IF(ISBLANK(Categorieën!B59)=TRUE,\" \",Categorieën!B59)","v":"vrijwilligers en sympathisanten"},{"$f":"SUM(IF(ISBLANK(Categorieën!B59)=TRUE,100,IF(Categorieën!B59>Categorieën!$B$51:$B$80,1,0)))+ROW()/100","v":28.1},{"$f":"SMALL($O$2:$O$31,ROW()-1)","v":22.03},{"$f":"SUM(IF(P10=$O$2:$O$31,$M$2:$M$31,0))","v":2},{"$f":"IF(ISBLANK(VLOOKUP($Q10,$M$2:$N$31,2))=TRUE,\"\",VLOOKUP($Q10,$M$2:$N$31,2))","v":"deelnemers (initiatieleden)"},null,9,{"$f":"IF(ISBLANK(Categorieën!B91)=TRUE,\" \",Categorieën!B91)","v":" "},{"$f":"SUM(IF(ISBLANK(Categorieën!B91)=TRUE,100,IF(Categorieën!B91>Categorieën!$B$83:$B$112,1,0)))+ROW()/100","v":100.1},{"$f":"SMALL($V$2:$V$31,ROW()-1)","v":100.1},{"$f":"SUM(IF(W10=$V$2:$V$31,$T$2:$T$31,0))","v":9},{"$f":"IF(ISBLANK(VLOOKUP($X10,$T$2:$U$31,2))=TRUE,\"\",VLOOKUP($X10,$T$2:$U$31,2))","v":" "},null,9,{"$f":"IF(ISBLANK(Categorieën!B123)=TRUE,\" \",Categorieën!B123)","v":"niemand (gegevens worden niet doorgegeven)"},{"$f":"SUM(IF(ISBLANK(Categorieën!B123)=TRUE,100,IF(Categorieën!B123>Categorieën!$B$115:$B$144,1,0)))+ROW()/100","v":20.100000000000001},{"$f":"SMALL($AC$2:$AC$31,ROW()-1)","v":25.08},{"$f":"SUM(IF(AD10=$AC$2:$AC$31,$AA$2:$AA$31,0))","v":7},{"$f":"IF(ISBLANK(VLOOKUP($AE10,$AA$2:$AB$31,2))=TRUE,\"\",VLOOKUP($AE10,$AA$2:$AB$31,2))","v":"trainers (extern)"},null,9,{"$f":"IF(ISBLANK(Categorieën!B155)=TRUE,\" \",Categorieën!B155)","v":"onderhouden en aanvullen clubwebsite als communicatiemiddel"},{"$f":"SUM(IF(ISBLANK(Categorieën!B155)=TRUE,100,IF(Categorieën!B155>Categorieën!$B$147:$B$181,1,0)))+ROW()/100","v":25.1},{"$f":"SMALL($AJ$2:$AJ$36,ROW()-1)","v":22.25},{"$f":"SUM(IF(AK10=$AJ$2:$AJ$36,$AH$2:$AH$36,0))","v":24},{"$f":"IF(ISBLANK(VLOOKUP($AL10,$AH$2:$AI$36,2))=TRUE,\"\",VLOOKUP($AL10,$AH$2:$AI$36,2))","v":"inschrijven stages bij externe organisator"},null,9,{"$f":"IF(ISBLANK(Categorieën!B192)=TRUE,\" \",Categorieën!B192)","v":"technische maatregel: firewall"},{"$f":"SUM(IF(ISBLANK(Categorieën!B192)=TRUE,100,IF(Categorieën!B192>Categorieën!$B$184:$B$213,1,0)))+ROW()/100","v":28.1},{"$f":"SMALL($AQ$2:$AQ$31,ROW()-1)","v":25.09},{"$f":"SUM(IF(AR10=$AQ$2:$AQ$31,$AO$2:$AO$31,0))","v":8},{"$f":"IF(ISBLANK(VLOOKUP($AS10,$AO$2:$AP$31,2))=TRUE,\"\",VLOOKUP($AS10,$AO$2:$AP$31,2))","v":"technische maatregel: encryptie"}]
[null,null,null,null,null,10,{"$f":"IF(ISBLANK(Categorieën!B18)=TRUE,\" \",Categorieën!B18)","v":"persoonlijke gegevens: geboortedatum"},{"$f":"SUM(IF(ISBLANK(Categorieën!B18)=TRUE,100,IF(Categorieën!B18>Categorieën!$B$9:$B$48,1,0)))+ROW()/100","v":18.11},{"$f":"SMALL($H$2:$H$41,ROW()-1)","v":13.37},{"$f":"SUM(IF(I11=$H$2:$H$41,$F$2:$F$41,0))","v":36},{"$f":"IF(ISBLANK(VLOOKUP($J11,$F$2:$G$41,2))=TRUE,\"\",VLOOKUP($J11,$F$2:$G$41,2))","v":"persoonlijke gegevens : rekeningnummer"},null,10,{"$f":"IF(ISBLANK(Categorieën!B60)=TRUE,\" \",Categorieën!B60)","v":"sponsors"},{"$f":"SUM(IF(ISBLANK(Categorieën!B60)=TRUE,100,IF(Categorieën!B60>Categorieën!$B$51:$B$80,1,0)))+ROW()/100","v":26.11},{"$f":"SMALL($O$2:$O$31,ROW()-1)","v":23.05},{"$f":"SUM(IF(P11=$O$2:$O$31,$M$2:$M$31,0))","v":4},{"$f":"IF(ISBLANK(VLOOKUP($Q11,$M$2:$N$31,2))=TRUE,\"\",VLOOKUP($Q11,$M$2:$N$31,2))","v":"ex-clubleden"},null,10,{"$f":"IF(ISBLANK(Categorieën!B92)=TRUE,\" \",Categorieën!B92)","v":" "},{"$f":"SUM(IF(ISBLANK(Categorieën!B92)=TRUE,100,IF(Categorieën!B92>Categorieën!$B$83:$B$112,1,0)))+ROW()/100","v":100.11},{"$f":"SMALL($V$2:$V$31,ROW()-1)","v":100.11},{"$f":"SUM(IF(W11=$V$2:$V$31,$T$2:$T$31,0))","v":10},{"$f":"IF(ISBLANK(VLOOKUP($X11,$T$2:$U$31,2))=TRUE,\"\",VLOOKUP($X11,$T$2:$U$31,2))","v":" "},null,10,{"$f":"IF(ISBLANK(Categorieën!B124)=TRUE,\" \",Categorieën!B124)","v":"publiek (publicatie op internet/facebook)"},{"$f":"SUM(IF(ISBLANK(Categorieën!B124)=TRUE,100,IF(Categorieën!B124>Categorieën!$B$115:$B$144,1,0)))+ROW()/100","v":23.11},{"$f":"SMALL($AC$2:$AC$31,ROW()-1)","v":26.05},{"$f":"SUM(IF(AD11=$AC$2:$AC$31,$AA$2:$AA$31,0))","v":4},{"$f":"IF(ISBLANK(VLOOKUP($AE11,$AA$2:$AB$31,2))=TRUE,\"\",VLOOKUP($AE11,$AA$2:$AB$31,2))","v":"verzekeraar"},null,10,{"$f":"IF(ISBLANK(Categorieën!B156)=TRUE,\" \",Categorieën!B156)","v":"onderhouden en aanvullen social media (vb Facebook) als communicatiemiddel"},{"$f":"SUM(IF(ISBLANK(Categorieën!B156)=TRUE,100,IF(Categorieën!B156>Categorieën!$B$147:$B$181,1,0)))+ROW()/100","v":26.11},{"$f":"SMALL($AJ$2:$AJ$36,ROW()-1)","v":23.07},{"$f":"SUM(IF(AK11=$AJ$2:$AJ$36,$AH$2:$AH$36,0))","v":6},{"$f":"IF(ISBLANK(VLOOKUP($AL11,$AH$2:$AI$36,2))=TRUE,\"\",VLOOKUP($AL11,$AH$2:$AI$36,2))","v":"leveren van wettelijke voordelen aan kansarme leden "},null,10,{"$f":"IF(ISBLANK(Categorieën!B193)=TRUE,\" \",Categorieën!B193)","v":"technische maatregelen: privacyinstellingen"},{"$f":"SUM(IF(ISBLANK(Categorieën!B193)=TRUE,100,IF(Categorieën!B193>Categorieën!$B$184:$B$213,1,0)))+ROW()/100","v":29.11},{"$f":"SMALL($AQ$2:$AQ$31,ROW()-1)","v":26.08},{"$f":"SUM(IF(AR11=$AQ$2:$AQ$31,$AO$2:$AO$31,0))","v":7},{"$f":"IF(ISBLANK(VLOOKUP($AS11,$AO$2:$AP$31,2))=TRUE,\"\",VLOOKUP($AS11,$AO$2:$AP$31,2))","v":"technische maatregel: enkel wie ingelogd is op de website en geboortedatum ingeeft kan de gegevens opvragen of ingeven"}]
[null,null,null,null,null,11,{"$f":"IF(ISBLANK(Categorieën!B19)=TRUE,\" \",Categorieën!B19)","v":"persoonlijke gegevens: geslacht"},{"$f":"SUM(IF(ISBLANK(Categorieën!B19)=TRUE,100,IF(Categorieën!B19>Categorieën!$B$9:$B$48,1,0)))+ROW()/100","v":19.12},{"$f":"SMALL($H$2:$H$41,ROW()-1)","v":14.35},{"$f":"SUM(IF(I12=$H$2:$H$41,$F$2:$F$41,0))","v":34},{"$f":"IF(ISBLANK(VLOOKUP($J12,$F$2:$G$41,2))=TRUE,\"\",VLOOKUP($J12,$F$2:$G$41,2))","v":"persoonlijke gegevens : taal"},null,11,{"$f":"IF(ISBLANK(Categorieën!B61)=TRUE,\" \",Categorieën!B61)","v":"contacten bij andere clubs"},{"$f":"SUM(IF(ISBLANK(Categorieën!B61)=TRUE,100,IF(Categorieën!B61>Categorieën!$B$51:$B$80,1,0)))+ROW()/100","v":19.12},{"$f":"SMALL($O$2:$O$31,ROW()-1)","v":24.07},{"$f":"SUM(IF(P12=$O$2:$O$31,$M$2:$M$31,0))","v":6},{"$f":"IF(ISBLANK(VLOOKUP($Q12,$M$2:$N$31,2))=TRUE,\"\",VLOOKUP($Q12,$M$2:$N$31,2))","v":"ex-leden van de Vlaamse Judofederatie"},null,11,{"$f":"IF(ISBLANK(Categorieën!B93)=TRUE,\" \",Categorieën!B93)","v":" "},{"$f":"SUM(IF(ISBLANK(Categorieën!B93)=TRUE,100,IF(Categorieën!B93>Categorieën!$B$83:$B$112,1,0)))+ROW()/100","v":100.12},{"$f":"SMALL($V$2:$V$31,ROW()-1)","v":100.12},{"$f":"SUM(IF(W12=$V$2:$V$31,$T$2:$T$31,0))","v":11},{"$f":"IF(ISBLANK(VLOOKUP($X12,$T$2:$U$31,2))=TRUE,\"\",VLOOKUP($X12,$T$2:$U$31,2))","v":" "},null,11,{"$f":"IF(ISBLANK(Categorieën!B125)=TRUE,\" \",Categorieën!B125)","v":"publiek (publicatie in infoboekje/clubblad)"},{"$f":"SUM(IF(ISBLANK(Categorieën!B125)=TRUE,100,IF(Categorieën!B125>Categorieën!$B$115:$B$144,1,0)))+ROW()/100","v":22.12},{"$f":"SMALL($AC$2:$AC$31,ROW()-1)","v":27.09},{"$f":"SUM(IF(AD12=$AC$2:$AC$31,$AA$2:$AA$31,0))","v":8},{"$f":"IF(ISBLANK(VLOOKUP($AE12,$AA$2:$AB$31,2))=TRUE,\"\",VLOOKUP($AE12,$AA$2:$AB$31,2))","v":"Vlaamse Judofederatie vzw"},null,11,{"$f":"IF(ISBLANK(Categorieën!B157)=TRUE,\" \",Categorieën!B157)","v":"Nieuwsbrief opstellen en distribueren als communicatiemiddel"},{"$f":"SUM(IF(ISBLANK(Categorieën!B157)=TRUE,100,IF(Categorieën!B157>Categorieën!$B$147:$B$181,1,0)))+ROW()/100","v":24.12},{"$f":"SMALL($AJ$2:$AJ$36,ROW()-1)","v":24.12},{"$f":"SUM(IF(AK12=$AJ$2:$AJ$36,$AH$2:$AH$36,0))","v":11},{"$f":"IF(ISBLANK(VLOOKUP($AL12,$AH$2:$AI$36,2))=TRUE,\"\",VLOOKUP($AL12,$AH$2:$AI$36,2))","v":"Nieuwsbrief opstellen en distribueren als communicatiemiddel"},null,11,{"$f":"IF(ISBLANK(Categorieën!B194)=TRUE,\" \",Categorieën!B194)","v":"organisatorische maatregel: materiaal enkel op door secretaris toegankelijke laptop"},{"$f":"SUM(IF(ISBLANK(Categorieën!B194)=TRUE,100,IF(Categorieën!B194>Categorieën!$B$184:$B$213,1,0)))+ROW()/100","v":20.12},{"$f":"SMALL($AQ$2:$AQ$31,ROW()-1)","v":27.07},{"$f":"SUM(IF(AR12=$AQ$2:$AQ$31,$AO$2:$AO$31,0))","v":6},{"$f":"IF(ISBLANK(VLOOKUP($AS12,$AO$2:$AP$31,2))=TRUE,\"\",VLOOKUP($AS12,$AO$2:$AP$31,2))","v":"technische maatregel: enkel wie ingelogd is op de website kan de gegevens opvragen of ingeven"}]
[null,null,null,null,null,12,{"$f":"IF(ISBLANK(Categorieën!B20)=TRUE,\" \",Categorieën!B20)","v":"persoonlijke gegevens: historiek lidmaatschap (begindatum, hernieuwingen, einddatum lidmaatschap)"},{"$f":"SUM(IF(ISBLANK(Categorieën!B20)=TRUE,100,IF(Categorieën!B20>Categorieën!$B$9:$B$48,1,0)))+ROW()/100","v":22.13},{"$f":"SMALL($H$2:$H$41,ROW()-1)","v":15.03},{"$f":"SUM(IF(I13=$H$2:$H$41,$F$2:$F$41,0))","v":2},{"$f":"IF(ISBLANK(VLOOKUP($J13,$F$2:$G$41,2))=TRUE,\"\",VLOOKUP($J13,$F$2:$G$41,2))","v":"persoonlijke gegevens: clubnaam/clubnummer"},null,12,{"$f":"IF(ISBLANK(Categorieën!B62)=TRUE,\" \",Categorieën!B62)","v":"contacten bij de federatie"},{"$f":"SUM(IF(ISBLANK(Categorieën!B62)=TRUE,100,IF(Categorieën!B62>Categorieën!$B$51:$B$80,1,0)))+ROW()/100","v":21.13},{"$f":"SMALL($O$2:$O$31,ROW()-1)","v":25.06},{"$f":"SUM(IF(P13=$O$2:$O$31,$M$2:$M$31,0))","v":5},{"$f":"IF(ISBLANK(VLOOKUP($Q13,$M$2:$N$31,2))=TRUE,\"\",VLOOKUP($Q13,$M$2:$N$31,2))","v":"leden van de Vlaamse Judofederatie"},null,12,{"$f":"IF(ISBLANK(Categorieën!B94)=TRUE,\" \",Categorieën!B94)","v":" "},{"$f":"SUM(IF(ISBLANK(Categorieën!B94)=TRUE,100,IF(Categorieën!B94>Categorieën!$B$83:$B$112,1,0)))+ROW()/100","v":100.13},{"$f":"SMALL($V$2:$V$31,ROW()-1)","v":100.13},{"$f":"SUM(IF(W13=$V$2:$V$31,$T$2:$T$31,0))","v":12},{"$f":"IF(ISBLANK(VLOOKUP($X13,$T$2:$U$31,2))=TRUE,\"\",VLOOKUP($X13,$T$2:$U$31,2))","v":" "},null,12,{"$f":"IF(ISBLANK(Categorieën!B126)=TRUE,\" \",Categorieën!B126)","v":"wedstrijdorganisator (extern)"},{"$f":"SUM(IF(ISBLANK(Categorieën!B126)=TRUE,100,IF(Categorieën!B126>Categorieën!$B$115:$B$144,1,0)))+ROW()/100","v":29.13},{"$f":"SMALL($AC$2:$AC$31,ROW()-1)","v":28.06},{"$f":"SUM(IF(AD13=$AC$2:$AC$31,$AA$2:$AA$31,0))","v":5},{"$f":"IF(ISBLANK(VLOOKUP($AE13,$AA$2:$AB$31,2))=TRUE,\"\",VLOOKUP($AE13,$AA$2:$AB$31,2))","v":"Vlaamse overheid (Sport Vlaanderen)"},null,12,{"$f":"IF(ISBLANK(Categorieën!B158)=TRUE,\" \",Categorieën!B158)","v":"initiaties organiseren"},{"$f":"SUM(IF(ISBLANK(Categorieën!B158)=TRUE,100,IF(Categorieën!B158>Categorieën!$B$147:$B$181,1,0)))+ROW()/100","v":20.13},{"$f":"SMALL($AJ$2:$AJ$36,ROW()-1)","v":25.1},{"$f":"SUM(IF(AK13=$AJ$2:$AJ$36,$AH$2:$AH$36,0))","v":9},{"$f":"IF(ISBLANK(VLOOKUP($AL13,$AH$2:$AI$36,2))=TRUE,\"\",VLOOKUP($AL13,$AH$2:$AI$36,2))","v":"onderhouden en aanvullen clubwebsite als communicatiemiddel"},null,12,{"$f":"IF(ISBLANK(Categorieën!B195)=TRUE,\" \",Categorieën!B195)","v":"organisatorische maatregel: geen uitwisseling van data via memstick of disk"},{"$f":"SUM(IF(ISBLANK(Categorieën!B195)=TRUE,100,IF(Categorieën!B195>Categorieën!$B$184:$B$213,1,0)))+ROW()/100","v":19.13},{"$f":"SMALL($AQ$2:$AQ$31,ROW()-1)","v":28.1},{"$f":"SUM(IF(AR13=$AQ$2:$AQ$31,$AO$2:$AO$31,0))","v":9},{"$f":"IF(ISBLANK(VLOOKUP($AS13,$AO$2:$AP$31,2))=TRUE,\"\",VLOOKUP($AS13,$AO$2:$AP$31,2))","v":"technische maatregel: firewall"}]
[null,null,null,null,null,13,{"$f":"IF(ISBLANK(Categorieën!B21)=TRUE,\" \",Categorieën!B21)","v":"persoonlijke gegevens: nationaliteit"},{"$f":"SUM(IF(ISBLANK(Categorieën!B21)=TRUE,100,IF(Categorieën!B21>Categorieën!$B$9:$B$48,1,0)))+ROW()/100","v":29.14},{"$f":"SMALL($H$2:$H$41,ROW()-1)","v":16.170000000000002},{"$f":"SUM(IF(I14=$H$2:$H$41,$F$2:$F$41,0))","v":16},{"$f":"IF(ISBLANK(VLOOKUP($J14,$F$2:$G$41,2))=TRUE,\"\",VLOOKUP($J14,$F$2:$G$41,2))","v":"persoonlijke gegevens: Functie binnen club : Bestuurslid, Hoofdtrainer, Lesgever, Secretaris, Penningmeester, Voorzitter"},null,13,{"$f":"IF(ISBLANK(Categorieën!B63)=TRUE,\" \",Categorieën!B63)","v":"contacten bij de (lokale) overheden"},{"$f":"SUM(IF(ISBLANK(Categorieën!B63)=TRUE,100,IF(Categorieën!B63>Categorieën!$B$51:$B$80,1,0)))+ROW()/100","v":20.14},{"$f":"SMALL($O$2:$O$31,ROW()-1)","v":26.11},{"$f":"SUM(IF(P14=$O$2:$O$31,$M$2:$M$31,0))","v":10},{"$f":"IF(ISBLANK(VLOOKUP($Q14,$M$2:$N$31,2))=TRUE,\"\",VLOOKUP($Q14,$M$2:$N$31,2))","v":"sponsors"},null,13,{"$f":"IF(ISBLANK(Categorieën!B95)=TRUE,\" \",Categorieën!B95)","v":" "},{"$f":"SUM(IF(ISBLANK(Categorieën!B95)=TRUE,100,IF(Categorieën!B95>Categorieën!$B$83:$B$112,1,0)))+ROW()/100","v":100.14},{"$f":"SMALL($V$2:$V$31,ROW()-1)","v":100.14},{"$f":"SUM(IF(W14=$V$2:$V$31,$T$2:$T$31,0))","v":13},{"$f":"IF(ISBLANK(VLOOKUP($X14,$T$2:$U$31,2))=TRUE,\"\",VLOOKUP($X14,$T$2:$U$31,2))","v":" "},null,13,{"$f":"IF(ISBLANK(Categorieën!B127)=TRUE,\" \",Categorieën!B127)","v":"evenementenorganisator (extern)"},{"$f":"SUM(IF(ISBLANK(Categorieën!B127)=TRUE,100,IF(Categorieën!B127>Categorieën!$B$115:$B$144,1,0)))+ROW()/100","v":17.14},{"$f":"SMALL($AC$2:$AC$31,ROW()-1)","v":29.13},{"$f":"SUM(IF(AD14=$AC$2:$AC$31,$AA$2:$AA$31,0))","v":12},{"$f":"IF(ISBLANK(VLOOKUP($AE14,$AA$2:$AB$31,2))=TRUE,\"\",VLOOKUP($AE14,$AA$2:$AB$31,2))","v":"wedstrijdorganisator (extern)"},null,13,{"$f":"IF(ISBLANK(Categorieën!B159)=TRUE,\" \",Categorieën!B159)","v":"videostreaming tijdens organiseren van een judowedstrijd"},{"$f":"SUM(IF(ISBLANK(Categorieën!B159)=TRUE,100,IF(Categorieën!B159>Categorieën!$B$147:$B$181,1,0)))+ROW()/100","v":34.14},{"$f":"SMALL($AJ$2:$AJ$36,ROW()-1)","v":26.11},{"$f":"SUM(IF(AK14=$AJ$2:$AJ$36,$AH$2:$AH$36,0))","v":10},{"$f":"IF(ISBLANK(VLOOKUP($AL14,$AH$2:$AI$36,2))=TRUE,\"\",VLOOKUP($AL14,$AH$2:$AI$36,2))","v":"onderhouden en aanvullen social media (vb Facebook) als communicatiemiddel"},null,13,{"$f":"IF(ISBLANK(Categorieën!B196)=TRUE,\" \",Categorieën!B196)","v":"technische maatregel: 1 back-up op 1 externe harddisk"},{"$f":"SUM(IF(ISBLANK(Categorieën!B196)=TRUE,100,IF(Categorieën!B196>Categorieën!$B$184:$B$213,1,0)))+ROW()/100","v":24.14},{"$f":"SMALL($AQ$2:$AQ$31,ROW()-1)","v":29.11},{"$f":"SUM(IF(AR14=$AQ$2:$AQ$31,$AO$2:$AO$31,0))","v":10},{"$f":"IF(ISBLANK(VLOOKUP($AS14,$AO$2:$AP$31,2))=TRUE,\"\",VLOOKUP($AS14,$AO$2:$AP$31,2))","v":"technische maatregelen: privacyinstellingen"}]
[null,null,null,null,null,14,{"$f":"IF(ISBLANK(Categorieën!B22)=TRUE,\" \",Categorieën!B22)","v":"persoonlijke gegevens: judograad"},{"$f":"SUM(IF(ISBLANK(Categorieën!B22)=TRUE,100,IF(Categorieën!B22>Categorieën!$B$9:$B$48,1,0)))+ROW()/100","v":24.15},{"$f":"SMALL($H$2:$H$41,ROW()-1)","v":16.190000000000001},{"$f":"SUM(IF(I15=$H$2:$H$41,$F$2:$F$41,0))","v":18},{"$f":"IF(ISBLANK(VLOOKUP($J15,$F$2:$G$41,2))=TRUE,\"\",VLOOKUP($J15,$F$2:$G$41,2))","v":"persoonlijke gegevens: Functie binnen club : Bestuurslid, Hoofdtrainer, Lesgever, Secretaris, Penningmeester, Voorzitter"},null,14,{"$f":"IF(ISBLANK(Categorieën!B64)=TRUE,\" \",Categorieën!B64)","v":"clubleden, deelnemers (initiatieleden) , vrijwilligers, sympathisanten"},{"$f":"SUM(IF(ISBLANK(Categorieën!B64)=TRUE,100,IF(Categorieën!B64>Categorieën!$B$51:$B$80,1,0)))+ROW()/100","v":17.149999999999999},{"$f":"SMALL($O$2:$O$31,ROW()-1)","v":27.09},{"$f":"SUM(IF(P15=$O$2:$O$31,$M$2:$M$31,0))","v":8},{"$f":"IF(ISBLANK(VLOOKUP($Q15,$M$2:$N$31,2))=TRUE,\"\",VLOOKUP($Q15,$M$2:$N$31,2))","v":"trainers"},null,14,{"$f":"IF(ISBLANK(Categorieën!B96)=TRUE,\" \",Categorieën!B96)","v":" "},{"$f":"SUM(IF(ISBLANK(Categorieën!B96)=TRUE,100,IF(Categorieën!B96>Categorieën!$B$83:$B$112,1,0)))+ROW()/100","v":100.15},{"$f":"SMALL($V$2:$V$31,ROW()-1)","v":100.15},{"$f":"SUM(IF(W15=$V$2:$V$31,$T$2:$T$31,0))","v":14},{"$f":"IF(ISBLANK(VLOOKUP($X15,$T$2:$U$31,2))=TRUE,\"\",VLOOKUP($X15,$T$2:$U$31,2))","v":" "},null,14,{"$f":"IF(ISBLANK(Categorieën!B128)=TRUE,\" \",Categorieën!B128)","v":" "},{"$f":"SUM(IF(ISBLANK(Categorieën!B128)=TRUE,100,IF(Categorieën!B128>Categorieën!$B$115:$B$144,1,0)))+ROW()/100","v":100.15},{"$f":"SMALL($AC$2:$AC$31,ROW()-1)","v":100.15},{"$f":"SUM(IF(AD15=$AC$2:$AC$31,$AA$2:$AA$31,0))","v":14},{"$f":"IF(ISBLANK(VLOOKUP($AE15,$AA$2:$AB$31,2))=TRUE,\"\",VLOOKUP($AE15,$AA$2:$AB$31,2))","v":" "},null,14,{"$f":"IF(ISBLANK(Categorieën!B160)=TRUE,\" \",Categorieën!B160)","v":"organiseren van jaarlijks eetfestijn (inschrijvingen, betalingen)"},{"$f":"SUM(IF(ISBLANK(Categorieën!B160)=TRUE,100,IF(Categorieën!B160>Categorieën!$B$147:$B$181,1,0)))+ROW()/100","v":29.15},{"$f":"SMALL($AJ$2:$AJ$36,ROW()-1)","v":27.18},{"$f":"SUM(IF(AK15=$AJ$2:$AJ$36,$AH$2:$AH$36,0))","v":17},{"$f":"IF(ISBLANK(VLOOKUP($AL15,$AH$2:$AI$36,2))=TRUE,\"\",VLOOKUP($AL15,$AH$2:$AI$36,2))","v":"organiseren van een judowedstrijd : inschrijvingslijsten en resultaten bijhouden"},null,14,{"$f":"IF(ISBLANK(Categorieën!B197)=TRUE,\" \",Categorieën!B197)","v":" "},{"$f":"SUM(IF(ISBLANK(Categorieën!B197)=TRUE,100,IF(Categorieën!B197>Categorieën!$B$184:$B$213,1,0)))+ROW()/100","v":100.15},{"$f":"SMALL($AQ$2:$AQ$31,ROW()-1)","v":100.15},{"$f":"SUM(IF(AR15=$AQ$2:$AQ$31,$AO$2:$AO$31,0))","v":14},{"$f":"IF(ISBLANK(VLOOKUP($AS15,$AO$2:$AP$31,2))=TRUE,\"\",VLOOKUP($AS15,$AO$2:$AP$31,2))","v":" "}]
[null,null,null,null,null,15,{"$f":"IF(ISBLANK(Categorieën!B23)=TRUE,\" \",Categorieën!B23)","v":"persoonlijke gegevens: historiek judograden"},{"$f":"SUM(IF(ISBLANK(Categorieën!B23)=TRUE,100,IF(Categorieën!B23>Categorieën!$B$9:$B$48,1,0)))+ROW()/100","v":21.16},{"$f":"SMALL($H$2:$H$41,ROW()-1)","v":18.11},{"$f":"SUM(IF(I16=$H$2:$H$41,$F$2:$F$41,0))","v":10},{"$f":"IF(ISBLANK(VLOOKUP($J16,$F$2:$G$41,2))=TRUE,\"\",VLOOKUP($J16,$F$2:$G$41,2))","v":"persoonlijke gegevens: geboortedatum"},null,15,{"$f":"IF(ISBLANK(Categorieën!B65)=TRUE,\" \",Categorieën!B65)","v":"wettelijke vertegenwoordiger bij minderjarigen"},{"$f":"SUM(IF(ISBLANK(Categorieën!B65)=TRUE,100,IF(Categorieën!B65>Categorieën!$B$51:$B$80,1,0)))+ROW()/100","v":29.16},{"$f":"SMALL($O$2:$O$31,ROW()-1)","v":28.1},{"$f":"SUM(IF(P16=$O$2:$O$31,$M$2:$M$31,0))","v":9},{"$f":"IF(ISBLANK(VLOOKUP($Q16,$M$2:$N$31,2))=TRUE,\"\",VLOOKUP($Q16,$M$2:$N$31,2))","v":"vrijwilligers en sympathisanten"},null,15,{"$f":"IF(ISBLANK(Categorieën!B97)=TRUE,\" \",Categorieën!B97)","v":" "},{"$f":"SUM(IF(ISBLANK(Categorieën!B97)=TRUE,100,IF(Categorieën!B97>Categorieën!$B$83:$B$112,1,0)))+ROW()/100","v":100.16},{"$f":"SMALL($V$2:$V$31,ROW()-1)","v":100.16},{"$f":"SUM(IF(W16=$V$2:$V$31,$T$2:$T$31,0))","v":15},{"$f":"IF(ISBLANK(VLOOKUP($X16,$T$2:$U$31,2))=TRUE,\"\",VLOOKUP($X16,$T$2:$U$31,2))","v":" "},null,15,{"$f":"IF(ISBLANK(Categorieën!B129)=TRUE,\" \",Categorieën!B129)","v":" "},{"$f":"SUM(IF(ISBLANK(Categorieën!B129)=TRUE,100,IF(Categorieën!B129>Categorieën!$B$115:$B$144,1,0)))+ROW()/100","v":100.16},{"$f":"SMALL($AC$2:$AC$31,ROW()-1)","v":100.16},{"$f":"SUM(IF(AD16=$AC$2:$AC$31,$AA$2:$AA$31,0))","v":15},{"$f":"IF(ISBLANK(VLOOKUP($AE16,$AA$2:$AB$31,2))=TRUE,\"\",VLOOKUP($AE16,$AA$2:$AB$31,2))","v":" "},null,15,{"$f":"IF(ISBLANK(Categorieën!B161)=TRUE,\" \",Categorieën!B161)","v":"organiseren van jaarlijkse uitstappen (vb: pretparken, kajakken)"},{"$f":"SUM(IF(ISBLANK(Categorieën!B161)=TRUE,100,IF(Categorieën!B161>Categorieën!$B$147:$B$181,1,0)))+ROW()/100","v":30.16},{"$f":"SMALL($AJ$2:$AJ$36,ROW()-1)","v":28.23},{"$f":"SUM(IF(AK16=$AJ$2:$AJ$36,$AH$2:$AH$36,0))","v":22},{"$f":"IF(ISBLANK(VLOOKUP($AL16,$AH$2:$AI$36,2))=TRUE,\"\",VLOOKUP($AL16,$AH$2:$AI$36,2))","v":"organiseren van extra-sportgerelateerde activiteiten (judokampen/stages: informeren, controle betalingen)"},null,15,{"$f":"IF(ISBLANK(Categorieën!B198)=TRUE,\" \",Categorieën!B198)","v":" "},{"$f":"SUM(IF(ISBLANK(Categorieën!B198)=TRUE,100,IF(Categorieën!B198>Categorieën!$B$184:$B$213,1,0)))+ROW()/100","v":100.16},{"$f":"SMALL($AQ$2:$AQ$31,ROW()-1)","v":100.16},{"$f":"SUM(IF(AR16=$AQ$2:$AQ$31,$AO$2:$AO$31,0))","v":15},{"$f":"IF(ISBLANK(VLOOKUP($AS16,$AO$2:$AP$31,2))=TRUE,\"\",VLOOKUP($AS16,$AO$2:$AP$31,2))","v":" "}]
[null,null,null,null,null,16,{"$f":"IF(ISBLANK(Categorieën!B24)=TRUE,\" \",Categorieën!B24)","v":"persoonlijke gegevens: Functie binnen club : Bestuurslid, Hoofdtrainer, Lesgever, Secretaris, Penningmeester, Voorzitter"},{"$f":"SUM(IF(ISBLANK(Categorieën!B24)=TRUE,100,IF(Categorieën!B24>Categorieën!$B$9:$B$48,1,0)))+ROW()/100","v":16.170000000000002},{"$f":"SMALL($H$2:$H$41,ROW()-1)","v":19.12},{"$f":"SUM(IF(I17=$H$2:$H$41,$F$2:$F$41,0))","v":11},{"$f":"IF(ISBLANK(VLOOKUP($J17,$F$2:$G$41,2))=TRUE,\"\",VLOOKUP($J17,$F$2:$G$41,2))","v":"persoonlijke gegevens: geslacht"},null,16,{"$f":"IF(ISBLANK(Categorieën!B66)=TRUE,\" \",Categorieën!B66)","v":"clubleden, deelnemers (initiatieleden) , vrijwilligers, sympathisanten, wettelijke vertegenwoordigers bij minderjarigen"},{"$f":"SUM(IF(ISBLANK(Categorieën!B66)=TRUE,100,IF(Categorieën!B66>Categorieën!$B$51:$B$80,1,0)))+ROW()/100","v":18.170000000000002},{"$f":"SMALL($O$2:$O$31,ROW()-1)","v":29.16},{"$f":"SUM(IF(P17=$O$2:$O$31,$M$2:$M$31,0))","v":15},{"$f":"IF(ISBLANK(VLOOKUP($Q17,$M$2:$N$31,2))=TRUE,\"\",VLOOKUP($Q17,$M$2:$N$31,2))","v":"wettelijke vertegenwoordiger bij minderjarigen"},null,16,{"$f":"IF(ISBLANK(Categorieën!B98)=TRUE,\" \",Categorieën!B98)","v":" "},{"$f":"SUM(IF(ISBLANK(Categorieën!B98)=TRUE,100,IF(Categorieën!B98>Categorieën!$B$83:$B$112,1,0)))+ROW()/100","v":100.17},{"$f":"SMALL($V$2:$V$31,ROW()-1)","v":100.17},{"$f":"SUM(IF(W17=$V$2:$V$31,$T$2:$T$31,0))","v":16},{"$f":"IF(ISBLANK(VLOOKUP($X17,$T$2:$U$31,2))=TRUE,\"\",VLOOKUP($X17,$T$2:$U$31,2))","v":" "},null,16,{"$f":"IF(ISBLANK(Categorieën!B130)=TRUE,\" \",Categorieën!B130)","v":" "},{"$f":"SUM(IF(ISBLANK(Categorieën!B130)=TRUE,100,IF(Categorieën!B130>Categorieën!$B$115:$B$144,1,0)))+ROW()/100","v":100.17},{"$f":"SMALL($AC$2:$AC$31,ROW()-1)","v":100.17},{"$f":"SUM(IF(AD17=$AC$2:$AC$31,$AA$2:$AA$31,0))","v":16},{"$f":"IF(ISBLANK(VLOOKUP($AE17,$AA$2:$AB$31,2))=TRUE,\"\",VLOOKUP($AE17,$AA$2:$AB$31,2))","v":" "},null,16,{"$f":"IF(ISBLANK(Categorieën!B162)=TRUE,\" \",Categorieën!B162)","v":" "},{"$f":"SUM(IF(ISBLANK(Categorieën!B162)=TRUE,100,IF(Categorieën!B162>Categorieën!$B$147:$B$181,1,0)))+ROW()/100","v":100.17},{"$f":"SMALL($AJ$2:$AJ$36,ROW()-1)","v":29.15},{"$f":"SUM(IF(AK17=$AJ$2:$AJ$36,$AH$2:$AH$36,0))","v":14},{"$f":"IF(ISBLANK(VLOOKUP($AL17,$AH$2:$AI$36,2))=TRUE,\"\",VLOOKUP($AL17,$AH$2:$AI$36,2))","v":"organiseren van jaarlijks eetfestijn (inschrijvingen, betalingen)"},null,16,{"$f":"IF(ISBLANK(Categorieën!B199)=TRUE,\" \",Categorieën!B199)","v":" "},{"$f":"SUM(IF(ISBLANK(Categorieën!B199)=TRUE,100,IF(Categorieën!B199>Categorieën!$B$184:$B$213,1,0)))+ROW()/100","v":100.17},{"$f":"SMALL($AQ$2:$AQ$31,ROW()-1)","v":100.17},{"$f":"SUM(IF(AR17=$AQ$2:$AQ$31,$AO$2:$AO$31,0))","v":16},{"$f":"IF(ISBLANK(VLOOKUP($AS17,$AO$2:$AP$31,2))=TRUE,\"\",VLOOKUP($AS17,$AO$2:$AP$31,2))","v":" "}]
[null,null,null,null,null,17,{"$f":"IF(ISBLANK(Categorieën!B25)=TRUE,\" \",Categorieën!B25)","v":"persoonlijke gegevens: Statuut sporter"},{"$f":"SUM(IF(ISBLANK(Categorieën!B25)=TRUE,100,IF(Categorieën!B25>Categorieën!$B$9:$B$48,1,0)))+ROW()/100","v":30.18},{"$f":"SMALL($H$2:$H$41,ROW()-1)","v":20.2},{"$f":"SUM(IF(I18=$H$2:$H$41,$F$2:$F$41,0))","v":19},{"$f":"IF(ISBLANK(VLOOKUP($J18,$F$2:$G$41,2))=TRUE,\"\",VLOOKUP($J18,$F$2:$G$41,2))","v":"persoonlijke gegevens: grootte, gewicht, onderscheidende fysieke kenmerken"},null,17,{"$f":"IF(ISBLANK(Categorieën!B67)=TRUE,\" \",Categorieën!B67)","v":" "},{"$f":"SUM(IF(ISBLANK(Categorieën!B67)=TRUE,100,IF(Categorieën!B67>Categorieën!$B$51:$B$80,1,0)))+ROW()/100","v":100.18},{"$f":"SMALL($O$2:$O$31,ROW()-1)","v":100.18},{"$f":"SUM(IF(P18=$O$2:$O$31,$M$2:$M$31,0))","v":17},{"$f":"IF(ISBLANK(VLOOKUP($Q18,$M$2:$N$31,2))=TRUE,\"\",VLOOKUP($Q18,$M$2:$N$31,2))","v":" "},null,17,{"$f":"IF(ISBLANK(Categorieën!B99)=TRUE,\" \",Categorieën!B99)","v":" "},{"$f":"SUM(IF(ISBLANK(Categorieën!B99)=TRUE,100,IF(Categorieën!B99>Categorieën!$B$83:$B$112,1,0)))+ROW()/100","v":100.18},{"$f":"SMALL($V$2:$V$31,ROW()-1)","v":100.18},{"$f":"SUM(IF(W18=$V$2:$V$31,$T$2:$T$31,0))","v":17},{"$f":"IF(ISBLANK(VLOOKUP($X18,$T$2:$U$31,2))=TRUE,\"\",VLOOKUP($X18,$T$2:$U$31,2))","v":" "},null,17,{"$f":"IF(ISBLANK(Categorieën!B131)=TRUE,\" \",Categorieën!B131)","v":" "},{"$f":"SUM(IF(ISBLANK(Categorieën!B131)=TRUE,100,IF(Categorieën!B131>Categorieën!$B$115:$B$144,1,0)))+ROW()/100","v":100.18},{"$f":"SMALL($AC$2:$AC$31,ROW()-1)","v":100.18},{"$f":"SUM(IF(AD18=$AC$2:$AC$31,$AA$2:$AA$31,0))","v":17},{"$f":"IF(ISBLANK(VLOOKUP($AE18,$AA$2:$AB$31,2))=TRUE,\"\",VLOOKUP($AE18,$AA$2:$AB$31,2))","v":" "},null,17,{"$f":"IF(ISBLANK(Categorieën!B163)=TRUE,\" \",Categorieën!B163)","v":"organiseren van een judowedstrijd : inschrijvingslijsten en resultaten bijhouden"},{"$f":"SUM(IF(ISBLANK(Categorieën!B163)=TRUE,100,IF(Categorieën!B163>Categorieën!$B$147:$B$181,1,0)))+ROW()/100","v":27.18},{"$f":"SMALL($AJ$2:$AJ$36,ROW()-1)","v":30.16},{"$f":"SUM(IF(AK18=$AJ$2:$AJ$36,$AH$2:$AH$36,0))","v":15},{"$f":"IF(ISBLANK(VLOOKUP($AL18,$AH$2:$AI$36,2))=TRUE,\"\",VLOOKUP($AL18,$AH$2:$AI$36,2))","v":"organiseren van jaarlijkse uitstappen (vb: pretparken, kajakken)"},null,17,{"$f":"IF(ISBLANK(Categorieën!B200)=TRUE,\" \",Categorieën!B200)","v":" "},{"$f":"SUM(IF(ISBLANK(Categorieën!B200)=TRUE,100,IF(Categorieën!B200>Categorieën!$B$184:$B$213,1,0)))+ROW()/100","v":100.18},{"$f":"SMALL($AQ$2:$AQ$31,ROW()-1)","v":100.18},{"$f":"SUM(IF(AR18=$AQ$2:$AQ$31,$AO$2:$AO$31,0))","v":17},{"$f":"IF(ISBLANK(VLOOKUP($AS18,$AO$2:$AP$31,2))=TRUE,\"\",VLOOKUP($AS18,$AO$2:$AP$31,2))","v":" "}]
[null,null,null,null,null,18,{"$f":"IF(ISBLANK(Categorieën!B26)=TRUE,\" \",Categorieën!B26)","v":"persoonlijke gegevens: Functie binnen club : Bestuurslid, Hoofdtrainer, Lesgever, Secretaris, Penningmeester, Voorzitter"},{"$f":"SUM(IF(ISBLANK(Categorieën!B26)=TRUE,100,IF(Categorieën!B26>Categorieën!$B$9:$B$48,1,0)))+ROW()/100","v":16.190000000000001},{"$f":"SMALL($H$2:$H$41,ROW()-1)","v":21.16},{"$f":"SUM(IF(I19=$H$2:$H$41,$F$2:$F$41,0))","v":15},{"$f":"IF(ISBLANK(VLOOKUP($J19,$F$2:$G$41,2))=TRUE,\"\",VLOOKUP($J19,$F$2:$G$41,2))","v":"persoonlijke gegevens: historiek judograden"},null,18,{"$f":"IF(ISBLANK(Categorieën!B68)=TRUE,\" \",Categorieën!B68)","v":" "},{"$f":"SUM(IF(ISBLANK(Categorieën!B68)=TRUE,100,IF(Categorieën!B68>Categorieën!$B$51:$B$80,1,0)))+ROW()/100","v":100.19},{"$f":"SMALL($O$2:$O$31,ROW()-1)","v":100.19},{"$f":"SUM(IF(P19=$O$2:$O$31,$M$2:$M$31,0))","v":18},{"$f":"IF(ISBLANK(VLOOKUP($Q19,$M$2:$N$31,2))=TRUE,\"\",VLOOKUP($Q19,$M$2:$N$31,2))","v":" "},null,18,{"$f":"IF(ISBLANK(Categorieën!B100)=TRUE,\" \",Categorieën!B100)","v":" "},{"$f":"SUM(IF(ISBLANK(Categorieën!B100)=TRUE,100,IF(Categorieën!B100>Categorieën!$B$83:$B$112,1,0)))+ROW()/100","v":100.19},{"$f":"SMALL($V$2:$V$31,ROW()-1)","v":100.19},{"$f":"SUM(IF(W19=$V$2:$V$31,$T$2:$T$31,0))","v":18},{"$f":"IF(ISBLANK(VLOOKUP($X19,$T$2:$U$31,2))=TRUE,\"\",VLOOKUP($X19,$T$2:$U$31,2))","v":" "},null,18,{"$f":"IF(ISBLANK(Categorieën!B132)=TRUE,\" \",Categorieën!B132)","v":" "},{"$f":"SUM(IF(ISBLANK(Categorieën!B132)=TRUE,100,IF(Categorieën!B132>Categorieën!$B$115:$B$144,1,0)))+ROW()/100","v":100.19},{"$f":"SMALL($AC$2:$AC$31,ROW()-1)","v":100.19},{"$f":"SUM(IF(AD19=$AC$2:$AC$31,$AA$2:$AA$31,0))","v":18},{"$f":"IF(ISBLANK(VLOOKUP($AE19,$AA$2:$AB$31,2))=TRUE,\"\",VLOOKUP($AE19,$AA$2:$AB$31,2))","v":" "},null,18,{"$f":"IF(ISBLANK(Categorieën!B164)=TRUE,\" \",Categorieën!B164)","v":"inschrijven en deelnemen aan wedstrijden"},{"$f":"SUM(IF(ISBLANK(Categorieën!B164)=TRUE,100,IF(Categorieën!B164>Categorieën!$B$147:$B$181,1,0)))+ROW()/100","v":21.19},{"$f":"SMALL($AJ$2:$AJ$36,ROW()-1)","v":31.06},{"$f":"SUM(IF(AK19=$AJ$2:$AJ$36,$AH$2:$AH$36,0))","v":5},{"$f":"IF(ISBLANK(VLOOKUP($AL19,$AH$2:$AI$36,2))=TRUE,\"\",VLOOKUP($AL19,$AH$2:$AI$36,2))","v":"versturen van mailings als informatieverstrekker"},null,18,{"$f":"IF(ISBLANK(Categorieën!B201)=TRUE,\" \",Categorieën!B201)","v":" "},{"$f":"SUM(IF(ISBLANK(Categorieën!B201)=TRUE,100,IF(Categorieën!B201>Categorieën!$B$184:$B$213,1,0)))+ROW()/100","v":100.19},{"$f":"SMALL($AQ$2:$AQ$31,ROW()-1)","v":100.19},{"$f":"SUM(IF(AR19=$AQ$2:$AQ$31,$AO$2:$AO$31,0))","v":18},{"$f":"IF(ISBLANK(VLOOKUP($AS19,$AO$2:$AP$31,2))=TRUE,\"\",VLOOKUP($AS19,$AO$2:$AP$31,2))","v":" "}]
[null,null,null,null,null,19,{"$f":"IF(ISBLANK(Categorieën!B27)=TRUE,\" \",Categorieën!B27)","v":"persoonlijke gegevens: grootte, gewicht, onderscheidende fysieke kenmerken"},{"$f":"SUM(IF(ISBLANK(Categorieën!B27)=TRUE,100,IF(Categorieën!B27>Categorieën!$B$9:$B$48,1,0)))+ROW()/100","v":20.2},{"$f":"SMALL($H$2:$H$41,ROW()-1)","v":22.13},{"$f":"SUM(IF(I20=$H$2:$H$41,$F$2:$F$41,0))","v":12},{"$f":"IF(ISBLANK(VLOOKUP($J20,$F$2:$G$41,2))=TRUE,\"\",VLOOKUP($J20,$F$2:$G$41,2))","v":"persoonlijke gegevens: historiek lidmaatschap (begindatum, hernieuwingen, einddatum lidmaatschap)"},null,19,{"$f":"IF(ISBLANK(Categorieën!B69)=TRUE,\" \",Categorieën!B69)","v":" "},{"$f":"SUM(IF(ISBLANK(Categorieën!B69)=TRUE,100,IF(Categorieën!B69>Categorieën!$B$51:$B$80,1,0)))+ROW()/100","v":100.2},{"$f":"SMALL($O$2:$O$31,ROW()-1)","v":100.2},{"$f":"SUM(IF(P20=$O$2:$O$31,$M$2:$M$31,0))","v":19},{"$f":"IF(ISBLANK(VLOOKUP($Q20,$M$2:$N$31,2))=TRUE,\"\",VLOOKUP($Q20,$M$2:$N$31,2))","v":" "},null,19,{"$f":"IF(ISBLANK(Categorieën!B101)=TRUE,\" \",Categorieën!B101)","v":" "},{"$f":"SUM(IF(ISBLANK(Categorieën!B101)=TRUE,100,IF(Categorieën!B101>Categorieën!$B$83:$B$112,1,0)))+ROW()/100","v":100.2},{"$f":"SMALL($V$2:$V$31,ROW()-1)","v":100.2},{"$f":"SUM(IF(W20=$V$2:$V$31,$T$2:$T$31,0))","v":19},{"$f":"IF(ISBLANK(VLOOKUP($X20,$T$2:$U$31,2))=TRUE,\"\",VLOOKUP($X20,$T$2:$U$31,2))","v":" "},null,19,{"$f":"IF(ISBLANK(Categorieën!B133)=TRUE,\" \",Categorieën!B133)","v":" "},{"$f":"SUM(IF(ISBLANK(Categorieën!B133)=TRUE,100,IF(Categorieën!B133>Categorieën!$B$115:$B$144,1,0)))+ROW()/100","v":100.2},{"$f":"SMALL($AC$2:$AC$31,ROW()-1)","v":100.2},{"$f":"SUM(IF(AD20=$AC$2:$AC$31,$AA$2:$AA$31,0))","v":19},{"$f":"IF(ISBLANK(VLOOKUP($AE20,$AA$2:$AB$31,2))=TRUE,\"\",VLOOKUP($AE20,$AA$2:$AB$31,2))","v":" "},null,19,{"$f":"IF(ISBLANK(Categorieën!B165)=TRUE,\" \",Categorieën!B165)","v":" "},{"$f":"SUM(IF(ISBLANK(Categorieën!B165)=TRUE,100,IF(Categorieën!B165>Categorieën!$B$147:$B$181,1,0)))+ROW()/100","v":100.2},{"$f":"SMALL($AJ$2:$AJ$36,ROW()-1)","v":32.020000000000003},{"$f":"SUM(IF(AK20=$AJ$2:$AJ$36,$AH$2:$AH$36,0))","v":1},{"$f":"IF(ISBLANK(VLOOKUP($AL20,$AH$2:$AI$36,2))=TRUE,\"\",VLOOKUP($AL20,$AH$2:$AI$36,2))","v":"verwerking gegevens clubleden i.f.v. doorgave ongevalsaangifte aan verzekeringsmaatschappij"},null,19,{"$f":"IF(ISBLANK(Categorieën!B202)=TRUE,\" \",Categorieën!B202)","v":" "},{"$f":"SUM(IF(ISBLANK(Categorieën!B202)=TRUE,100,IF(Categorieën!B202>Categorieën!$B$184:$B$213,1,0)))+ROW()/100","v":100.2},{"$f":"SMALL($AQ$2:$AQ$31,ROW()-1)","v":100.2},{"$f":"SUM(IF(AR20=$AQ$2:$AQ$31,$AO$2:$AO$31,0))","v":19},{"$f":"IF(ISBLANK(VLOOKUP($AS20,$AO$2:$AP$31,2))=TRUE,\"\",VLOOKUP($AS20,$AO$2:$AP$31,2))","v":" "}]
[null,null,null,null,null,20,{"$f":"IF(ISBLANK(Categorieën!B28)=TRUE,\" \",Categorieën!B28)","v":"persoonlijke gegevens: vrijetijdsactiviteiten en interesses (hobby's, sporten)"},{"$f":"SUM(IF(ISBLANK(Categorieën!B28)=TRUE,100,IF(Categorieën!B28>Categorieën!$B$9:$B$48,1,0)))+ROW()/100","v":34.21},{"$f":"SMALL($H$2:$H$41,ROW()-1)","v":23.04},{"$f":"SUM(IF(I21=$H$2:$H$41,$F$2:$F$41,0))","v":3},{"$f":"IF(ISBLANK(VLOOKUP($J21,$F$2:$G$41,2))=TRUE,\"\",VLOOKUP($J21,$F$2:$G$41,2))","v":"persoonlijke gegevens: intern lidnummer"},null,20,{"$f":"IF(ISBLANK(Categorieën!B70)=TRUE,\" \",Categorieën!B70)","v":" "},{"$f":"SUM(IF(ISBLANK(Categorieën!B70)=TRUE,100,IF(Categorieën!B70>Categorieën!$B$51:$B$80,1,0)))+ROW()/100","v":100.21},{"$f":"SMALL($O$2:$O$31,ROW()-1)","v":100.21},{"$f":"SUM(IF(P21=$O$2:$O$31,$M$2:$M$31,0))","v":20},{"$f":"IF(ISBLANK(VLOOKUP($Q21,$M$2:$N$31,2))=TRUE,\"\",VLOOKUP($Q21,$M$2:$N$31,2))","v":" "},null,20,{"$f":"IF(ISBLANK(Categorieën!B102)=TRUE,\" \",Categorieën!B102)","v":" "},{"$f":"SUM(IF(ISBLANK(Categorieën!B102)=TRUE,100,IF(Categorieën!B102>Categorieën!$B$83:$B$112,1,0)))+ROW()/100","v":100.21},{"$f":"SMALL($V$2:$V$31,ROW()-1)","v":100.21},{"$f":"SUM(IF(W21=$V$2:$V$31,$T$2:$T$31,0))","v":20},{"$f":"IF(ISBLANK(VLOOKUP($X21,$T$2:$U$31,2))=TRUE,\"\",VLOOKUP($X21,$T$2:$U$31,2))","v":" "},null,20,{"$f":"IF(ISBLANK(Categorieën!B134)=TRUE,\" \",Categorieën!B134)","v":" "},{"$f":"SUM(IF(ISBLANK(Categorieën!B134)=TRUE,100,IF(Categorieën!B134>Categorieën!$B$115:$B$144,1,0)))+ROW()/100","v":100.21},{"$f":"SMALL($AC$2:$AC$31,ROW()-1)","v":100.21},{"$f":"SUM(IF(AD21=$AC$2:$AC$31,$AA$2:$AA$31,0))","v":20},{"$f":"IF(ISBLANK(VLOOKUP($AE21,$AA$2:$AB$31,2))=TRUE,\"\",VLOOKUP($AE21,$AA$2:$AB$31,2))","v":" "},null,20,{"$f":"IF(ISBLANK(Categorieën!B166)=TRUE,\" \",Categorieën!B166)","v":"afnemen examens judograden : bijhouden resultaten ifv vorming judoka's"},{"$f":"SUM(IF(ISBLANK(Categorieën!B166)=TRUE,100,IF(Categorieën!B166>Categorieën!$B$147:$B$181,1,0)))+ROW()/100","v":16.21},{"$f":"SMALL($AJ$2:$AJ$36,ROW()-1)","v":33.03},{"$f":"SUM(IF(AK21=$AJ$2:$AJ$36,$AH$2:$AH$36,0))","v":2},{"$f":"IF(ISBLANK(VLOOKUP($AL21,$AH$2:$AI$36,2))=TRUE,\"\",VLOOKUP($AL21,$AH$2:$AI$36,2))","v":"verwerking gegevens i.f.v. lidmaatschap vb. betaling,verzekering controleren)"},null,20,{"$f":"IF(ISBLANK(Categorieën!B203)=TRUE,\" \",Categorieën!B203)","v":" "},{"$f":"SUM(IF(ISBLANK(Categorieën!B203)=TRUE,100,IF(Categorieën!B203>Categorieën!$B$184:$B$213,1,0)))+ROW()/100","v":100.21},{"$f":"SMALL($AQ$2:$AQ$31,ROW()-1)","v":100.21},{"$f":"SUM(IF(AR21=$AQ$2:$AQ$31,$AO$2:$AO$31,0))","v":20},{"$f":"IF(ISBLANK(VLOOKUP($AS21,$AO$2:$AP$31,2))=TRUE,\"\",VLOOKUP($AS21,$AO$2:$AP$31,2))","v":" "}]
[null,null,null,null,null,21,{"$f":"IF(ISBLANK(Categorieën!B29)=TRUE,\" \",Categorieën!B29)","v":"persoonlijke gegevens : datum van ongeval en omstandigheden"},{"$f":"SUM(IF(ISBLANK(Categorieën!B29)=TRUE,100,IF(Categorieën!B29>Categorieën!$B$9:$B$48,1,0)))+ROW()/100","v":12.22},{"$f":"SMALL($H$2:$H$41,ROW()-1)","v":24.15},{"$f":"SUM(IF(I22=$H$2:$H$41,$F$2:$F$41,0))","v":14},{"$f":"IF(ISBLANK(VLOOKUP($J22,$F$2:$G$41,2))=TRUE,\"\",VLOOKUP($J22,$F$2:$G$41,2))","v":"persoonlijke gegevens: judograad"},null,21,{"$f":"IF(ISBLANK(Categorieën!B71)=TRUE,\" \",Categorieën!B71)","v":" "},{"$f":"SUM(IF(ISBLANK(Categorieën!B71)=TRUE,100,IF(Categorieën!B71>Categorieën!$B$51:$B$80,1,0)))+ROW()/100","v":100.22},{"$f":"SMALL($O$2:$O$31,ROW()-1)","v":100.22},{"$f":"SUM(IF(P22=$O$2:$O$31,$M$2:$M$31,0))","v":21},{"$f":"IF(ISBLANK(VLOOKUP($Q22,$M$2:$N$31,2))=TRUE,\"\",VLOOKUP($Q22,$M$2:$N$31,2))","v":" "},null,21,{"$f":"IF(ISBLANK(Categorieën!B103)=TRUE,\" \",Categorieën!B103)","v":" "},{"$f":"SUM(IF(ISBLANK(Categorieën!B103)=TRUE,100,IF(Categorieën!B103>Categorieën!$B$83:$B$112,1,0)))+ROW()/100","v":100.22},{"$f":"SMALL($V$2:$V$31,ROW()-1)","v":100.22},{"$f":"SUM(IF(W22=$V$2:$V$31,$T$2:$T$31,0))","v":21},{"$f":"IF(ISBLANK(VLOOKUP($X22,$T$2:$U$31,2))=TRUE,\"\",VLOOKUP($X22,$T$2:$U$31,2))","v":" "},null,21,{"$f":"IF(ISBLANK(Categorieën!B135)=TRUE,\" \",Categorieën!B135)","v":" "},{"$f":"SUM(IF(ISBLANK(Categorieën!B135)=TRUE,100,IF(Categorieën!B135>Categorieën!$B$115:$B$144,1,0)))+ROW()/100","v":100.22},{"$f":"SMALL($AC$2:$AC$31,ROW()-1)","v":100.22},{"$f":"SUM(IF(AD22=$AC$2:$AC$31,$AA$2:$AA$31,0))","v":21},{"$f":"IF(ISBLANK(VLOOKUP($AE22,$AA$2:$AB$31,2))=TRUE,\"\",VLOOKUP($AE22,$AA$2:$AB$31,2))","v":" "},null,21,{"$f":"IF(ISBLANK(Categorieën!B167)=TRUE,\" \",Categorieën!B167)","v":"bijhouden aanwezigheden op trainingen"},{"$f":"SUM(IF(ISBLANK(Categorieën!B167)=TRUE,100,IF(Categorieën!B167>Categorieën!$B$147:$B$181,1,0)))+ROW()/100","v":17.22},{"$f":"SMALL($AJ$2:$AJ$36,ROW()-1)","v":34.14},{"$f":"SUM(IF(AK22=$AJ$2:$AJ$36,$AH$2:$AH$36,0))","v":13},{"$f":"IF(ISBLANK(VLOOKUP($AL22,$AH$2:$AI$36,2))=TRUE,\"\",VLOOKUP($AL22,$AH$2:$AI$36,2))","v":"videostreaming tijdens organiseren van een judowedstrijd"},null,21,{"$f":"IF(ISBLANK(Categorieën!B204)=TRUE,\" \",Categorieën!B204)","v":" "},{"$f":"SUM(IF(ISBLANK(Categorieën!B204)=TRUE,100,IF(Categorieën!B204>Categorieën!$B$184:$B$213,1,0)))+ROW()/100","v":100.22},{"$f":"SMALL($AQ$2:$AQ$31,ROW()-1)","v":100.22},{"$f":"SUM(IF(AR22=$AQ$2:$AQ$31,$AO$2:$AO$31,0))","v":21},{"$f":"IF(ISBLANK(VLOOKUP($AS22,$AO$2:$AP$31,2))=TRUE,\"\",VLOOKUP($AS22,$AO$2:$AP$31,2))","v":" "}]
[null,null,null,null,null,22,{"$f":"IF(ISBLANK(Categorieën!B30)=TRUE,\" \",Categorieën!B30)","v":"gevoelige gegevens: gegevens betreffende lichamelijke of psychische gezondheid (medische fiches): medisch dossier, medisch verslag, diagnose-informatie, behandeling, handicap, andere bijzondere vereisten i.v.m. gezondheid "},{"$f":"SUM(IF(ISBLANK(Categorieën!B30)=TRUE,100,IF(Categorieën!B30>Categorieën!$B$9:$B$48,1,0)))+ROW()/100","v":8.23},{"$f":"SMALL($H$2:$H$41,ROW()-1)","v":25.09},{"$f":"SUM(IF(I23=$H$2:$H$41,$F$2:$F$41,0))","v":8},{"$f":"IF(ISBLANK(VLOOKUP($J23,$F$2:$G$41,2))=TRUE,\"\",VLOOKUP($J23,$F$2:$G$41,2))","v":"persoonlijke gegevens: mailadres"},null,22,{"$f":"IF(ISBLANK(Categorieën!B72)=TRUE,\" \",Categorieën!B72)","v":" "},{"$f":"SUM(IF(ISBLANK(Categorieën!B72)=TRUE,100,IF(Categorieën!B72>Categorieën!$B$51:$B$80,1,0)))+ROW()/100","v":100.23},{"$f":"SMALL($O$2:$O$31,ROW()-1)","v":100.23},{"$f":"SUM(IF(P23=$O$2:$O$31,$M$2:$M$31,0))","v":22},{"$f":"IF(ISBLANK(VLOOKUP($Q23,$M$2:$N$31,2))=TRUE,\"\",VLOOKUP($Q23,$M$2:$N$31,2))","v":" "},null,22,{"$f":"IF(ISBLANK(Categorieën!B104)=TRUE,\" \",Categorieën!B104)","v":" "},{"$f":"SUM(IF(ISBLANK(Categorieën!B104)=TRUE,100,IF(Categorieën!B104>Categorieën!$B$83:$B$112,1,0)))+ROW()/100","v":100.23},{"$f":"SMALL($V$2:$V$31,ROW()-1)","v":100.23},{"$f":"SUM(IF(W23=$V$2:$V$31,$T$2:$T$31,0))","v":22},{"$f":"IF(ISBLANK(VLOOKUP($X23,$T$2:$U$31,2))=TRUE,\"\",VLOOKUP($X23,$T$2:$U$31,2))","v":" "},null,22,{"$f":"IF(ISBLANK(Categorieën!B136)=TRUE,\" \",Categorieën!B136)","v":" "},{"$f":"SUM(IF(ISBLANK(Categorieën!B136)=TRUE,100,IF(Categorieën!B136>Categorieën!$B$115:$B$144,1,0)))+ROW()/100","v":100.23},{"$f":"SMALL($AC$2:$AC$31,ROW()-1)","v":100.23},{"$f":"SUM(IF(AD23=$AC$2:$AC$31,$AA$2:$AA$31,0))","v":22},{"$f":"IF(ISBLANK(VLOOKUP($AE23,$AA$2:$AB$31,2))=TRUE,\"\",VLOOKUP($AE23,$AA$2:$AB$31,2))","v":" "},null,22,{"$f":"IF(ISBLANK(Categorieën!B168)=TRUE,\" \",Categorieën!B168)","v":"organiseren van extra-sportgerelateerde activiteiten (judokampen/stages: informeren, controle betalingen)"},{"$f":"SUM(IF(ISBLANK(Categorieën!B168)=TRUE,100,IF(Categorieën!B168>Categorieën!$B$147:$B$181,1,0)))+ROW()/100","v":28.23},{"$f":"SMALL($AJ$2:$AJ$36,ROW()-1)","v":100.09},{"$f":"SUM(IF(AK23=$AJ$2:$AJ$36,$AH$2:$AH$36,0))","v":8},{"$f":"IF(ISBLANK(VLOOKUP($AL23,$AH$2:$AI$36,2))=TRUE,\"\",VLOOKUP($AL23,$AH$2:$AI$36,2))","v":" "},null,22,{"$f":"IF(ISBLANK(Categorieën!B205)=TRUE,\" \",Categorieën!B205)","v":" "},{"$f":"SUM(IF(ISBLANK(Categorieën!B205)=TRUE,100,IF(Categorieën!B205>Categorieën!$B$184:$B$213,1,0)))+ROW()/100","v":100.23},{"$f":"SMALL($AQ$2:$AQ$31,ROW()-1)","v":100.23},{"$f":"SUM(IF(AR23=$AQ$2:$AQ$31,$AO$2:$AO$31,0))","v":22},{"$f":"IF(ISBLANK(VLOOKUP($AS23,$AO$2:$AP$31,2))=TRUE,\"\",VLOOKUP($AS23,$AO$2:$AP$31,2))","v":" "}]
[null,null,null,null,null,23,{"$f":"IF(ISBLANK(Categorieën!B31)=TRUE,\" \",Categorieën!B31)","v":"gevoelige gegevens: dieten, allergieën"},{"$f":"SUM(IF(ISBLANK(Categorieën!B31)=TRUE,100,IF(Categorieën!B31>Categorieën!$B$9:$B$48,1,0)))+ROW()/100","v":7.24},{"$f":"SMALL($H$2:$H$41,ROW()-1)","v":26.05},{"$f":"SUM(IF(I24=$H$2:$H$41,$F$2:$F$41,0))","v":4},{"$f":"IF(ISBLANK(VLOOKUP($J24,$F$2:$G$41,2))=TRUE,\"\",VLOOKUP($J24,$F$2:$G$41,2))","v":"persoonlijke gegevens: naam + voornaam"},null,23,{"$f":"IF(ISBLANK(Categorieën!B73)=TRUE,\" \",Categorieën!B73)","v":" "},{"$f":"SUM(IF(ISBLANK(Categorieën!B73)=TRUE,100,IF(Categorieën!B73>Categorieën!$B$51:$B$80,1,0)))+ROW()/100","v":100.24},{"$f":"SMALL($O$2:$O$31,ROW()-1)","v":100.24},{"$f":"SUM(IF(P24=$O$2:$O$31,$M$2:$M$31,0))","v":23},{"$f":"IF(ISBLANK(VLOOKUP($Q24,$M$2:$N$31,2))=TRUE,\"\",VLOOKUP($Q24,$M$2:$N$31,2))","v":" "},null,23,{"$f":"IF(ISBLANK(Categorieën!B105)=TRUE,\" \",Categorieën!B105)","v":" "},{"$f":"SUM(IF(ISBLANK(Categorieën!B105)=TRUE,100,IF(Categorieën!B105>Categorieën!$B$83:$B$112,1,0)))+ROW()/100","v":100.24},{"$f":"SMALL($V$2:$V$31,ROW()-1)","v":100.24},{"$f":"SUM(IF(W24=$V$2:$V$31,$T$2:$T$31,0))","v":23},{"$f":"IF(ISBLANK(VLOOKUP($X24,$T$2:$U$31,2))=TRUE,\"\",VLOOKUP($X24,$T$2:$U$31,2))","v":" "},null,23,{"$f":"IF(ISBLANK(Categorieën!B137)=TRUE,\" \",Categorieën!B137)","v":" "},{"$f":"SUM(IF(ISBLANK(Categorieën!B137)=TRUE,100,IF(Categorieën!B137>Categorieën!$B$115:$B$144,1,0)))+ROW()/100","v":100.24},{"$f":"SMALL($AC$2:$AC$31,ROW()-1)","v":100.24},{"$f":"SUM(IF(AD24=$AC$2:$AC$31,$AA$2:$AA$31,0))","v":23},{"$f":"IF(ISBLANK(VLOOKUP($AE24,$AA$2:$AB$31,2))=TRUE,\"\",VLOOKUP($AE24,$AA$2:$AB$31,2))","v":" "},null,23,{"$f":"IF(ISBLANK(Categorieën!B169)=TRUE,\" \",Categorieën!B169)","v":"administratie van leden, vrijwilligers en sympathisanten bij clubactiviteiten"},{"$f":"SUM(IF(ISBLANK(Categorieën!B169)=TRUE,100,IF(Categorieën!B169>Categorieën!$B$147:$B$181,1,0)))+ROW()/100","v":15.24},{"$f":"SMALL($AJ$2:$AJ$36,ROW()-1)","v":100.17},{"$f":"SUM(IF(AK24=$AJ$2:$AJ$36,$AH$2:$AH$36,0))","v":16},{"$f":"IF(ISBLANK(VLOOKUP($AL24,$AH$2:$AI$36,2))=TRUE,\"\",VLOOKUP($AL24,$AH$2:$AI$36,2))","v":" "},null,23,{"$f":"IF(ISBLANK(Categorieën!B206)=TRUE,\" \",Categorieën!B206)","v":" "},{"$f":"SUM(IF(ISBLANK(Categorieën!B206)=TRUE,100,IF(Categorieën!B206>Categorieën!$B$184:$B$213,1,0)))+ROW()/100","v":100.24},{"$f":"SMALL($AQ$2:$AQ$31,ROW()-1)","v":100.24},{"$f":"SUM(IF(AR24=$AQ$2:$AQ$31,$AO$2:$AO$31,0))","v":23},{"$f":"IF(ISBLANK(VLOOKUP($AS24,$AO$2:$AP$31,2))=TRUE,\"\",VLOOKUP($AS24,$AO$2:$AP$31,2))","v":" "}]
[null,null,null,null,null,24,{"$f":"IF(ISBLANK(Categorieën!B32)=TRUE,\" \",Categorieën!B32)","v":"gevoelige gegevens: gezondheidsattesten van dokter"},{"$f":"SUM(IF(ISBLANK(Categorieën!B32)=TRUE,100,IF(Categorieën!B32>Categorieën!$B$9:$B$48,1,0)))+ROW()/100","v":9.25},{"$f":"SMALL($H$2:$H$41,ROW()-1)","v":27.06},{"$f":"SUM(IF(I25=$H$2:$H$41,$F$2:$F$41,0))","v":5},{"$f":"IF(ISBLANK(VLOOKUP($J25,$F$2:$G$41,2))=TRUE,\"\",VLOOKUP($J25,$F$2:$G$41,2))","v":"persoonlijke gegevens: naam + voornaam + clubnummer + clubnaam + judograad + uniek ID-nummer + geslacht + nationaliteit"},null,24,{"$f":"IF(ISBLANK(Categorieën!B74)=TRUE,\" \",Categorieën!B74)","v":" "},{"$f":"SUM(IF(ISBLANK(Categorieën!B74)=TRUE,100,IF(Categorieën!B74>Categorieën!$B$51:$B$80,1,0)))+ROW()/100","v":100.25},{"$f":"SMALL($O$2:$O$31,ROW()-1)","v":100.25},{"$f":"SUM(IF(P25=$O$2:$O$31,$M$2:$M$31,0))","v":24},{"$f":"IF(ISBLANK(VLOOKUP($Q25,$M$2:$N$31,2))=TRUE,\"\",VLOOKUP($Q25,$M$2:$N$31,2))","v":" "},null,24,{"$f":"IF(ISBLANK(Categorieën!B106)=TRUE,\" \",Categorieën!B106)","v":" "},{"$f":"SUM(IF(ISBLANK(Categorieën!B106)=TRUE,100,IF(Categorieën!B106>Categorieën!$B$83:$B$112,1,0)))+ROW()/100","v":100.25},{"$f":"SMALL($V$2:$V$31,ROW()-1)","v":100.25},{"$f":"SUM(IF(W25=$V$2:$V$31,$T$2:$T$31,0))","v":24},{"$f":"IF(ISBLANK(VLOOKUP($X25,$T$2:$U$31,2))=TRUE,\"\",VLOOKUP($X25,$T$2:$U$31,2))","v":" "},null,24,{"$f":"IF(ISBLANK(Categorieën!B138)=TRUE,\" \",Categorieën!B138)","v":" "},{"$f":"SUM(IF(ISBLANK(Categorieën!B138)=TRUE,100,IF(Categorieën!B138>Categorieën!$B$115:$B$144,1,0)))+ROW()/100","v":100.25},{"$f":"SMALL($AC$2:$AC$31,ROW()-1)","v":100.25},{"$f":"SUM(IF(AD25=$AC$2:$AC$31,$AA$2:$AA$31,0))","v":24},{"$f":"IF(ISBLANK(VLOOKUP($AE25,$AA$2:$AB$31,2))=TRUE,\"\",VLOOKUP($AE25,$AA$2:$AB$31,2))","v":" "},null,24,{"$f":"IF(ISBLANK(Categorieën!B170)=TRUE,\" \",Categorieën!B170)","v":"inschrijven stages bij externe organisator"},{"$f":"SUM(IF(ISBLANK(Categorieën!B170)=TRUE,100,IF(Categorieën!B170>Categorieën!$B$147:$B$181,1,0)))+ROW()/100","v":22.25},{"$f":"SMALL($AJ$2:$AJ$36,ROW()-1)","v":100.2},{"$f":"SUM(IF(AK25=$AJ$2:$AJ$36,$AH$2:$AH$36,0))","v":19},{"$f":"IF(ISBLANK(VLOOKUP($AL25,$AH$2:$AI$36,2))=TRUE,\"\",VLOOKUP($AL25,$AH$2:$AI$36,2))","v":" "},null,24,{"$f":"IF(ISBLANK(Categorieën!B207)=TRUE,\" \",Categorieën!B207)","v":" "},{"$f":"SUM(IF(ISBLANK(Categorieën!B207)=TRUE,100,IF(Categorieën!B207>Categorieën!$B$184:$B$213,1,0)))+ROW()/100","v":100.25},{"$f":"SMALL($AQ$2:$AQ$31,ROW()-1)","v":100.25},{"$f":"SUM(IF(AR25=$AQ$2:$AQ$31,$AO$2:$AO$31,0))","v":24},{"$f":"IF(ISBLANK(VLOOKUP($AS25,$AO$2:$AP$31,2))=TRUE,\"\",VLOOKUP($AS25,$AO$2:$AP$31,2))","v":" "}]
[null,null,null,null,null,25,{"$f":"IF(ISBLANK(Categorieën!B33)=TRUE,\" \",Categorieën!B33)","v":"gevoelige gegevens: overheidsvoordelen"},{"$f":"SUM(IF(ISBLANK(Categorieën!B33)=TRUE,100,IF(Categorieën!B33>Categorieën!$B$9:$B$48,1,0)))+ROW()/100","v":10.26},{"$f":"SMALL($H$2:$H$41,ROW()-1)","v":28.07},{"$f":"SUM(IF(I26=$H$2:$H$41,$F$2:$F$41,0))","v":6},{"$f":"IF(ISBLANK(VLOOKUP($J26,$F$2:$G$41,2))=TRUE,\"\",VLOOKUP($J26,$F$2:$G$41,2))","v":"persoonlijke gegevens: naam + voornaam + clubnummer + clubnaam + uniek ID-nummer + nationaliteit"},null,25,{"$f":"IF(ISBLANK(Categorieën!B75)=TRUE,\" \",Categorieën!B75)","v":" "},{"$f":"SUM(IF(ISBLANK(Categorieën!B75)=TRUE,100,IF(Categorieën!B75>Categorieën!$B$51:$B$80,1,0)))+ROW()/100","v":100.26},{"$f":"SMALL($O$2:$O$31,ROW()-1)","v":100.26},{"$f":"SUM(IF(P26=$O$2:$O$31,$M$2:$M$31,0))","v":25},{"$f":"IF(ISBLANK(VLOOKUP($Q26,$M$2:$N$31,2))=TRUE,\"\",VLOOKUP($Q26,$M$2:$N$31,2))","v":" "},null,25,{"$f":"IF(ISBLANK(Categorieën!B107)=TRUE,\" \",Categorieën!B107)","v":" "},{"$f":"SUM(IF(ISBLANK(Categorieën!B107)=TRUE,100,IF(Categorieën!B107>Categorieën!$B$83:$B$112,1,0)))+ROW()/100","v":100.26},{"$f":"SMALL($V$2:$V$31,ROW()-1)","v":100.26},{"$f":"SUM(IF(W26=$V$2:$V$31,$T$2:$T$31,0))","v":25},{"$f":"IF(ISBLANK(VLOOKUP($X26,$T$2:$U$31,2))=TRUE,\"\",VLOOKUP($X26,$T$2:$U$31,2))","v":" "},null,25,{"$f":"IF(ISBLANK(Categorieën!B139)=TRUE,\" \",Categorieën!B139)","v":" "},{"$f":"SUM(IF(ISBLANK(Categorieën!B139)=TRUE,100,IF(Categorieën!B139>Categorieën!$B$115:$B$144,1,0)))+ROW()/100","v":100.26},{"$f":"SMALL($AC$2:$AC$31,ROW()-1)","v":100.26},{"$f":"SUM(IF(AD26=$AC$2:$AC$31,$AA$2:$AA$31,0))","v":25},{"$f":"IF(ISBLANK(VLOOKUP($AE26,$AA$2:$AB$31,2))=TRUE,\"\",VLOOKUP($AE26,$AA$2:$AB$31,2))","v":" "},null,25,{"$f":"IF(ISBLANK(Categorieën!B171)=TRUE,\" \",Categorieën!B171)","v":" "},{"$f":"SUM(IF(ISBLANK(Categorieën!B171)=TRUE,100,IF(Categorieën!B171>Categorieën!$B$147:$B$181,1,0)))+ROW()/100","v":100.26},{"$f":"SMALL($AJ$2:$AJ$36,ROW()-1)","v":100.26},{"$f":"SUM(IF(AK26=$AJ$2:$AJ$36,$AH$2:$AH$36,0))","v":25},{"$f":"IF(ISBLANK(VLOOKUP($AL26,$AH$2:$AI$36,2))=TRUE,\"\",VLOOKUP($AL26,$AH$2:$AI$36,2))","v":" "},null,25,{"$f":"IF(ISBLANK(Categorieën!B208)=TRUE,\" \",Categorieën!B208)","v":" "},{"$f":"SUM(IF(ISBLANK(Categorieën!B208)=TRUE,100,IF(Categorieën!B208>Categorieën!$B$184:$B$213,1,0)))+ROW()/100","v":100.26},{"$f":"SMALL($AQ$2:$AQ$31,ROW()-1)","v":100.26},{"$f":"SUM(IF(AR26=$AQ$2:$AQ$31,$AO$2:$AO$31,0))","v":25},{"$f":"IF(ISBLANK(VLOOKUP($AS26,$AO$2:$AP$31,2))=TRUE,\"\",VLOOKUP($AS26,$AO$2:$AP$31,2))","v":" "}]
[null,null,null,null,null,26,{"$f":"IF(ISBLANK(Categorieën!B34)=TRUE,\" \",Categorieën!B34)","v":"gevoelige gegevens: al dan niet G-judoka"},{"$f":"SUM(IF(ISBLANK(Categorieën!B34)=TRUE,100,IF(Categorieën!B34>Categorieën!$B$9:$B$48,1,0)))+ROW()/100","v":6.27},{"$f":"SMALL($H$2:$H$41,ROW()-1)","v":29.14},{"$f":"SUM(IF(I27=$H$2:$H$41,$F$2:$F$41,0))","v":13},{"$f":"IF(ISBLANK(VLOOKUP($J27,$F$2:$G$41,2))=TRUE,\"\",VLOOKUP($J27,$F$2:$G$41,2))","v":"persoonlijke gegevens: nationaliteit"},null,26,{"$f":"IF(ISBLANK(Categorieën!B76)=TRUE,\" \",Categorieën!B76)","v":" "},{"$f":"SUM(IF(ISBLANK(Categorieën!B76)=TRUE,100,IF(Categorieën!B76>Categorieën!$B$51:$B$80,1,0)))+ROW()/100","v":100.27},{"$f":"SMALL($O$2:$O$31,ROW()-1)","v":100.27},{"$f":"SUM(IF(P27=$O$2:$O$31,$M$2:$M$31,0))","v":26},{"$f":"IF(ISBLANK(VLOOKUP($Q27,$M$2:$N$31,2))=TRUE,\"\",VLOOKUP($Q27,$M$2:$N$31,2))","v":" "},null,26,{"$f":"IF(ISBLANK(Categorieën!B108)=TRUE,\" \",Categorieën!B108)","v":" "},{"$f":"SUM(IF(ISBLANK(Categorieën!B108)=TRUE,100,IF(Categorieën!B108>Categorieën!$B$83:$B$112,1,0)))+ROW()/100","v":100.27},{"$f":"SMALL($V$2:$V$31,ROW()-1)","v":100.27},{"$f":"SUM(IF(W27=$V$2:$V$31,$T$2:$T$31,0))","v":26},{"$f":"IF(ISBLANK(VLOOKUP($X27,$T$2:$U$31,2))=TRUE,\"\",VLOOKUP($X27,$T$2:$U$31,2))","v":" "},null,26,{"$f":"IF(ISBLANK(Categorieën!B140)=TRUE,\" \",Categorieën!B140)","v":" "},{"$f":"SUM(IF(ISBLANK(Categorieën!B140)=TRUE,100,IF(Categorieën!B140>Categorieën!$B$115:$B$144,1,0)))+ROW()/100","v":100.27},{"$f":"SMALL($AC$2:$AC$31,ROW()-1)","v":100.27},{"$f":"SUM(IF(AD27=$AC$2:$AC$31,$AA$2:$AA$31,0))","v":26},{"$f":"IF(ISBLANK(VLOOKUP($AE27,$AA$2:$AB$31,2))=TRUE,\"\",VLOOKUP($AE27,$AA$2:$AB$31,2))","v":" "},null,26,{"$f":"IF(ISBLANK(Categorieën!B172)=TRUE,\" \",Categorieën!B172)","v":" "},{"$f":"SUM(IF(ISBLANK(Categorieën!B172)=TRUE,100,IF(Categorieën!B172>Categorieën!$B$147:$B$181,1,0)))+ROW()/100","v":100.27},{"$f":"SMALL($AJ$2:$AJ$36,ROW()-1)","v":100.27},{"$f":"SUM(IF(AK27=$AJ$2:$AJ$36,$AH$2:$AH$36,0))","v":26},{"$f":"IF(ISBLANK(VLOOKUP($AL27,$AH$2:$AI$36,2))=TRUE,\"\",VLOOKUP($AL27,$AH$2:$AI$36,2))","v":" "},null,26,{"$f":"IF(ISBLANK(Categorieën!B209)=TRUE,\" \",Categorieën!B209)","v":" "},{"$f":"SUM(IF(ISBLANK(Categorieën!B209)=TRUE,100,IF(Categorieën!B209>Categorieën!$B$184:$B$213,1,0)))+ROW()/100","v":100.27},{"$f":"SMALL($AQ$2:$AQ$31,ROW()-1)","v":100.27},{"$f":"SUM(IF(AR27=$AQ$2:$AQ$31,$AO$2:$AO$31,0))","v":26},{"$f":"IF(ISBLANK(VLOOKUP($AS27,$AO$2:$AP$31,2))=TRUE,\"\",VLOOKUP($AS27,$AO$2:$AP$31,2))","v":" "}]
[null,null,null,null,null,27,{"$f":"IF(ISBLANK(Categorieën!B35)=TRUE,\" \",Categorieën!B35)","v":"sportieve gegevens: verslagen en resultaten van wedstrijden"},{"$f":"SUM(IF(ISBLANK(Categorieën!B35)=TRUE,100,IF(Categorieën!B35>Categorieën!$B$9:$B$48,1,0)))+ROW()/100","v":38.28},{"$f":"SMALL($H$2:$H$41,ROW()-1)","v":30.18},{"$f":"SUM(IF(I28=$H$2:$H$41,$F$2:$F$41,0))","v":17},{"$f":"IF(ISBLANK(VLOOKUP($J28,$F$2:$G$41,2))=TRUE,\"\",VLOOKUP($J28,$F$2:$G$41,2))","v":"persoonlijke gegevens: Statuut sporter"},null,27,{"$f":"IF(ISBLANK(Categorieën!B77)=TRUE,\" \",Categorieën!B77)","v":" "},{"$f":"SUM(IF(ISBLANK(Categorieën!B77)=TRUE,100,IF(Categorieën!B77>Categorieën!$B$51:$B$80,1,0)))+ROW()/100","v":100.28},{"$f":"SMALL($O$2:$O$31,ROW()-1)","v":100.28},{"$f":"SUM(IF(P28=$O$2:$O$31,$M$2:$M$31,0))","v":27},{"$f":"IF(ISBLANK(VLOOKUP($Q28,$M$2:$N$31,2))=TRUE,\"\",VLOOKUP($Q28,$M$2:$N$31,2))","v":" "},null,27,{"$f":"IF(ISBLANK(Categorieën!B109)=TRUE,\" \",Categorieën!B109)","v":" "},{"$f":"SUM(IF(ISBLANK(Categorieën!B109)=TRUE,100,IF(Categorieën!B109>Categorieën!$B$83:$B$112,1,0)))+ROW()/100","v":100.28},{"$f":"SMALL($V$2:$V$31,ROW()-1)","v":100.28},{"$f":"SUM(IF(W28=$V$2:$V$31,$T$2:$T$31,0))","v":27},{"$f":"IF(ISBLANK(VLOOKUP($X28,$T$2:$U$31,2))=TRUE,\"\",VLOOKUP($X28,$T$2:$U$31,2))","v":" "},null,27,{"$f":"IF(ISBLANK(Categorieën!B141)=TRUE,\" \",Categorieën!B141)","v":" "},{"$f":"SUM(IF(ISBLANK(Categorieën!B141)=TRUE,100,IF(Categorieën!B141>Categorieën!$B$115:$B$144,1,0)))+ROW()/100","v":100.28},{"$f":"SMALL($AC$2:$AC$31,ROW()-1)","v":100.28},{"$f":"SUM(IF(AD28=$AC$2:$AC$31,$AA$2:$AA$31,0))","v":27},{"$f":"IF(ISBLANK(VLOOKUP($AE28,$AA$2:$AB$31,2))=TRUE,\"\",VLOOKUP($AE28,$AA$2:$AB$31,2))","v":" "},null,27,{"$f":"IF(ISBLANK(Categorieën!B173)=TRUE,\" \",Categorieën!B173)","v":" "},{"$f":"SUM(IF(ISBLANK(Categorieën!B173)=TRUE,100,IF(Categorieën!B173>Categorieën!$B$147:$B$181,1,0)))+ROW()/100","v":100.28},{"$f":"SMALL($AJ$2:$AJ$36,ROW()-1)","v":100.28},{"$f":"SUM(IF(AK28=$AJ$2:$AJ$36,$AH$2:$AH$36,0))","v":27},{"$f":"IF(ISBLANK(VLOOKUP($AL28,$AH$2:$AI$36,2))=TRUE,\"\",VLOOKUP($AL28,$AH$2:$AI$36,2))","v":" "},null,27,{"$f":"IF(ISBLANK(Categorieën!B210)=TRUE,\" \",Categorieën!B210)","v":" "},{"$f":"SUM(IF(ISBLANK(Categorieën!B210)=TRUE,100,IF(Categorieën!B210>Categorieën!$B$184:$B$213,1,0)))+ROW()/100","v":100.28},{"$f":"SMALL($AQ$2:$AQ$31,ROW()-1)","v":100.28},{"$f":"SUM(IF(AR28=$AQ$2:$AQ$31,$AO$2:$AO$31,0))","v":27},{"$f":"IF(ISBLANK(VLOOKUP($AS28,$AO$2:$AP$31,2))=TRUE,\"\",VLOOKUP($AS28,$AO$2:$AP$31,2))","v":" "}]
[null,null,null,null,null,28,{"$f":"IF(ISBLANK(Categorieën!B36)=TRUE,\" \",Categorieën!B36)","v":"sportieve gegevens: aanwezigheden op clubtrainingen (datums)"},{"$f":"SUM(IF(ISBLANK(Categorieën!B36)=TRUE,100,IF(Categorieën!B36>Categorieën!$B$9:$B$48,1,0)))+ROW()/100","v":35.29},{"$f":"SMALL($H$2:$H$41,ROW()-1)","v":31.08},{"$f":"SUM(IF(I29=$H$2:$H$41,$F$2:$F$41,0))","v":7},{"$f":"IF(ISBLANK(VLOOKUP($J29,$F$2:$G$41,2))=TRUE,\"\",VLOOKUP($J29,$F$2:$G$41,2))","v":"persoonlijke gegevens: straat + nummer + postcode + gemeente + land + mailadres + telefoon + GSM + fax"},null,28,{"$f":"IF(ISBLANK(Categorieën!B78)=TRUE,\" \",Categorieën!B78)","v":" "},{"$f":"SUM(IF(ISBLANK(Categorieën!B78)=TRUE,100,IF(Categorieën!B78>Categorieën!$B$51:$B$80,1,0)))+ROW()/100","v":100.29},{"$f":"SMALL($O$2:$O$31,ROW()-1)","v":100.29},{"$f":"SUM(IF(P29=$O$2:$O$31,$M$2:$M$31,0))","v":28},{"$f":"IF(ISBLANK(VLOOKUP($Q29,$M$2:$N$31,2))=TRUE,\"\",VLOOKUP($Q29,$M$2:$N$31,2))","v":" "},null,28,{"$f":"IF(ISBLANK(Categorieën!B110)=TRUE,\" \",Categorieën!B110)","v":" "},{"$f":"SUM(IF(ISBLANK(Categorieën!B110)=TRUE,100,IF(Categorieën!B110>Categorieën!$B$83:$B$112,1,0)))+ROW()/100","v":100.29},{"$f":"SMALL($V$2:$V$31,ROW()-1)","v":100.29},{"$f":"SUM(IF(W29=$V$2:$V$31,$T$2:$T$31,0))","v":28},{"$f":"IF(ISBLANK(VLOOKUP($X29,$T$2:$U$31,2))=TRUE,\"\",VLOOKUP($X29,$T$2:$U$31,2))","v":" "},null,28,{"$f":"IF(ISBLANK(Categorieën!B142)=TRUE,\" \",Categorieën!B142)","v":" "},{"$f":"SUM(IF(ISBLANK(Categorieën!B142)=TRUE,100,IF(Categorieën!B142>Categorieën!$B$115:$B$144,1,0)))+ROW()/100","v":100.29},{"$f":"SMALL($AC$2:$AC$31,ROW()-1)","v":100.29},{"$f":"SUM(IF(AD29=$AC$2:$AC$31,$AA$2:$AA$31,0))","v":28},{"$f":"IF(ISBLANK(VLOOKUP($AE29,$AA$2:$AB$31,2))=TRUE,\"\",VLOOKUP($AE29,$AA$2:$AB$31,2))","v":" "},null,28,{"$f":"IF(ISBLANK(Categorieën!B174)=TRUE,\" \",Categorieën!B174)","v":" "},{"$f":"SUM(IF(ISBLANK(Categorieën!B174)=TRUE,100,IF(Categorieën!B174>Categorieën!$B$147:$B$181,1,0)))+ROW()/100","v":100.29},{"$f":"SMALL($AJ$2:$AJ$36,ROW()-1)","v":100.29},{"$f":"SUM(IF(AK29=$AJ$2:$AJ$36,$AH$2:$AH$36,0))","v":28},{"$f":"IF(ISBLANK(VLOOKUP($AL29,$AH$2:$AI$36,2))=TRUE,\"\",VLOOKUP($AL29,$AH$2:$AI$36,2))","v":" "},null,28,{"$f":"IF(ISBLANK(Categorieën!B211)=TRUE,\" \",Categorieën!B211)","v":" "},{"$f":"SUM(IF(ISBLANK(Categorieën!B211)=TRUE,100,IF(Categorieën!B211>Categorieën!$B$184:$B$213,1,0)))+ROW()/100","v":100.29},{"$f":"SMALL($AQ$2:$AQ$31,ROW()-1)","v":100.29},{"$f":"SUM(IF(AR29=$AQ$2:$AQ$31,$AO$2:$AO$31,0))","v":28},{"$f":"IF(ISBLANK(VLOOKUP($AS29,$AO$2:$AP$31,2))=TRUE,\"\",VLOOKUP($AS29,$AO$2:$AP$31,2))","v":" "}]
[null,null,null,null,null,29,{"$f":"IF(ISBLANK(Categorieën!B37)=TRUE,\" \",Categorieën!B37)","v":"sportieve gegevens: gevolgde opleidingen, resultaten opleidingen, attesten van deelname aan opleidingen/bijscholingen"},{"$f":"SUM(IF(ISBLANK(Categorieën!B37)=TRUE,100,IF(Categorieën!B37>Categorieën!$B$9:$B$48,1,0)))+ROW()/100","v":36.299999999999997},{"$f":"SMALL($H$2:$H$41,ROW()-1)","v":32.1},{"$f":"SUM(IF(I30=$H$2:$H$41,$F$2:$F$41,0))","v":9},{"$f":"IF(ISBLANK(VLOOKUP($J30,$F$2:$G$41,2))=TRUE,\"\",VLOOKUP($J30,$F$2:$G$41,2))","v":"persoonlijke gegevens: telefoon-GSM-fax"},null,29,{"$f":"IF(ISBLANK(Categorieën!B79)=TRUE,\" \",Categorieën!B79)","v":" "},{"$f":"SUM(IF(ISBLANK(Categorieën!B79)=TRUE,100,IF(Categorieën!B79>Categorieën!$B$51:$B$80,1,0)))+ROW()/100","v":100.3},{"$f":"SMALL($O$2:$O$31,ROW()-1)","v":100.3},{"$f":"SUM(IF(P30=$O$2:$O$31,$M$2:$M$31,0))","v":29},{"$f":"IF(ISBLANK(VLOOKUP($Q30,$M$2:$N$31,2))=TRUE,\"\",VLOOKUP($Q30,$M$2:$N$31,2))","v":" "},null,29,{"$f":"IF(ISBLANK(Categorieën!B111)=TRUE,\" \",Categorieën!B111)","v":" "},{"$f":"SUM(IF(ISBLANK(Categorieën!B111)=TRUE,100,IF(Categorieën!B111>Categorieën!$B$83:$B$112,1,0)))+ROW()/100","v":100.3},{"$f":"SMALL($V$2:$V$31,ROW()-1)","v":100.3},{"$f":"SUM(IF(W30=$V$2:$V$31,$T$2:$T$31,0))","v":29},{"$f":"IF(ISBLANK(VLOOKUP($X30,$T$2:$U$31,2))=TRUE,\"\",VLOOKUP($X30,$T$2:$U$31,2))","v":" "},null,29,{"$f":"IF(ISBLANK(Categorieën!B143)=TRUE,\" \",Categorieën!B143)","v":" "},{"$f":"SUM(IF(ISBLANK(Categorieën!B143)=TRUE,100,IF(Categorieën!B143>Categorieën!$B$115:$B$144,1,0)))+ROW()/100","v":100.3},{"$f":"SMALL($AC$2:$AC$31,ROW()-1)","v":100.3},{"$f":"SUM(IF(AD30=$AC$2:$AC$31,$AA$2:$AA$31,0))","v":29},{"$f":"IF(ISBLANK(VLOOKUP($AE30,$AA$2:$AB$31,2))=TRUE,\"\",VLOOKUP($AE30,$AA$2:$AB$31,2))","v":" "},null,29,{"$f":"IF(ISBLANK(Categorieën!B175)=TRUE,\" \",Categorieën!B175)","v":" "},{"$f":"SUM(IF(ISBLANK(Categorieën!B175)=TRUE,100,IF(Categorieën!B175>Categorieën!$B$147:$B$181,1,0)))+ROW()/100","v":100.3},{"$f":"SMALL($AJ$2:$AJ$36,ROW()-1)","v":100.3},{"$f":"SUM(IF(AK30=$AJ$2:$AJ$36,$AH$2:$AH$36,0))","v":29},{"$f":"IF(ISBLANK(VLOOKUP($AL30,$AH$2:$AI$36,2))=TRUE,\"\",VLOOKUP($AL30,$AH$2:$AI$36,2))","v":" "},null,29,{"$f":"IF(ISBLANK(Categorieën!B212)=TRUE,\" \",Categorieën!B212)","v":" "},{"$f":"SUM(IF(ISBLANK(Categorieën!B212)=TRUE,100,IF(Categorieën!B212>Categorieën!$B$184:$B$213,1,0)))+ROW()/100","v":100.3},{"$f":"SMALL($AQ$2:$AQ$31,ROW()-1)","v":100.3},{"$f":"SUM(IF(AR30=$AQ$2:$AQ$31,$AO$2:$AO$31,0))","v":29},{"$f":"IF(ISBLANK(VLOOKUP($AS30,$AO$2:$AP$31,2))=TRUE,\"\",VLOOKUP($AS30,$AO$2:$AP$31,2))","v":" "}]
[null,null,null,null,null,30,{"$f":"IF(ISBLANK(Categorieën!B38)=TRUE,\" \",Categorieën!B38)","v":"sportieve gegevens: proclameren van eindresultaat examens judograden"},{"$f":"SUM(IF(ISBLANK(Categorieën!B38)=TRUE,100,IF(Categorieën!B38>Categorieën!$B$9:$B$48,1,0)))+ROW()/100","v":37.31},{"$f":"SMALL($H$2:$H$41,ROW()-1)","v":33.020000000000003},{"$f":"SUM(IF(I31=$H$2:$H$41,$F$2:$F$41,0))","v":1},{"$f":"IF(ISBLANK(VLOOKUP($J31,$F$2:$G$41,2))=TRUE,\"\",VLOOKUP($J31,$F$2:$G$41,2))","v":"persoonlijke gegevens: uniek ID lid (7 cijfers)"},null,30,{"$f":"IF(ISBLANK(Categorieën!B80)=TRUE,\" \",Categorieën!B80)","v":" "},{"$f":"SUM(IF(ISBLANK(Categorieën!B80)=TRUE,100,IF(Categorieën!B80>Categorieën!$B$51:$B$80,1,0)))+ROW()/100","v":100.31},{"$f":"SMALL($O$2:$O$31,ROW()-1)","v":100.31},{"$f":"SUM(IF(P31=$O$2:$O$31,$M$2:$M$31,0))","v":30},{"$f":"IF(ISBLANK(VLOOKUP($Q31,$M$2:$N$31,2))=TRUE,\"\",VLOOKUP($Q31,$M$2:$N$31,2))","v":" "},null,30,{"$f":"IF(ISBLANK(Categorieën!B112)=TRUE,\" \",Categorieën!B112)","v":" "},{"$f":"SUM(IF(ISBLANK(Categorieën!B112)=TRUE,100,IF(Categorieën!B112>Categorieën!$B$83:$B$112,1,0)))+ROW()/100","v":100.31},{"$f":"SMALL($V$2:$V$31,ROW()-1)","v":100.31},{"$f":"SUM(IF(W31=$V$2:$V$31,$T$2:$T$31,0))","v":30},{"$f":"IF(ISBLANK(VLOOKUP($X31,$T$2:$U$31,2))=TRUE,\"\",VLOOKUP($X31,$T$2:$U$31,2))","v":" "},null,30,{"$f":"IF(ISBLANK(Categorieën!B144)=TRUE,\" \",Categorieën!B144)","v":" "},{"$f":"SUM(IF(ISBLANK(Categorieën!B144)=TRUE,100,IF(Categorieën!B144>Categorieën!$B$115:$B$144,1,0)))+ROW()/100","v":100.31},{"$f":"SMALL($AC$2:$AC$31,ROW()-1)","v":100.31},{"$f":"SUM(IF(AD31=$AC$2:$AC$31,$AA$2:$AA$31,0))","v":30},{"$f":"IF(ISBLANK(VLOOKUP($AE31,$AA$2:$AB$31,2))=TRUE,\"\",VLOOKUP($AE31,$AA$2:$AB$31,2))","v":" "},null,30,{"$f":"IF(ISBLANK(Categorieën!B176)=TRUE,\" \",Categorieën!B176)","v":" "},{"$f":"SUM(IF(ISBLANK(Categorieën!B176)=TRUE,100,IF(Categorieën!B176>Categorieën!$B$147:$B$181,1,0)))+ROW()/100","v":100.31},{"$f":"SMALL($AJ$2:$AJ$36,ROW()-1)","v":100.31},{"$f":"SUM(IF(AK31=$AJ$2:$AJ$36,$AH$2:$AH$36,0))","v":30},{"$f":"IF(ISBLANK(VLOOKUP($AL31,$AH$2:$AI$36,2))=TRUE,\"\",VLOOKUP($AL31,$AH$2:$AI$36,2))","v":" "},null,30,{"$f":"IF(ISBLANK(Categorieën!B213)=TRUE,\" \",Categorieën!B213)","v":" "},{"$f":"SUM(IF(ISBLANK(Categorieën!B213)=TRUE,100,IF(Categorieën!B213>Categorieën!$B$184:$B$213,1,0)))+ROW()/100","v":100.31},{"$f":"SMALL($AQ$2:$AQ$31,ROW()-1)","v":100.31},{"$f":"SUM(IF(AR31=$AQ$2:$AQ$31,$AO$2:$AO$31,0))","v":30},{"$f":"IF(ISBLANK(VLOOKUP($AS31,$AO$2:$AP$31,2))=TRUE,\"\",VLOOKUP($AS31,$AO$2:$AP$31,2))","v":" "}]
[null,null,null,null,null,31,{"$f":"IF(ISBLANK(Categorieën!B39)=TRUE,\" \",Categorieën!B39)","v":"sportieve gegevens: verslagen van examens judograden"},{"$f":"SUM(IF(ISBLANK(Categorieën!B39)=TRUE,100,IF(Categorieën!B39>Categorieën!$B$9:$B$48,1,0)))+ROW()/100","v":39.32},{"$f":"SMALL($H$2:$H$41,ROW()-1)","v":34.21},{"$f":"SUM(IF(I32=$H$2:$H$41,$F$2:$F$41,0))","v":20},{"$f":"IF(ISBLANK(VLOOKUP($J32,$F$2:$G$41,2))=TRUE,\"\",VLOOKUP($J32,$F$2:$G$41,2))","v":"persoonlijke gegevens: vrijetijdsactiviteiten en interesses (hobby's, sporten)"},null,null,null,null,null,null,null,null,null,null,null,null,null,null,null,null,null,null,null,null,null,null,31,{"$f":"IF(ISBLANK(Categorieën!B177)=TRUE,\" \",Categorieën!B177)","v":" "},{"$f":"SUM(IF(ISBLANK(Categorieën!B177)=TRUE,100,IF(Categorieën!B177>Categorieën!$B$147:$B$181,1,0)))+ROW()/100","v":100.32},{"$f":"SMALL($AJ$2:$AJ$36,ROW()-1)","v":100.32},{"$f":"SUM(IF(AK32=$AJ$2:$AJ$36,$AH$2:$AH$36,0))","v":31},{"$f":"IF(ISBLANK(VLOOKUP($AL32,$AH$2:$AI$36,2))=TRUE,\"\",VLOOKUP($AL32,$AH$2:$AI$36,2))","v":" "}]
[null,null,null,null,null,32,{"$f":"IF(ISBLANK(Categorieën!B40)=TRUE,\" \",Categorieën!B40)","v":"gegevens van derden: naam, telefoonnummer, e-mailadres van de ouders"},{"$f":"SUM(IF(ISBLANK(Categorieën!B40)=TRUE,100,IF(Categorieën!B40>Categorieën!$B$9:$B$48,1,0)))+ROW()/100","v":5.33},{"$f":"SMALL($H$2:$H$41,ROW()-1)","v":35.29},{"$f":"SUM(IF(I33=$H$2:$H$41,$F$2:$F$41,0))","v":28},{"$f":"IF(ISBLANK(VLOOKUP($J33,$F$2:$G$41,2))=TRUE,\"\",VLOOKUP($J33,$F$2:$G$41,2))","v":"sportieve gegevens: aanwezigheden op clubtrainingen (datums)"},null,null,null,null,null,null,null,null,null,null,null,null,null,null,null,null,null,null,null,null,null,null,32,{"$f":"IF(ISBLANK(Categorieën!B178)=TRUE,\" \",Categorieën!B178)","v":" "},{"$f":"SUM(IF(ISBLANK(Categorieën!B178)=TRUE,100,IF(Categorieën!B178>Categorieën!$B$147:$B$181,1,0)))+ROW()/100","v":100.33},{"$f":"SMALL($AJ$2:$AJ$36,ROW()-1)","v":100.33},{"$f":"SUM(IF(AK33=$AJ$2:$AJ$36,$AH$2:$AH$36,0))","v":32},{"$f":"IF(ISBLANK(VLOOKUP($AL33,$AH$2:$AI$36,2))=TRUE,\"\",VLOOKUP($AL33,$AH$2:$AI$36,2))","v":" "}]
[null,null,null,null,null,33,{"$f":"IF(ISBLANK(Categorieën!B41)=TRUE,\" \",Categorieën!B41)","v":"beeldmateriaal: (digitale) foto's, filmpjes"},{"$f":"SUM(IF(ISBLANK(Categorieën!B41)=TRUE,100,IF(Categorieën!B41>Categorieën!$B$9:$B$48,1,0)))+ROW()/100","v":4.34},{"$f":"SMALL($H$2:$H$41,ROW()-1)","v":36.299999999999997},{"$f":"SUM(IF(I34=$H$2:$H$41,$F$2:$F$41,0))","v":29},{"$f":"IF(ISBLANK(VLOOKUP($J34,$F$2:$G$41,2))=TRUE,\"\",VLOOKUP($J34,$F$2:$G$41,2))","v":"sportieve gegevens: gevolgde opleidingen, resultaten opleidingen, attesten van deelname aan opleidingen/bijscholingen"},null,null,null,null,null,null,null,null,null,null,null,null,null,null,null,null,null,null,null,null,null,null,33,{"$f":"IF(ISBLANK(Categorieën!B179)=TRUE,\" \",Categorieën!B179)","v":" "},{"$f":"SUM(IF(ISBLANK(Categorieën!B179)=TRUE,100,IF(Categorieën!B179>Categorieën!$B$147:$B$181,1,0)))+ROW()/100","v":100.34},{"$f":"SMALL($AJ$2:$AJ$36,ROW()-1)","v":100.34},{"$f":"SUM(IF(AK34=$AJ$2:$AJ$36,$AH$2:$AH$36,0))","v":33},{"$f":"IF(ISBLANK(VLOOKUP($AL34,$AH$2:$AI$36,2))=TRUE,\"\",VLOOKUP($AL34,$AH$2:$AI$36,2))","v":" "}]
[null,null,null,null,null,34,{"$f":"IF(ISBLANK(Categorieën!B42)=TRUE,\" \",Categorieën!B42)","v":"persoonlijke gegevens : taal"},{"$f":"SUM(IF(ISBLANK(Categorieën!B42)=TRUE,100,IF(Categorieën!B42>Categorieën!$B$9:$B$48,1,0)))+ROW()/100","v":14.35},{"$f":"SMALL($H$2:$H$41,ROW()-1)","v":37.31},{"$f":"SUM(IF(I35=$H$2:$H$41,$F$2:$F$41,0))","v":30},{"$f":"IF(ISBLANK(VLOOKUP($J35,$F$2:$G$41,2))=TRUE,\"\",VLOOKUP($J35,$F$2:$G$41,2))","v":"sportieve gegevens: proclameren van eindresultaat examens judograden"},null,null,null,null,null,null,null,null,null,null,null,null,null,null,null,null,null,null,null,null,null,null,34,{"$f":"IF(ISBLANK(Categorieën!B180)=TRUE,\" \",Categorieën!B180)","v":" "},{"$f":"SUM(IF(ISBLANK(Categorieën!B180)=TRUE,100,IF(Categorieën!B180>Categorieën!$B$147:$B$181,1,0)))+ROW()/100","v":100.35},{"$f":"SMALL($AJ$2:$AJ$36,ROW()-1)","v":100.35},{"$f":"SUM(IF(AK35=$AJ$2:$AJ$36,$AH$2:$AH$36,0))","v":34},{"$f":"IF(ISBLANK(VLOOKUP($AL35,$AH$2:$AI$36,2))=TRUE,\"\",VLOOKUP($AL35,$AH$2:$AI$36,2))","v":" "}]
[null,null,null,null,null,35,{"$f":"IF(ISBLANK(Categorieën!B43)=TRUE,\" \",Categorieën!B43)","v":"persoonlijke gegevens : beroep"},{"$f":"SUM(IF(ISBLANK(Categorieën!B43)=TRUE,100,IF(Categorieën!B43>Categorieën!$B$9:$B$48,1,0)))+ROW()/100","v":11.36},{"$f":"SMALL($H$2:$H$41,ROW()-1)","v":38.28},{"$f":"SUM(IF(I36=$H$2:$H$41,$F$2:$F$41,0))","v":27},{"$f":"IF(ISBLANK(VLOOKUP($J36,$F$2:$G$41,2))=TRUE,\"\",VLOOKUP($J36,$F$2:$G$41,2))","v":"sportieve gegevens: verslagen en resultaten van wedstrijden"},null,null,null,null,null,null,null,null,null,null,null,null,null,null,null,null,null,null,null,null,null,null,35,{"$f":"IF(ISBLANK(Categorieën!B181)=TRUE,\" \",Categorieën!B181)","v":" "},{"$f":"SUM(IF(ISBLANK(Categorieën!B181)=TRUE,100,IF(Categorieën!B181>Categorieën!$B$147:$B$181,1,0)))+ROW()/100","v":100.36},{"$f":"SMALL($AJ$2:$AJ$36,ROW()-1)","v":100.36},{"$f":"SUM(IF(AK36=$AJ$2:$AJ$36,$AH$2:$AH$36,0))","v":35},{"$f":"IF(ISBLANK(VLOOKUP($AL36,$AH$2:$AI$36,2))=TRUE,\"\",VLOOKUP($AL36,$AH$2:$AI$36,2))","v":" "}]
[null,null,null,null,null,36,{"$f":"IF(ISBLANK(Categorieën!B44)=TRUE,\" \",Categorieën!B44)","v":"persoonlijke gegevens : rekeningnummer"},{"$f":"SUM(IF(ISBLANK(Categorieën!B44)=TRUE,100,IF(Categorieën!B44>Categorieën!$B$9:$B$48,1,0)))+ROW()/100","v":13.37},{"$f":"SMALL($H$2:$H$41,ROW()-1)","v":39.32},{"$f":"SUM(IF(I37=$H$2:$H$41,$F$2:$F$41,0))","v":31},{"$f":"IF(ISBLANK(VLOOKUP($J37,$F$2:$G$41,2))=TRUE,\"\",VLOOKUP($J37,$F$2:$G$41,2))","v":"sportieve gegevens: verslagen van examens judograden"}]
[null,null,null,null,null,37,{"$f":"IF(ISBLANK(Categorieën!B45)=TRUE,\" \",Categorieën!B45)","v":" "},{"$f":"SUM(IF(ISBLANK(Categorieën!B45)=TRUE,100,IF(Categorieën!B45>Categorieën!$B$9:$B$48,1,0)))+ROW()/100","v":100.38},{"$f":"SMALL($H$2:$H$41,ROW()-1)","v":100.38},{"$f":"SUM(IF(I38=$H$2:$H$41,$F$2:$F$41,0))","v":37},{"$f":"IF(ISBLANK(VLOOKUP($J38,$F$2:$G$41,2))=TRUE,\"\",VLOOKUP($J38,$F$2:$G$41,2))","v":" "}]
[null,null,null,null,null,38,{"$f":"IF(ISBLANK(Categorieën!B46)=TRUE,\" \",Categorieën!B46)","v":" "},{"$f":"SUM(IF(ISBLANK(Categorieën!B46)=TRUE,100,IF(Categorieën!B46>Categorieën!$B$9:$B$48,1,0)))+ROW()/100","v":100.39},{"$f":"SMALL($H$2:$H$41,ROW()-1)","v":100.39},{"$f":"SUM(IF(I39=$H$2:$H$41,$F$2:$F$41,0))","v":38},{"$f":"IF(ISBLANK(VLOOKUP($J39,$F$2:$G$41,2))=TRUE,\"\",VLOOKUP($J39,$F$2:$G$41,2))","v":" "}]
[null,null,null,null,null,39,{"$f":"IF(ISBLANK(Categorieën!B47)=TRUE,\" \",Categorieën!B47)","v":" "},{"$f":"SUM(IF(ISBLANK(Categorieën!B47)=TRUE,100,IF(Categorieën!B47>Categorieën!$B$9:$B$48,1,0)))+ROW()/100","v":100.4},{"$f":"SMALL($H$2:$H$41,ROW()-1)","v":100.4},{"$f":"SUM(IF(I40=$H$2:$H$41,$F$2:$F$41,0))","v":39},{"$f":"IF(ISBLANK(VLOOKUP($J40,$F$2:$G$41,2))=TRUE,\"\",VLOOKUP($J40,$F$2:$G$41,2))","v":" "}]
[null,null,null,null,null,40,{"$f":"IF(ISBLANK(Categorieën!B48)=TRUE,\" \",Categorieën!B48)","v":" "},{"$f":"SUM(IF(ISBLANK(Categorieën!B48)=TRUE,100,IF(Categorieën!B48>Categorieën!$B$9:$B$48,1,0)))+ROW()/100","v":100.41},{"$f":"SMALL($H$2:$H$41,ROW()-1)","v":100.41},{"$f":"SUM(IF(I41=$H$2:$H$41,$F$2:$F$41,0))","v":40},{"$f":"IF(ISBLANK(VLOOKUP($J41,$F$2:$G$41,2))=TRUE,\"\",VLOOKUP($J41,$F$2:$G$41,2))","v":" "}]